Workbook

Sheet 效率前緣
B1: 日期 | C1: 大盤報酬率-Ln | D1: 台積電報酬率-Ln | E1: 國泰金報酬率-Ln | F1: 統一報酬率-Ln | G1: 綠界科技報酬率-Ln | K1: 2330台積電 | L1: 2882國泰金 | M1: 1216統一 | N1: 6763綠界科技 | Q1: 變數 | U1: 目標式 | W1: 限制式1 | Y1: 限制式2 | AD1: 2330台積電 | AE1: 2882國泰金 | AF1: 1216統一 | AG1: 6763綠界科技 | AH1: 和
A2: 1 | B2: 2021-01-04 | C2: =四支股票!D4 -> 0.006554755698 | D2: =四支股票!H4 -> 0.01113184037 | E2: =四支股票!L4 -> 0.001188330545 | F2: =四支股票!P4 -> -0.008915334072 | G2: 0 | K2: =AVERAGE(D2:D520) -> -9.203192845e-05 | L2: =AVERAGE(E2:E520) -> 6.310503293e-05 | M2: =AVERAGE(F2:F520) -> -2.852322899e-06 | N2: =AVERAGE(G2:G520) -> 0.001460755028 | Q2: 2330台積電 | R2: 2882國泰金 | S2: 1216統一 | T2: 6763綠界科技 | U2: 投資組合變異最小（風險最小） | V2: STD | W2: 規劃求解結果= | X2: 投資組合期望報酬（給定） | Y2: W1+W2+W3+W4= | AC2: 投資組合權重 | AD2: 0 | AE2: 0 | AF2: 0 | AG2: 0.9999999996 | AH2: =SUM(AD2:AG2) -> 0.9999999996
A3: 2 | B3: 2021-01-05 | C3: =四支股票!D5 -> -0.001127325586 | D3: =四支股票!H5 -> 0.01283244007 | E3: =四支股票!L5 -> -0.01315019595 | F3: =四支股票!P5 -> -0.01352390279 | G3: =四支股票!T5 -> 0.03008933424 | J3: 標準差 | K3: =_xlfn.STDEV.P(D2:D520) -> 0.01814810457 | L3: =_xlfn.STDEV.P(E2:E520) -> 0.01636314741 | M3: =_xlfn.STDEV.P(F2:F520) -> 0.01000488438 | N3: =_xlfn.STDEV.P(G2:G520) -> 0.0368350158 | P3: 1 | Q3: 0 | R3: 0 | S3: 0.02716235913 | T3: 0.9728376409 | U3: =MMULT(Q3:T3,MMULT($K$5:$N$8,TRANSPOSE(Q3:T3))) -> 0.001288628 | V3: =SQRT(U3) -> 0.03589746509 | W3: =SUMPRODUCT($K$2:$N$2,Q3:T3) -> 0.001421 | X3: 0.001421 | Y3: =SUM(Q3:T3) -> 1
A4: 3 | B4: 2021-01-06 | C4: =四支股票!D6 -> 0.01529116286 | D4: =四支股票!H6 -> 0.02872728964 | E4: =四支股票!L6 -> 0.008388377427 | F4: =四支股票!P6 -> 0.007535830916 | G4: =四支股票!T6 -> -0.00312500771 | J4: Var-Cov | K4: 2330台積電 | L4: 2882國泰金 | M4: 1216統一 | N4: 6763綠界科技 | P4: 2 | Q4: 0 | R4: 0 | S4: 0.07772236754 | T4: 0.9222776325 | U4: =MMULT(Q4:T4,MMULT($K$5:$N$8,TRANSPOSE(Q4:T4))) -> 0.001161869077 | V4: =SQRT(U4) -> 0.03408620068 | W4: =SUMPRODUCT($K$2:$N$2,Q4:T4) -> 0.001347 | X4: 0.001347 | Y4: =SUM(Q4:T4) -> 1
A5: 4 | B5: 2021-01-07 | C5: =四支股票!D7 -> 0.01629546462 | D5: =四支股票!H7 -> 0.02620237239 | E5: =四支股票!L7 -> 0.02241972371 | F5: =四支股票!P7 -> 0.01638158809 | G5: =四支股票!T7 -> -0.0110150566 | J5: 2330台積電 | K5: 0.0003299895174 | L5: 0.0001337102446 | M5: 4.506448181e-05 | N5: 0.0001806907492 | P5: 3 | Q5: 0 | R5: 0 | S5: 0.1277223675 | T5: 0.8722776325 | U5: =MMULT(Q5:T5,MMULT($K$5:$N$8,TRANSPOSE(Q5:T5))) -> 0.001043522786 | V5: 0.0323036033 | W5: 0.001273819632 | X5: 0.001273 | Y5: 1 | AC5: 投資組合報酬率 | AD5: =AD2*$K$2+AE2*$L$2+AF2*$M$2+AG2*$N$2 -> 0.001460755028
A6: 5 | B6: 2021-01-08 | C6: =四支股票!D8 -> 0.006018448114 | D6: =四支股票!H8 -> 0.006872879288 | E6: =四支股票!L8 -> -0.005851392042 | F6: =四支股票!P8 -> -0.005925854378 | G6: =四支股票!T8 -> -0.003169580007 | J6: 2882國泰金 | K6: 0.0001337102446 | L6: 0.0002682694899 | M6: 6.147437578e-05 | N6: 0.0001062198861 | P6: 4 | Q6: 0 | R6: 0 | S6: 0.1795256277 | T6: 0.8204743723 | U6: =MMULT(Q6:T6,MMULT($K$5:$N$8,TRANSPOSE(Q6:T6))) -> 0.0009282594901 | V6: 0.03046735122 | W6: 0.001198 | X6: 0.001199 | Y6: 1 | AC6: 投資組合風險 | AD6: =SQRT(AD2*AD2*$K$5+AE2*AE2*$L$6+AF2*AF2*$M$7+AG2*AG2*$N$8+2*(AD2*AE2*$K$6+AD2*AF2*$K$7+AD2*AG2*$K$8+AE2*AF2*$L$7+AE2*AG2*$L$8+AF2*AG2*$M$8)) -> 0.03687369589
A7: 6 | B7: 2021-01-11 | C7: =四支股票!D9 -> -0.003644772533 | D7: =四支股票!H9 -> 0.01191503458 | E7: =四支股票!L9 -> -0.007067143915 | F7: =四支股票!P9 -> -0.004467661836 | G7: =四支股票!T9 -> -0.001588534413 | J7: 1216統一 | K7: 4.506448181e-05 | L7: 6.147437578e-05 | M7: 0.0001002909503 | N7: 3.301966613e-05 | P7: 5 | Q7: 0 | R7: 0 | S7: 0.2295256277 | T7: 0.7704743723 | U7: =MMULT(Q7:T7,MMULT($K$5:$N$8,TRANSPOSE(Q7:T7))) -> 0.0008241037699 | V7: 0.02870720763 | W7: 0.001124819632 | X7: 0.001125 | Y7: 1
A8: 7 | B8: 2021-01-12 | C8: =四支股票!D10 -> 0.01722296571 | D8: =四支股票!H10 -> 0.02341244062 | E8: =四支股票!L10 -> 0.002361346996 | F8: =四支股票!P10 -> 0 | G8: =四支股票!T10 -> -0.004780862353 | J8: 6763綠界科技 | K8: 0.0001806907492 | L8: 0.0001062198861 | M8: 3.301966613e-05 | N8: 0.00135966945 | P8: 6 | Q8: 0 | R8: 0.001417151786 | S8: 0.2781723398 | T8: 0.7204105084 | U8: =MMULT(Q8:T8,MMULT($K$5:$N$8,TRANSPOSE(Q8:T8))) -> 0.0007269171763 | V8: 0.0269614016 | W8: 0.001051639265 | X8: 0.001051 | Y8: 1
A9: 8 | B9: 2021-01-13 | C9: =四支股票!D11 -> -0.003989565802 | D9: =四支股票!H11 -> -0.02172182315 | E9: =四支股票!L11 -> 0.002355666523 | F9: =四支股票!P11 -> -0.002989493938 | G9: =四支股票!T11 -> -0.006410293154 | P9: 7 | Q9: 0 | R9: 0.01194398535 | S9: 0.319116679 | T9: 0.6689393357 | U9: =MMULT(Q9:T9,MMULT($K$5:$N$8,TRANSPOSE(Q9:T9))) -> 0.0006349394765 | V9: 0.02519800541 | W9: 0.0009770000001 | X9: 0.000977 | Y9: 1
A10: 9 | B10: 2021-01-14 | C10: =四支股票!D12 -> -0.005797615477 | D10: =四支股票!H12 -> 0.01508829965 | E10: =四支股票!L12 -> -0.01660776032 | F10: =四支股票!P12 -> -0.01204838343 | G10: =四支股票!T12 -> -0.00483486829 | J10: 標準差(SD) | K10: =K5^0.5 -> 0.0181656136 | L10: =L6^0.5 -> 0.01637893433 | M10: =M7^0.5 -> 0.01001453695 | N10: =N8^0.5 -> 0.0368736959 | P10: 8 | Q10: 0 | R10: 0.02252169579 | S10: 0.360258904 | T10: 0.6172194002 | U10: =MMULT(Q10:T10,MMULT($K$5:$N$8,TRANSPOSE(Q10:T10))) -> 0.0005497669443 | V10: 0.02344710951 | W10: 0.0009020000001 | X10: 0.000903 | Y10: 1
A11: 10 | B11: 2021-01-15 | C11: =四支股票!D13 -> -0.0002811318853 | D11: =四支股票!H13 -> 0.009933856524 | E11: =四支股票!L13 -> -0.01445803498 | F11: =四支股票!P13 -> 0.02099030557 | G11: =四支股票!T13 -> -0.008110326467 | J11: Correlation | K11: 2330台積電 | L11: 2882國泰金 | M11: 1216統一 | N11: 6763綠界科技 | P11: 9 | Q11: 0 | R11: 0.03295836976 | S11: 0.4008525664 | T11: 0.5661890638 | U11: =MMULT(Q11:T11,MMULT($K$5:$N$8,TRANSPOSE(Q11:T11))) -> 0.0004728525254 | V11: 0.02174517246 | W11: 0.0008280000001 | X11: 0.000829 | Y11: 1
A12: 11 | B12: 2021-01-18 | C12: =四支股票!D14 -> 0.01685498303 | D12: =四支股票!H14 -> 0.03241774957 | E12: =四支股票!L14 -> 0.003634092475 | F12: =四支股票!P14 -> -0.00446103342 | G12: =四支股票!T14 -> -0.00817664663 | J12: 2330台積電 | K12: 1 | L12: 0.4493957588 | M12: 0.247715645 | N12: 0.2697547973 | P12: 10 | Q12: 0 | R12: 0.04339504357 | S12: 0.4414462289 | T12: 0.5151587275 | U12: =MMULT(Q12:T12,MMULT($K$5:$N$8,TRANSPOSE(Q12:T12))) -> 0.0004030127843 | V12: 0.02007517831 | W12: 0.0007540000001 | X12: 0.000755 | Y12: 1
A13: 12 | B13: 2021-01-19 | C13: =四支股票!D15 -> -0.004493849284 | D13: =四支股票!H15 -> 0.03139975387 | E13: =四支股票!L15 -> -0.01707348791 | F13: =四支股票!P15 -> -0.04262433627 | G13: =四支股票!T15 -> 0.003278701366 | J13: 2882國泰金 | K13: 0.4493957588 | L13: 1 | M13: 0.3747810404 | N13: 0.1758747608 | P13: 11 | Q13: 0 | R13: 0.0536906818 | S13: 0.4814913279 | T13: 0.4648179903 | U13: =MMULT(Q13:T13,MMULT($K$5:$N$8,TRANSPOSE(Q13:T13))) -> 0.0003410487416 | V13: 0.01846750502 | W13: 0.0006810000001 | X13: 0.000681 | Y13: 1
A14: 13 | B14: 2021-01-20 | C14: =四支股票!D16 -> 0.02175244687 | D14: =四支股票!H16 -> 0.03939903514 | E14: =四支股票!L16 -> 0 | F14: =四支股票!P16 -> 0.0276090387 | G14: =四支股票!T16 -> 0.04010159827 | J14: 1216統一 | K14: 0.247715645 | L14: 0.3747810404 | M14: 1 | N14: 0.08941803765 | P14: 12 | Q14: 0 | R14: 0.06412735602 | S14: 0.5220849901 | T14: 0.4137876539 | U14: =MMULT(Q14:T14,MMULT($K$5:$N$8,TRANSPOSE(Q14:T14))) -> 0.0002852627523 | V14: 0.01688972327 | W14: 0.0006070000001 | X14: 0.000607 | Y14: 1
A15: 14 | B15: 2021-01-21 | C15: =四支股票!D17 -> -0.00837602239 | D15: =四支股票!H17 -> -0.03631261294 | E15: =四支股票!L17 -> -0.002463129294 | F15: =四支股票!P17 -> 0.009036191344 | G15: =四支股票!T17 -> 0.02637859569 | J15: 6763綠界科技 | K15: 0.2697547973 | L15: 0.1758747608 | M15: 0.08941803765 | N15: 1 | P15: 13 | Q15: 0 | R15: 0.07456403016 | S15: 0.5626786523 | T15: 0.3627573176 | U15: =MMULT(Q15:T15,MMULT($K$5:$N$8,TRANSPOSE(Q15:T15))) -> 0.0002365514407 | V15: 0.01538022889 | W15: 0.0005330000001 | X15: 0.000533 | Y15: 1
A16: 15 | B16: 2021-01-22 | C16: =四支股票!D18 -> -0.004535527291 | D16: =四支股票!H18 -> -0.02496229456 | E16: =四支股票!L18 -> 0.0110363108 | F16: =四支股票!P18 -> 0 | G16: =四支股票!T18 -> -0.00306749626 | P16: 14 | Q16: 0 | R16: 0.08500070444 | S16: 0.6032723143 | T16: 0.3117269812 | U16: =MMULT(Q16:T16,MMULT($K$5:$N$8,TRANSPOSE(Q16:T16))) -> 0.0001949148068 | V16: 0.0139611893 | W16: 0.0004590000001 | X16: 0.000459 | Y16: 1
A17: 16 | B17: 2021-01-25 | C17: =四支股票!D19 -> -0.01820565285 | D17: =四支股票!H19 -> -0.02560139824 | E17: =四支股票!L19 -> -0.01227009259 | F17: =四支股票!P19 -> 0.004487711447 | G17: =四支股票!T19 -> -0.01704147187 | P17: 15 | Q17: 0 | R17: 0.09543737843 | S17: 0.6438659767 | T17: 0.2606966449 | U17: =MMULT(Q17:T17,MMULT($K$5:$N$8,TRANSPOSE(Q17:T17))) -> 0.0001603528507 | V17: 0.01266305061 | W17: 0.0003850000001 | X17: 0.000385 | Y17: 1
A18: 17 | B18: 2021-01-26 | C18: =四支股票!D20 -> 0.002716849805 | D18: =四支股票!H20 -> -0.003246756099 | E18: =四支股票!L20 -> 0 | F18: =四支股票!P20 -> 0.002980583495 | G18: =四支股票!T20 -> -0.009419245996 | P18: 16 | Q18: 0 | R18: 0.1058740526 | S18: 0.6844596389 | T18: 0.2096663085 | U18: =MMULT(Q18:T18,MMULT($K$5:$N$8,TRANSPOSE(Q18:T18))) -> 0.0001328655723 | V18: 0.01152673294 | W18: 0.0003110000001 | X18: 0.000311 | Y18: 1
A19: 18 | B19: 2021-01-27 | C19: =四支股票!D21 -> -0.01835493782 | D19: =四支股票!H21 -> -0.02302733327 | E19: =四支股票!L21 -> -0.009925689675 | F19: =四支股票!P21 -> 0.01036286113 | G19: =四支股票!T21 -> -0.02232946422 | P19: 17 | Q19: 0 | R19: 0.1164517629 | S19: 0.7256018641 | T19: 0.157946373 | U19: =MMULT(Q19:T19,MMULT($K$5:$N$8,TRANSPOSE(Q19:T19))) -> 0.0001122255736 | V19: 0.01059365723 | W19: 0.0002360000001 | X19: 0.000237 | Y19: 1
A20: 19 | B20: 2021-01-28 | C20: =四支股票!D22 -> -0.01816955083 | D20: =四支股票!H22 -> -0.01677891713 | E20: =四支股票!L22 -> -0.004999910416 | F20: =四支股票!P22 -> 0.001471641156 | G20: =四支股票!T22 -> -0.01462251561 | P20: 18 | Q20: 0.03675779173 | R20: 0.108037954 | S20: 0.7445157758 | T20: 0.1106884784 | U20: =MMULT(Q20:T20,MMULT($K$5:$N$8,TRANSPOSE(Q20:T20))) -> 9.86984896e-05 | V20: 0.00993471135 | W20: 0.0001630000003 | X20: 0.000163 | Y20: 1
A21: 20 | B21: 2021-01-29 | C21: =四支股票!D23 -> 0.01779389102 | D21: =四支股票!H23 -> 0.03328094177 | E21: =四支股票!L23 -> 0 | F21: =四支股票!P23 -> 0 | G21: =四支股票!T23 -> 0.03062282994 | P21: 19 | Q21: 0.07985371058 | R21: 0.09653912214 | S21: 0.7603346099 | T21: 0.06327255736 | U21: =MMULT(Q21:T21,MMULT($K$5:$N$8,TRANSPOSE(Q21:T21))) -> 9.088587401e-05 | V21: 0.00953340831 | W21: 8.900000001e-05 | X21: 8.9e-05 | Y21: 1
A22: 21 | B22: 2021-02-01 | C22: =四支股票!D24 -> 0.02245576509 | D22: =四支股票!H24 -> 0.03379243498 | E22: =四支股票!L24 -> 0.009975070118 | F22: =四支股票!P24 -> -0.005899751713 | G22: =四支股票!T24 -> 0.004750645714 | P22: 20 | Q22: 0.1229496203 | R22: 0.0850403061 | S22: 0.7761534384 | T22: 0.0158566352 | U22: =MMULT(Q22:T22,MMULT($K$5:$N$8,TRANSPOSE(Q22:T22))) -> 8.900273995e-05 | V22: 0.009434126348 | W22: 1.500000003e-05 | X22: 1.5e-05 | Y22: 1
A23: 22 | B23: 2021-02-02 | C23: =四支股票!D25 -> 0.0007148759117 | D23: =四支股票!H25 -> -0.003169574761 | E23: =四支股票!L25 -> 0 | F23: =四支股票!P25 -> 0.007369230324 | G23: =四支股票!T25 -> 0.02032903245 | P23: 21 | Q23: 0.1246967548 | R23: 0.08457413739 | S23: 0.7767947406 | T23: 0.01393436726 | U23: =MMULT(Q23:T23,MMULT($K$5:$N$8,TRANSPOSE(Q23:T23))) -> 8.905146155e-05 | V23: 0.009436708195 | W23: 1.199999852e-05 | X23: 1.1e-05 | Y23: 1
A24: 23 | B24: 2021-02-03 | C24: =四支股票!D26 -> -0.004136325694 | D24: =四支股票!H26 -> -0.004773278753 | E24: =四支股票!L26 -> 0.00987667288 | F24: =四支股票!P26 -> 0.005856561481 | G24: =四支股票!T26 -> -0.003100718158 | P24: 22 | Q24: 0.1275877511 | R24: 0.08380362595 | S24: 0.777879596 | T24: 0.01072902692 | U24: =MMULT(Q24:T24,MMULT($K$5:$N$8,TRANSPOSE(Q24:T24))) -> 8.915432054e-05 | V24: 0.009442156562 | W24: 7.000000029e-06 | X24: 7e-06 | Y24: 1
A25: 24 | B25: 2021-02-04 | C25: =四支股票!D27 -> 0.006105057116 | D25: =四支股票!H27 -> 0.007942853514 | E25: =四支股票!L27 -> -0.002460099672 | F25: =四支股票!P27 -> 0.002915410292 | G25: =四支股票!T27 -> 0 | P25: 23 | Q25: 0.1298909372 | R25: 0.08319344195 | S25: 0.7787517332 | T25: 0.008163887665 | U25: =MMULT(Q25:T25,MMULT($K$5:$N$8,TRANSPOSE(Q25:T25))) -> 8.925609883e-05 | V25: 0.009447544593 | W25: 3.000000011e-06 | X25: 3e-06 | Y25: 1
A26: 25 | B26: 2021-02-05 | C26: =四支股票!D28 -> 0.03481744734 | D26: =四支股票!H28 -> 0.04788559604 | E26: =四支股票!L28 -> 0.0327104394 | F26: =四支股票!P28 -> 0.001454632984 | G26: =四支股票!T28 -> 0.003100718158 | P26: 24 | Q26: 0.1322498422 | R26: 0.08255922474 | S26: 0.7795877066 | T26: 0.005603226508 | U26: =MMULT(Q26:T26,MMULT($K$5:$N$8,TRANSPOSE(Q26:T26))) -> 8.937520096e-05 | V26: 0.009453845829 | W26: -9.999999891e-07 | X26: -1e-06 | Y26: 1
A27: 26 | B27: 2021-02-17 | C27: =四支股票!D29 -> 0.003795417794 | D27: =四支股票!H29 -> -0.004535155165 | E27: =四支股票!L29 -> 0.005941787988 | F27: =四支股票!P29 -> -0.001454632984 | G27: =四支股票!T29 -> -0.001549159426 | P27: 25 | Q27: 0.1345663295 | R27: 0.08194288236 | S27: 0.7804516129 | T27: 0.003039175257 | U27: =MMULT(Q27:T27,MMULT($K$5:$N$8,TRANSPOSE(Q27:T27))) -> 8.951162889e-05 | V27: 0.00946105855 | W27: -4.999999989e-06 | X27: -5e-06 | Y27: 1
A28: 27 | B28: 2021-02-18 | C28: =四支股票!D30 -> -0.005074183076 | D28: =四支股票!H30 -> -0.01219527309 | E28: =四支股票!L30 -> -0.008328495593 | F28: =四支股票!P30 -> -0.004376301692 | G28: =四支股票!T30 -> 0.0528425125 | P28: 26 | Q28: 0.1375772094 | R28: 0.08095443916 | S28: 0.7814683514 | T28: 0 | U28: =MMULT(Q28:T28,MMULT($K$5:$N$8,TRANSPOSE(Q28:T28))) -> 8.969747506e-05 | V28: 0.009470875095 | W28: -9.78186342e-06 | X28: -9e-06 | Y28: 1
A29: 28 | B29: 2021-02-19 | C29: =四支股票!D31 -> 0.004200130683 | D29: =四支股票!H31 -> -0.003072199037 | E29: =四支股票!L31 -> 0.004767613492 | F29: =四支股票!P31 -> 0.0014608914 | G29: =四支股票!T31 -> 0 | P29: 27 | Q29: 0.1880771696 | R29: 0.02463668683 | S29: 0.7872861435 | T29: 0 | U29: =MMULT(Q29:T29,MMULT($K$5:$N$8,TRANSPOSE(Q29:T29))) -> 9.096713409e-05 | V29: 0.009537669217 | W29: -1.799999998e-05 | X29: -1.8e-05 | Y29: 1
A30: 29 | B30: 2021-02-22 | C30: =四支股票!D32 -> 0.002023539963 | D30: =四支股票!H32 -> -0.01394290597 | E30: =四支股票!L32 -> 0.01533958102 | F30: =四支股票!P32 -> 0.007272759329 | G30: =四支股票!T32 -> 0.007326027482 | P30: 28 | Q30: 0.2768761165 | R30: 0 | S30: 0.7231238835 | T30: 0 | U30: =MMULT(Q30:T30,MMULT($K$5:$N$8,TRANSPOSE(Q30:T30))) -> 9.578531494e-05 | V30: 0.009786997238 | W30: -2.754402575e-05 | X30: -2.7e-05 | Y30: 1
A31: 30 | B31: 2021-02-23 | C31: =四支股票!D33 -> -0.01413978777 | D31: =四支股票!H33 -> -0.02527780718 | E31: =四支股票!L33 -> -0.001171622823 | F31: =四支股票!P33 -> 0.001448197233 | G31: =四支股票!T33 -> -0.01322576321 | P31: 29 | Q31: 0.3768761165 | R31: 0 | S31: 0.6231238835 | T31: 0 | U31: =MMULT(Q31:T31,MMULT($K$5:$N$8,TRANSPOSE(Q31:T31))) -> 0.0001069775018 | V31: 0.01034299288 | W31: -3.646198631e-05 | X31: -3.6e-05 | Y31: 1
A32: 31 | B32: 2021-02-24 | C32: =四支股票!D34 -> 0.01467355536 | D32: =四支股票!H34 -> 0.01587334916 | E32: =四支股票!L34 -> 0.02202978365 | F32: =四支股票!P34 -> 0.01151097602 | G32: =四支股票!T34 -> 0 | P32: 30 | Q32: 0.4768761165 | R32: 0 | S32: 0.5231238835 | T32: 0 | U32: =MMULT(Q32:T32,MMULT($K$5:$N$8,TRANSPOSE(Q32:T32))) -> 0.0001249727187 | V32: 0.01117911976 | W32: -4.537994686e-05 | X32: -4.5e-05 | Y32: 1
A33: 32 | B33: 2021-02-25 | C33: =四支股票!D35 -> -0.03076093912 | D33: =四支股票!H35 -> -0.04674501282 | E33: =四支股票!L35 -> -0.03857864773 | F33: =四支股票!P35 -> -0.03939247497 | G33: =四支股票!T35 -> -0.01190493021 | P33: 31 | Q33: 0.5768761165 | R33: 0 | S33: 0.4231238835 | T33: 0 | U33: =MMULT(Q33:T33,MMULT($K$5:$N$8,TRANSPOSE(Q33:T33))) -> 0.0001497709657 | V33: 0.01223809486 | W33: -5.429790742e-05 | X33: -5.4e-05 | Y33: 1
A34: 33 | B34: 2021-02-26 | C34: =四支股票!D36 -> -0.0004338416721 | D34: =四支股票!H36 -> 0.004938281641 | E34: =四支股票!L36 -> -0.00119258209 | F34: =四支股票!P36 -> 0.01183450229 | G34: =四支股票!T36 -> 0.03529780306 | P34: 32 | Q34: 0.6768761165 | R34: 0 | S34: 0.3231238835 | T34: 0 | U34: =MMULT(Q34:T34,MMULT($K$5:$N$8,TRANSPOSE(Q34:T34))) -> 0.0001813722428 | V34: 0.01346745123 | W34: -6.321586798e-05 | X34: -6.3e-05 | Y34: 1
A35: 34 | B35: 2021-03-02 | C35: =四支股票!D37 -> 0.01647189175 | D35: =四支股票!H37 -> 0.02112182503 | E35: =四支股票!L37 -> 0.01539395686 | F35: =四支股票!P37 -> 0.01604699665 | G35: =四支股票!T37 -> -0.01749313712 | P35: 33 | Q35: 0.7768761165 | R35: 0 | S35: 0.2231238835 | T35: 0 | U35: =MMULT(Q35:T35,MMULT($K$5:$N$8,TRANSPOSE(Q35:T35))) -> 0.0002197765499 | V35: 0.01482486256 | W35: -7.213382853e-05 | X35: -7.2e-05 | Y35: 1
A36: 35 | B36: 2021-03-03 | C36: =四支股票!D38 -> -0.01901290078 | D36: =四支股票!H38 -> -0.0343451582 | E36: =四支股票!L38 -> -0.004711457645 | F36: =四支股票!P38 -> -0.008720956562 | G36: =四支股票!T38 -> 0.02325685517 | P36: 34 | Q36: 0.8768761165 | R36: 0 | S36: 0.1231238835 | T36: 0 | U36: =MMULT(Q36:T36,MMULT($K$5:$N$8,TRANSPOSE(Q36:T36))) -> 0.0002649838872 | V36: 0.01627832569 | W36: -8.105178909e-05 | X36: -8.1e-05 | Y36: 1
A37: 36 | B37: 2021-03-04 | C37: =四支股票!D39 -> -0.003222738517 | D37: =四支股票!H39 -> 0 | E37: =四支股票!L39 -> 0.004711457645 | F37: =四支股票!P39 -> -0.0014608914 | G37: =四支股票!T39 -> -0.01739178317 | P37: 35 | Q37: 0.9768761165 | R37: 0 | S37: 0.02312388353 | T37: 0 | U37: =MMULT(Q37:T37,MMULT($K$5:$N$8,TRANSPOSE(Q37:T37))) -> 0.0003169942545 | V37: 0.01780433246 | W37: -8.996974964e-05 | X37: -9e-05 | Y37: 1
A38: 37 | B38: 2021-03-05 | C38: =四支股票!D40 -> -0.002217506141 | D38: =四支股票!H40 -> -0.005004180585 | E38: =四支股票!L40 -> 0.008192041036 | F38: =四支股票!P40 -> 0.005830934676 | G38: =四支股票!T40 -> 0.002919714921 | P38: 36 | Q38: 1 | R38: 0 | S38: 0 | T38: 0 | U38: =MMULT(Q38:T38,MMULT($K$5:$N$8,TRANSPOSE(Q38:T38))) -> 0.0003299895174 | V38: 0.0181656136 | W38: -9.203192845e-05 | X38: -9.2e-05 | Y38: 1
A39: 38 | B39: 2021-03-08 | C39: =四支股票!D41 -> 0.002082486374 | D39: =四支股票!H41 -> -0.005029348405 | E39: =四支股票!L41 -> 0.03211278192 | F39: =四支股票!P41 -> 0.01871897697 | G39: =四支股票!T41 -> 0.01877312926
A40: 39 | B40: 2021-03-09 | C40: =四支股票!D42 -> 0.003688373206 | D40: =四支股票!H42 -> 0.003355707847 | E40: =四支股票!L42 -> 0.005627476992 | F40: =四支股票!P42 -> 0.001425502787 | G40: =四支股票!T42 -> -0.02755791618
A41: 40 | B41: 2021-03-10 | C41: =四支股票!D43 -> 0.01669589325 | D41: =四支股票!H43 -> 0.01990115432 | E41: =四支股票!L43 -> 0.02657966025 | F41: =四支股票!P43 -> -0.005714215548 | G41: =四支股票!T43 -> -0.002945514965
A42: 41 | B42: 2021-03-11 | C42: =四支股票!D44 -> 0.004662917399 | D42: =四支股票!H44 -> 0.008176660437 | E42: =四支股票!L44 -> 0.003273368918 | F42: =四支股票!P44 -> 0.002861189301 | G42: =四支股票!T44 -> -0.004434641253
A43: 42 | B43: 2021-03-12 | C43: =四支股票!D45 -> -0.0003599260598 | D43: =四支股票!H45 -> -0.004897968976 | E43: =四支股票!L45 -> 0.01727902545 | F43: =四支股票!P45 -> -0.004294967324 | G43: =四支股票!T45 -> 0.001480420484
A44: 43 | B44: 2021-03-15 | C44: =四支股票!D46 -> 0.003920471641 | D44: =四支股票!H46 -> 0.003267976765 | E44: =四支股票!L46 -> -0.0053676993 | F44: =四支股票!P46 -> -0.005755325239 | G44: =四支股票!T46 -> 0.005899735733
A45: 44 | B45: 2021-03-16 | C45: =四支股票!D47 -> -0.005984825355 | D45: =四支股票!H47 -> -0.014790738 | E45: =四支股票!L47 -> -0.0140924175 | F45: =四支股票!P47 -> 0.001441946845 | G45: =四支股票!T47 -> -0.01481512218
A46: 45 | B46: 2021-03-17 | C46: =四支股票!D48 -> 0.004431479317 | D46: =四支股票!H48 -> -0.003316752626 | E46: =四支股票!L48 -> -0.00767122666 | F46: =四支股票!P48 -> 0.01003586918 | G46: =四支股票!T48 -> 0.01481512218
A47: 46 | B47: 2021-03-18 | C47: =四支股票!D49 -> -0.0134496787 | D47: =四支股票!H49 -> -0.0184414279 | E47: =四支股票!L49 -> -0.01887902844 | F47: =四支股票!P49 -> -0.02308902024 | G47: =四支股票!T49 -> 0
A48: 47 | B48: 2021-03-19 | C48: =四支股票!D50 -> 0.007376442918 | D48: =四支股票!H50 -> 0.003378381592 | E48: =四支股票!L50 -> 0.02217385848 | F48: =四支股票!P50 -> 0.007272759329 | G48: =四支股票!T50 -> -0.008862709788
A49: 48 | B49: 2021-03-22 | C49: =四支股票!D51 -> -0.0007186302051 | D49: =四支股票!H51 -> 0.001684920365 | E49: =四支股票!L51 -> 0.0259755089 | F49: =四支股票!P51 -> -0.00145029755 | G49: =四支股票!T51 -> 0.01618873727
A50: 49 | B50: 2021-03-23 | C50: =四支股票!D52 -> -0.009032724371 | D50: =四支股票!H52 -> -0.03077165867 | E50: =四支股票!L52 -> -0.006430868963 | F50: =四支股票!P52 -> -0.005822461779 | G50: =四支股票!T52 -> -0.004389224185
A51: 50 | B51: 2021-03-24 | C51: =四支股票!D53 -> 0.001746186671 | D51: =四支股票!H53 -> -0.001737619899 | E51: =四支股票!L53 -> 0.007498653402 | F51: =四支股票!P53 -> 0.01736652946 | G51: =四支股票!T53 -> 0.05699550001
A52: 51 | B52: 2021-03-25 | C52: =四支股票!D54 -> 0.01518536791 | D52: =四支股票!H54 -> 0.0257524961 | E52: =四支股票!L54 -> 0.01588175323 | F52: =四支股票!P54 -> 0.02129250156 | G52: =四支股票!T54 -> 0.04601628911
A53: 52 | B53: 2021-03-26 | C53: =四支股票!D55 -> 0.01037722663 | D53: =四支股票!H55 -> 0.01513906122 | E53: =四支股票!L55 -> 0.008368291687 | F53: =四支股票!P55 -> 0.006997929481 | G53: =四支股票!T55 -> 0.04018682903
A54: 53 | B54: 2021-03-29 | C54: =四支股票!D56 -> 0.004779155718 | D54: =四支股票!H56 -> -0.003344484723 | E54: =四支股票!L56 -> 0 | F54: =四支股票!P56 -> 0.01796873538 | G54: =四支股票!T56 -> 0
A55: 54 | B55: 2021-03-30 | C55: =四支股票!D57 -> -0.007504395537 | D55: =四支股票!H57 -> -0.01689229356 | E55: =四支股票!L57 -> -0.001042188723 | F55: =四支股票!P57 -> 0 | G55: =四支股票!T57 -> -0.00509556432
A56: 55 | B56: 2021-03-31 | C56: =四支股票!D58 -> 0.00849327548 | D56: =四支股票!H58 -> 0.02523262548 | E56: =四支股票!L58 -> 0 | F56: =四支股票!P58 -> -0.006872879288 | G56: =四支股票!T58 -> 0.002551082591
A57: 56 | B57: 2021-04-01 | C57: =四支股票!D59 -> 0.01462168318 | D57: =四支股票!H59 -> 0.01320151186 | E57: =四支股票!L59 -> 0.001042188723 | F57: =四支股票!P59 -> 0.006872879288 | G57: =四支股票!T59 -> 0.0605496445
A58: 57 | B58: 2021-04-07 | C58: =四支股票!D60 -> 0.006584146853 | D58: =四支股票!H60 -> 0.004905978769 | E58: =四支股票!L60 -> -0.007318338835 | F58: =四支股票!P60 -> 0 | G58: =四支股票!T60 -> 0.07282241593
A59: 58 | B59: 2021-04-08 | C59: =四支股票!D61 -> -0.004282936661 | D59: =四支股票!H61 -> -0.004905978769 | E59: =四支股票!L61 -> -0.008430018133 | F59: =四支股票!P61 -> -0.002743444737 | G59: =四支股票!T61 -> 0.1285020658
A60: 59 | B60: 2021-04-09 | C60: =四支股票!D62 -> 0.0003321850546 | D60: =四支股票!H62 -> -0.008230499137 | E60: =四支股票!L62 -> 0.03227763843 | F60: =四支股票!P62 -> -0.004129434551 | G60: =四支股票!T62 -> 0.1507836908
A61: 60 | B61: 2021-04-12 | C61: =四支股票!D63 -> -0.002065576892 | D61: =四支股票!H63 -> 0 | E61: =四支股票!L63 -> 0.004090005743 | F61: =四支股票!P63 -> 0.002754781413 | G61: =四支股票!T63 -> -0.08992842794
A62: 61 | B62: 2021-04-13 | C62: =四支股票!D64 -> 0.0024374885 | D62: =四支股票!H64 -> 0.01150382448 | E62: =四支股票!L64 -> -0.009226123971 | F62: =四支股票!P64 -> 0.004118097874 | G62: =四支股票!T64 -> 0.0397882705
A63: 62 | B63: 2021-04-14 | C63: =四支股票!D65 -> 0.0124187214 | D63: =四支股票!H65 -> 0.01137299017 | E63: =四支股票!L65 -> 0.02542078981 | F63: =四支股票!P65 -> 0.001368898248 | G63: =四支股票!T65 -> 0.02797384461
A64: 63 | B64: 2021-04-15 | C64: =四支股票!D66 -> 0.00479503071 | D64: =四支股票!H66 -> -0.01464631552 | E64: =四支股票!L66 -> 0.001003492337 | F64: =四支股票!P66 -> 0.001367040588 | G64: =四支股票!T66 -> 0.0811031711
A65: 64 | B65: 2021-04-16 | C65: =四支股票!D67 -> 0.006069885427 | D65: =四支股票!H67 -> -0.01154176044 | E65: =四支股票!L67 -> 0.03450317744 | F65: =四支股票!P67 -> 0.02028467199 | G65: =四支股票!T67 -> -0.009584760291
A66: 65 | B66: 2021-04-19 | C66: =四支股票!D68 -> 0.003503608058 | D66: =四支股票!H68 -> -0.001659751418 | E66: =四支股票!L68 -> -0.003883422356 | F66: =四支股票!P68 -> 0.01461828025 | G66: =四支股票!T68 -> -0.001606395216
A67: 66 | B67: 2021-04-20 | C67: =四支股票!D69 -> -0.007053255317 | D67: =四支股票!H69 -> -0.01675081042 | E67: =四支股票!L69 -> -0.009775248522 | F67: =四支股票!P69 -> -0.01461828025 | G67: =四支股票!T69 -> -0.03601045529
A68: 67 | B68: 2021-04-21 | C68: =四支股票!D70 -> -0.006130718437 | D68: =四支股票!H70 -> -0.001690617478 | E68: =四支股票!L70 -> -0.003937032528 | F68: =四支股票!P70 -> 0.01725328831 | G68: =四支股票!T70 -> -0.04779063237
A69: 68 | B69: 2021-04-22 | C69: =四支股票!D71 -> 0.01182078526 | D69: =四支股票!H71 -> 0.0184414279 | E69: =四支股票!L71 -> 0.003937032528 | F69: =四支股票!P71 -> -0.005277083556 | G69: =四支股票!T71 -> 0.02418078209
A70: 69 | B70: 2021-04-23 | C70: =四支股票!D72 -> 0.01560109497 | D70: =四支股票!H72 -> 0.01320151186 | E70: =四支股票!L72 -> 0.02330194752 | F70: =四支股票!P72 -> -0.001323600475 | G70: =四支股票!T72 -> 0.003407166204
A71: 70 | B71: 2021-04-26 | C71: =四支股票!D73 -> 0.001342766399 | D71: =四支股票!H73 -> 0 | E71: =四支股票!L73 -> 0.0152384663 | F71: =四支股票!P73 -> -0.003981465193 | G71: =四支股票!T73 -> -0.001702168672
A72: 71 | B72: 2021-04-27 | C72: =四支股票!D74 -> -0.001613670817 | D72: =四支股票!H74 -> -0.01320151186 | E72: =四支股票!L74 -> 0.001888536881 | F72: =四支股票!P74 -> 0.007947141164 | G72: =四支股票!T74 -> -0.01372230038
A73: 72 | B73: 2021-04-28 | C73: =四支股票!D75 -> -4.947551167e-05 | D73: =四支股票!H75 -> -0.003327790093 | E73: =四支股票!L75 -> -0.0132955616 | F73: =四支股票!P75 -> -0.009277800087 | G73: =四支股票!T75 -> -0.05138421123
A74: 73 | B74: 2021-04-29 | C74: =四支股票!D76 -> -0.01979486005 | D74: =四支股票!H76 -> -0.02020270732 | E74: =四支股票!L76 -> 0.00571972977 | F74: =四支股票!P76 -> -0.008021406753 | G74: =四支股票!T76 -> 0.05483249846
A75: 74 | B75: 2021-05-03 | C75: =四支股票!D77 -> -0.0168975342 | D75: =四支股票!H77 -> 0.005089069507 | E75: =四支股票!L77 -> -0.01725828086 | F75: =四支股票!P77 -> -0.005383620074 | G75: =四支股票!T77 -> 0.01537177866
A76: 75 | B76: 2021-05-04 | C76: =四支股票!D78 -> -0.005349170995 | D76: =四支股票!H78 -> -0.01020417017 | E76: =四支股票!L78 -> 0.03609122991 | F76: =四支股票!P78 -> -0.01495606416 | G76: =四支股票!T78 -> 0.03660969222
A77: 76 | B77: 2021-05-05 | C77: =四支股票!D79 -> 0.008920256516 | D77: =四支股票!H79 -> 0.003412972596 | E77: =四支股票!L79 -> 0.01481515986 | F77: =四支股票!P79 -> 0.02302061083 | G77: =四支股票!T79 -> 0.01941813338
A78: 77 | B78: 2021-05-06 | C78: =四支股票!D80 -> 0.01695758585 | D78: =四支股票!H80 -> 0.02023677829 | E78: =四支股票!L80 -> 0.01278548923 | F78: =四支股票!P80 -> -0.001339571578 | G78: =四支股票!T80 -> 0.1582631205
A79: 78 | B79: 2021-05-07 | C79: =四支股票!D81 -> -0.002861517198 | D79: =四支股票!H81 -> -0.01683541446 | E79: =四支股票!L81 -> 0.05473569206 | F79: =四支股票!P81 -> 0.008010710662 | G79: =四支股票!T81 -> 0.03097883872
A80: 79 | B80: 2021-05-10 | C80: =四支股票!D82 -> -0.03859159082 | D80: =四支股票!H82 -> -0.031036974 | E80: =四支股票!L82 -> -0.02787642205 | F80: =四支股票!P82 -> -0.006671139084 | G80: =四支股票!T82 -> -0.07431203755
A81: 80 | B81: 2021-05-11 | C81: =四支股票!D83 -> -0.04191780327 | D81: =四支股票!H83 -> -0.01945242593 | E81: =四支股票!L83 -> -0.07901259792 | F81: =四支股票!P83 -> -0.0285151577 | G81: =四支股票!T83 -> 0.009950384591
A82: 81 | B82: 2021-05-12 | C82: =四支股票!D84 -> -0.01471374906 | D82: =四支股票!H84 -> -0.02348798131 | E82: =四支股票!L84 -> -0.02321189388 | F82: =四支股票!P84 -> 0.001376448991 | G82: =四支股票!T84 -> 0.02237855144
A83: 82 | B83: 2021-05-13 | C83: =四支股票!D85 -> 0.009968605947 | D83: =四支股票!H85 -> 0.01811643751 | E83: =四支股票!L85 -> 0.007797349599 | F83: =四支股票!P85 -> 0.02042276647 | G83: =四支股票!T85 -> -0.03519011338
A84: 83 | B84: 2021-05-14 | C84: =四支股票!D86 -> -0.03035417977 | D84: =四支股票!H86 -> -0.01446679842 | E84: =四支股票!L86 -> -0.05692995793 | F84: =四支股票!P86 -> -0.02179921546 | G84: =四支股票!T86 -> 0.1085074453
A85: 84 | B85: 2021-05-17 | C85: =四支股票!D87 -> 0.05030229213 | D85: =四支股票!H87 -> 0.04104054987 | E85: =四支股票!L87 -> 0.09502980416 | F85: =四支股票!P87 -> 0.01910019892 | G85: =四支股票!T87 -> 0
A86: 85 | B86: 2021-05-18 | C86: =四支股票!D88 -> -0.0008253330065 | D86: =四支股票!H88 -> -0.008779687652 | E86: =四支股票!L88 -> 0.01484255462 | F86: =四支股票!P88 -> -0.008141130336 | G86: =四支股票!T88 -> -0.01293687669
A87: 86 | B87: 2021-05-19 | C87: =四支股票!D89 -> -0.005613052589 | D87: =四支股票!H89 -> 0 | E87: =四支股票!L89 -> -0.01858789611 | F87: =四支股票!P89 -> 0.01487516252 | G87: =四支股票!T89 -> 0.03203348495
A88: 87 | B88: 2021-05-20 | C88: =四支股票!D90 -> 0.01605870809 | D88: =四支股票!H90 -> 0.01052641299 | E88: =四支股票!L90 -> 0.01674461449 | F88: =四支股票!P90 -> 0.006688988151 | G88: =四支股票!T90 -> 0.007537795754
A89: 88 | B89: 2021-05-21 | C89: =四支股票!D91 -> 0.002219981361 | D89: =四支股票!H91 -> -0.008764297994 | E89: =四支股票!L91 -> -0.005550411875 | F89: =四支股票!P91 -> -0.01884311498 | G89: =四支股票!T91 -> 0
A90: 89 | B90: 2021-05-24 | C90: =四支股票!D92 -> 0.01563037808 | D90: =四支股票!H92 -> 0.02606576763 | E90: =四支股票!L92 -> 0.007393693503 | F90: =四支股票!P92 -> -0.005449618577 | G90: =四支股票!T92 -> 0
A91: 90 | B91: 2021-05-25 | C91: =四支股票!D93 -> 0.002889319488 | D91: =四支股票!H93 -> 0.003424660881 | E91: =四支股票!L93 -> 0.001839982103 | F91: =四支股票!P93 -> -0.005479383572 | G91: =四支股票!T93 -> 0
A92: 91 | B92: 2021-05-26 | C92: =四支股票!D94 -> -0.002531491787 | D92: =四支股票!H94 -> -0.0051413995 | E92: =四支股票!L94 -> 0 | F92: =四支股票!P94 -> -0.0110498774 | G92: =四支股票!T94 -> 0
A93: 92 | B93: 2021-05-27 | C93: =四支股票!D95 -> 0.01608819532 | D93: =四支股票!H95 -> 0.01365208917 | E93: =四支股票!L95 -> 0.02001883013 | F93: =四支股票!P95 -> 0.0110498774 | G93: =四支股票!T95 -> 0
A94: 93 | B94: 2021-05-28 | C94: =四支股票!D96 -> 0.01164270379 | D94: =四支股票!H96 -> 0.01179457649 | E94: =四支股票!L96 -> 0.007181395187 | F94: =四支股票!P96 -> 0.01092900215 | G94: =四支股票!T96 -> 0
A95: 94 | B95: 2021-05-31 | C95: =四支股票!D97 -> 0.005489289059 | D95: =四支股票!H97 -> 0.001673640558 | E95: =四支股票!L97 -> -0.001790564473 | F95: =四支股票!P97 -> 0.006770506751 | G95: =四支股票!T97 -> 0
A96: 95 | B96: 2021-06-01 | C96: =四支股票!D98 -> 0.0001548735099 | D96: =四支股票!H98 -> -0.005029348405 | E96: =四支股票!L98 -> 0.008920665918 | F96: =四支股票!P98 -> 0.005383620074 | G96: =四支股票!T98 -> 0
A97: 96 | B97: 2021-06-02 | C97: =四支股票!D99 -> 0.004714816404 | D97: =四支股票!H99 -> 0.00167926152 | E97: =四支股票!L99 -> -0.008920665918 | F97: =四支股票!P99 -> -0.005383620074 | G97: =四支股票!T99 -> 0
A98: 97 | B98: 2021-06-03 | C98: =四支股票!D100 -> -0.00574236815 | D98: =四支股票!H100 -> -0.00167926152 | E98: =四支股票!L100 -> -0.01444066623 | F98: =四支股票!P100 -> -0.006770506751 | G98: =四支股票!T100 -> 0
A99: 98 | B99: 2021-06-04 | C99: =四支股票!D101 -> -0.003710056887 | D99: =四支股票!H101 -> -0.005054770662 | E99: =四支股票!L101 -> -0.005469457523 | F99: =四支股票!P101 -> -0.008185557413 | G99: =四支股票!T101 -> 0
A100: 99 | B100: 2021-06-07 | C100: =四支股票!D102 -> -0.0004507722973 | D100: =四支股票!H102 -> -0.005080451232 | E100: =四支股票!L102 -> 0.001826447996 | F100: =四支股票!P102 -> 0.00546452172 | G100: =四支股票!T102 -> 0.05951965131
A101: 100 | B101: 2021-06-08 | C101: =四支股票!D103 -> -0.006461971865 | D101: =四支股票!H103 -> -0.005106394075 | E101: =四支股票!L103 -> -0.009165967182 | F101: =四支股票!P103 -> -0.001363313048 | G101: =四支股票!T103 -> -0.009478766147
A102: 101 | B102: 2021-06-09 | C102: =四支股票!D104 -> 0.0113113296 | D102: =四支股票!H104 -> 0.02194180854 | E102: =四支股票!L104 -> 0.007339519186 | F102: =四支股票!P104 -> -0.002732310424 | G102: =四支股票!T104 -> -0.01318174363
A103: 102 | B103: 2021-06-10 | C103: =四支股票!D105 -> 0.003159414862 | D103: =四支股票!H105 -> 0.004995847193 | E103: =四支股票!L105 -> -0.00366302604 | F103: =四支股票!P105 -> 0.006816659165 | G103: =四支股票!T105 -> 0.007211638223
A104: 103 | B104: 2021-06-11 | C104: =四支股票!D106 -> 0.009123695219 | D104: =四支股票!H106 -> 0.0115608224 | E104: =四支股票!L106 -> -0.003676493146 | F104: =四支股票!P106 -> 0 | G104: =四支股票!T106 -> 0.1332319521
A105: 104 | B105: 2021-06-15 | C105: =四支股票!D107 -> -0.003658092058 | D105: =四支股票!H107 -> -0.006589809679 | E105: =四支股票!L107 -> 0 | F105: =四支股票!P107 -> 0.006770506751 | G105: =四支股票!T107 -> 0.04006697817
A106: 105 | B106: 2021-06-16 | C106: =四支股票!D108 -> 0.004769671969 | D106: =四支股票!H108 -> 0.001651528038 | E106: =四支股票!L108 -> -0.005540161959 | F106: =四支股票!P108 -> -0.01222012533 | G106: =四支股票!T108 -> 0.04624533388
A107: 106 | B107: 2021-06-17 | C107: =四支股票!D109 -> -0.004152819578 | D107: =四支股票!H109 -> -0.004962789342 | E107: =四支股票!L109 -> -0.007435015801 | F107: =四支股票!P109 -> 0.006807378506 | G107: =四支股票!T109 -> 0.1220473996
A108: 107 | B108: 2021-06-18 | C108: =四支股票!D110 -> -0.01486631796 | D108: =四支股票!H110 -> -0.03373001038 | E108: =四支股票!L110 -> -0.03030531218 | F108: =四支股票!P110 -> -0.01503786421 | G108: =四支股票!T110 -> 0.06984354917
A109: 108 | B109: 2021-06-21 | C109: =四支股票!D111 -> 0.0007364296065 | D109: =四支股票!H111 -> -0.008613317678 | E109: =四支股票!L111 -> 0.01147236314 | F109: =四支股票!P111 -> -0.001378332422 | G109: =四支股票!T111 -> -0.01600031099
A110: 109 | B110: 2021-06-22 | C110: =四支股票!D112 -> 0.01517861123 | D110: =四支股票!H112 -> 0.02898753687 | E110: =四支股票!L112 -> 0.02811806716 | F110: =四支股票!P112 -> 0.01097408796 | G110: =四支股票!T112 -> -0.03696523115
A111: 110 | B111: 2021-06-23 | C111: =四支股票!D113 -> 0.004101354022 | D111: =四支股票!H113 -> -0.008438868646 | E111: =四支股票!L113 -> -0.005560700303 | F111: =四支股票!P113 -> 0.001363313048 | G111: =四支股票!T113 -> 0.08421809501
A112: 111 | B112: 2021-06-24 | C112: =四支股票!D114 -> 0.005444110087 | D112: =四支股票!H114 -> 0.001693480506 | E112: =四支股票!L114 -> 0.009250759943 | F112: =四支股票!P114 -> 0.00136144335 | G112: =四支股票!T114 -> 0.06333591623
A113: 112 | B113: 2021-06-25 | C113: =四支股票!D115 -> 0.005014005314 | D113: =四支股票!H115 -> -0.001693480506 | E113: =四支股票!L115 -> 0 | F113: =四支股票!P115 -> 0.004073366038 | G113: =四支股票!T115 -> -0.007246456573
A114: 113 | B114: 2021-06-28 | C114: =四支股票!D116 -> 0.0004102826023 | D114: =四支股票!H116 -> 0.008438868646 | E114: =四支股票!L116 -> -0.01111118839 | F114: =四支股票!P116 -> -0.004073366038 | G114: =四支股票!T116 -> 0.007246456573
A115: 114 | B115: 2021-06-29 | C115: =四支股票!D117 -> 0.008897102319 | D115: =四支股票!H117 -> 0 | E115: =四支股票!L117 -> 0.003717494884 | F115: =四支股票!P117 -> -0.004090026235 | G115: =四支股票!T117 -> 0.109323797
A116: 115 | B116: 2021-06-30 | C116: =四支股票!D118 -> -0.002341257733 | D116: =四支股票!H118 -> -0.003367006548 | E116: =四支股票!L118 -> 0 | F116: =四支股票!P118 -> -0.00685403671 | G116: =四支股票!T118 -> -0.05658750966
A117: 116 | B117: 2021-07-01 | C117: =四支股票!D119 -> -0.0002139257229 | D117: =四支股票!H119 -> -0.008467451099 | E117: =四支股票!L119 -> 0 | F117: =四支股票!P119 -> 0.009582619594 | G117: =四支股票!T119 -> -0.04196424062
A118: 117 | B118: 2021-07-02 | C118: =四支股票!D120 -> 0.01174207918 | D118: =四支股票!H120 -> 0.005089069507 | E118: =四支股票!L120 -> 0.005550411875 | F118: =四支股票!P120 -> 0.006788892149 | G118: =四支股票!T120 -> -0.06263555041
A119: 118 | B119: 2021-07-05 | C119: =四支股票!D121 -> -0.0003493913327 | D119: =四支股票!H121 -> 0.001690617478 | E119: =四支股票!L121 -> -0.001846778012 | F119: =四支股票!P121 -> -0.001354082761 | G119: =四支股票!T121 -> 0.0225573695
A120: 119 | B120: 2021-07-06 | C120: =四支股票!D122 -> -0.003488499177 | D120: =四支股票!H122 -> 0.003372684479 | E120: =四支股票!L122 -> -0.00185010232 | F120: =四支股票!P122 -> 0.001354082761 | G120: =四支股票!T122 -> 0.02205967757
A121: 120 | B121: 2021-07-07 | C121: =四支股票!D123 -> 0.0008623617391 | D121: =四支股票!H123 -> -0.01015237146 | E121: =四支股票!L123 -> 0.007380144062 | F121: =四支股票!P123 -> 0.002702650294 | G121: =四支股票!T123 -> 0.1214128553
A122: 121 | B122: 2021-07-08 | C122: =四支股票!D124 -> -0.01151847061 | D122: =四支股票!H124 -> -0.00682596507 | E122: =四支股票!L124 -> -0.01109074205 | F122: =四支股票!P124 -> -0.004056733055 | G122: =四支股票!T124 -> -0.03390155936
A123: 122 | B123: 2021-07-09 | C123: =四支股票!D125 -> 0.008617170544 | D123: =四支股票!H125 -> 0.01529341617 | E123: =四支股票!L125 -> 0.03470671631 | F123: =四支股票!P125 -> -0.01227010581 | G123: =四支股票!T125 -> -0.04706752164
A124: 123 | B124: 2021-07-12 | C124: =四支股票!D126 -> 0.001861342748 | D124: =四支股票!H126 -> 0.02333439206 | E124: =四支股票!L126 -> 0.007155611991 | F124: =四支股票!P126 -> 0.01362418857 | G124: =四支股票!T126 -> -0.01212136315
A125: 124 | B125: 2021-07-13 | C125: =四支股票!D127 -> -9.915208243e-05 | D125: =四支股票!H127 -> 0.009836144877 | E125: =四支股票!L127 -> 0.01591549096 | F125: =四支股票!P127 -> -0.009517475034 | G125: =四支股票!T127 -> -0.04574601208
A126: 125 | B126: 2021-07-14 | C126: =四支股票!D128 -> 0.01050398571 | D126: =四支股票!H128 -> 0.001629992211 | E126: =四支股票!L128 -> 0.0191143616 | F126: =四支股票!P128 -> 0.002728582885 | G126: =四支股票!T128 -> 0.07774878961
A127: 126 | B127: 2021-07-15 | C127: =四支股票!D129 -> -0.007734055843 | D127: =四支股票!H129 -> -0.0415687445 | E127: =四支股票!L129 -> 0.0288400148 | F127: =四支股票!P129 -> -0.004095623472 | G127: =四支股票!T129 -> 0.02718610725
A128: 127 | B128: 2021-07-16 | C128: =四支股票!D130 -> -0.00594097223 | D128: =四支股票!H130 -> -0.01195573592 | E128: =四支股票!L130 -> -0.001673607085 | F128: =四支股票!P130 -> 0.001367040588 | G128: =四支股票!T130 -> -0.02325686695
A129: 128 | B129: 2021-07-19 | C129: =四支股票!D131 -> -0.01475250936 | D129: =四支股票!H131 -> -0.00171969088 | E129: =四支股票!L131 -> -0.03061461803 | F129: =四支股票!P131 -> -0.009608818123 | G129: =四支股票!T131 -> 0.003913861772
A130: 129 | B130: 2021-07-20 | C130: =四支股票!D132 -> -0.003998639836 | D130: =四支股票!H132 -> 0.00686109038 | E130: =四支股票!L132 -> 0.006884657083 | F130: =四支股票!P132 -> 0.002754781413 | G130: =四支股票!T132 -> -0.06453849862
A131: 130 | B131: 2021-07-21 | C131: =四支股票!D133 -> 0.006482317172 | D131: =四支股票!H133 -> 0.01020417017 | E131: =四支股票!L133 -> 0.03040773206 | F131: =四支股票!P133 -> 0.01094406294 | G131: =四支股票!T133 -> 0.06843721642
A132: 131 | B132: 2021-07-22 | C132: =四支股票!D134 -> 3.356607223e-05 | D132: =四支股票!H134 -> -0.01020417017 | E132: =四支股票!L134 -> 0.003322278886 | F132: =四支股票!P134 -> -0.004090026235 | G132: =四支股票!T134 -> 0.01544428738
A133: 132 | B133: 2021-07-23 | C133: =四支股票!D135 -> -0.009684261901 | D133: =四支股票!H135 -> -0.008583743691 | E133: =四支股票!L135 -> -0.07041531246 | F133: =四支股票!P135 -> -0.009608818123 | G133: =四支股票!T135 -> -0.003838739317
A134: 133 | B134: 2021-07-26 | C134: =四支股票!D136 -> -0.007711499539 | D134: =四支股票!H136 -> 0 | E134: =四支股票!L136 -> -0.02158358946 | F134: =四支股票!P136 -> 0.01097408796 | G134: =四支股票!T136 -> -0.02334736793
A135: 134 | B135: 2021-07-27 | C135: =四支股票!D137 -> -0.007827279397 | D135: =四支股票!H137 -> -0.001725625967 | E135: =四支股票!L137 -> -0.02205973665 | F135: =四支股票!P137 -> -0.009595755538 | G135: =四支股票!T137 -> 0.01562528248
A136: 135 | B136: 2021-07-28 | C136: =四支股票!D138 -> 0.01549568338 | D136: =四支股票!H138 -> 0.006884708777 | E136: =四支股票!L138 -> 0.01841672713 | F136: =四支股票!P138 -> 0.01232051194 | G136: =四支股票!T138 -> -0.003883462614
A137: 136 | B137: 2021-07-29 | C137: =四支股票!D139 -> -0.008969722544 | D137: =四支股票!H139 -> -0.00515908281 | E137: =四支股票!L139 -> -0.009165967182 | F137: =四支股票!P139 -> -0.004090026235 | G137: =四支股票!T139 -> -0.01174181987
A138: 137 | B138: 2021-07-30 | C138: =四支股票!D140 -> 0.01472625545 | D138: =四支股票!H140 -> 0.01709443336 | E138: =四支股票!L140 -> 0.02724964294 | F138: =四支股票!P140 -> 0.02028467199 | G138: =四支股票!T140 -> 0.007843102067
A139: 138 | B139: 2021-08-02 | C139: =四支股票!D141 -> 0.002879906874 | D139: =四支股票!H141 -> 0.006756782463 | E139: =四支股票!L141 -> -0.007194221612 | F139: =四支股票!P141 -> 0.004008061558 | G139: =四支股票!T141 -> -0.01574832286
A140: 139 | B140: 2021-08-03 | C140: =四支股票!D142 -> 0.003987244806 | D140: =四支股票!H142 -> 0.003361347703 | E140: =四支股票!L142 -> -0.003616658455 | F140: =四支股票!P142 -> 0.006644542719 | G140: =四支股票!T142 -> 0.01574832286
A141: 140 | B141: 2021-08-04 | C141: =四支股票!D143 -> -0.001179293193 | D141: =四支股票!H143 -> 0 | E141: =四支股票!L143 -> 0 | F141: =四支股票!P143 -> -0.002652481608 | G141: =四支股票!T143 -> 0.007782180414
A142: 141 | B142: 2021-08-05 | C142: =四支股票!D144 -> -0.004374681604 | D142: =四支股票!H144 -> -0.008424649659 | E142: =四支股票!L144 -> -0.001813291538 | F142: =四支股票!P144 -> -0.001328983584 | G142: =四支股票!T144 -> 0.003868439654
A143: 142 | B143: 2021-08-06 | C143: =四支股票!D145 -> -0.002349457036 | D143: =四支股票!H145 -> 0.00674538814 | E143: =四支股票!L145 -> 0.001813291538 | F143: =四支股票!P145 -> -0.008010710662 | G143: =四支股票!T145 -> -0.02739894293
A144: 143 | B144: 2021-08-09 | C144: =四支股票!D146 -> -0.009279892828 | D144: =四支股票!H146 -> -0.00674538814 | E144: =四支股票!L146 -> -0.005449586454 | F144: =四支股票!P146 -> 0.005347633136 | G144: =四支股票!T146 -> -0.08269171398
A145: 144 | B145: 2021-08-10 | C145: =四支股票!D147 -> -0.005583727781 | D145: =四支股票!H147 -> -0.001693480506 | E145: =四支股票!L147 -> 0.01983830579 | F145: =四支股票!P147 -> -0.008032144816 | G145: =四支股票!T147 -> 0.02972614532
A146: 145 | B146: 2021-08-11 | C146: =四支股票!D148 -> -0.0004203681055 | D146: =四支股票!H148 -> -0.006802747323 | E146: =四支股票!L148 -> 0 | F146: =四支股票!P148 -> -0.01899652757 | G146: =四支股票!T148 -> 0.05296556866
A147: 146 | B147: 2021-08-12 | C147: =四支股票!D149 -> -0.01390758271 | D147: =四支股票!H149 -> -0.008569032725 | E147: =四支股票!L149 -> -0.0180185055 | F147: =四支股票!P149 -> -0.0448253884 | G147: =四支股票!T149 -> 0.00396036419
A148: 147 | B148: 2021-08-13 | C148: =四支股票!D150 -> -0.007289431843 | D148: =四支股票!H150 -> 0.005150225976 | E148: =四支股票!L150 -> -0.01280897671 | F148: =四支股票!P150 -> 0.004288712762 | G148: =四支股票!T150 -> -0.05275053995
A149: 148 | B149: 2021-08-16 | C149: =四支股票!D151 -> -0.01177873981 | D149: =四支股票!H151 -> 0 | E149: =四支股票!L151 -> 0 | F149: =四支股票!P151 -> 0 | G149: =四支股票!T151 -> -0.06899284468
A150: 149 | B150: 2021-08-17 | C150: =四支股票!D152 -> 0.009849099173 | D150: =四支股票!H152 -> -0.01727158651 | E150: =四支股票!L152 -> 0.001839982103 | F150: =四支股票!P152 -> 0 | G150: =四支股票!T152 -> -0.004474303297
A151: 150 | B151: 2021-08-18 | C151: =四支股票!D153 -> -0.02716109514 | D151: =四支股票!H153 -> -0.02647992316 | E151: =四支股票!L153 -> -0.01109074205 | F151: =四支股票!P153 -> -0.01436806368 | G151: =四支股票!T153 -> -0.1168865629
A152: 151 | B152: 2021-08-19 | C152: =四支股票!D154 -> -0.002045396834 | D152: =四支股票!H154 -> -0.01260142688 | E152: =四支股票!L154 -> -0.001860428444 | F152: =四支股票!P154 -> -0.002898494783 | G152: =四支股票!T154 -> 0.008032154909
A153: 152 | B153: 2021-08-20 | C153: =四支股票!D155 -> 0.02417613032 | D153: =四支股票!H155 -> 0.02504603193 | E153: =四支股票!L155 -> 0.02573665972 | F153: =四支股票!P155 -> 0.008670545524 | G153: =四支股票!T155 -> 0.06765864122
A154: 153 | B154: 2021-08-23 | C154: =四支股票!D156 -> 0.004582208158 | D154: =四支股票!H156 -> 0.01054491318 | E154: =四支股票!L156 -> 0.0126241716 | F154: =四支股票!P156 -> 0.01428595725 | G154: =四支股票!T156 -> 0.1188209462
A155: 154 | B155: 2021-08-24 | C155: =四支股票!D157 -> 0.0134141481 | D155: =四支股票!H157 -> 0.02247285585 | E155: =四支股票!L157 -> 0.003577839269 | F155: =四支股票!P157 -> 0.001417406352 | G155: =四支股票!T157 -> 0.03265595072
A156: 155 | B156: 2021-08-25 | C156: =四支股票!D158 -> 0.00123716336 | D156: =四支股票!H158 -> 0.01526747213 | E156: =四支股票!L158 -> 0 | F156: =四支股票!P158 -> -0.01139606342 | G156: =四支股票!T158 -> -0.01171495805
A157: 156 | B157: 2021-08-26 | C157: =四支股票!D159 -> 0.008342038994 | D157: =四支股票!H159 -> 0.008382278753 | E157: =四支股票!L159 -> 0.02990550011 | F157: =四支股票!P159 -> 0.00997865707 | G157: =四支股票!T159 -> 0.05897402543
A158: 157 | B158: 2021-08-27 | C158: =四支股票!D160 -> 0.01078363457 | D158: =四支股票!H160 -> 0.009966859915 | E158: =四支股票!L160 -> 0.03071912171 | F158: =四支股票!P160 -> 0.01548233622 | G158: =四支股票!T160 -> 0.05151350301
A159: 158 | B159: 2021-08-30 | C159: =四支股票!D161 -> 0.005375656965 | D159: =四支股票!H161 -> 0.01476647012 | E159: =四支股票!L161 -> 0.001679227963 | F159: =四支股票!P161 -> 0.009729124625 | G159: =四支股票!T161 -> -0.008403406073
A160: 159 | B160: 2021-08-31 | C160: =四支股票!D162 -> -0.0009323132356 | D160: =四支股票!H162 -> -0.001629992211 | E160: =四支股票!L162 -> -0.006733981732 | F160: =四支股票!P162 -> -0.0125262733 | G160: =四支股票!T162 -> -0.0127389629
A161: 160 | B161: 2021-09-01 | C161: =四支股票!D163 -> -0.008865470273 | D161: =四支股票!H163 -> -0.009836144877 | E161: =四支股票!L163 -> -0.008481814912 | F161: =四支股票!P163 -> 0.002797148677 | G161: =四支股票!T163 -> 0.004264340713
A162: 161 | B162: 2021-09-02 | C162: =四支股票!D164 -> 0.0113192338 | D162: =四支股票!H164 -> 0.02119068698 | E162: =四支股票!L164 -> 0.01521579664 | F162: =四支股票!P164 -> 0.005571072982 | G162: =四支股票!T164 -> 0.01268520618
A163: 162 | B163: 2021-09-03 | C163: =四支股票!D165 -> -0.001234948444 | D163: =四支股票!H165 -> 0.0175863845 | E163: =四支股票!L165 -> -0.006733981732 | F163: =四支股票!P165 -> -0.006968669316 | G163: =四支股票!T165 -> 0.09607377127
A164: 163 | B164: 2021-09-06 | C164: =四支股票!D166 -> -0.003804340677 | D164: =四支股票!H166 -> -0.01275934375 | E164: =四支股票!L166 -> 0 | F164: =四支股票!P166 -> -0.01125191923 | G164: =四支股票!T166 -> 0
A165: 164 | B165: 2021-09-07 | C165: =四支股票!D167 -> -0.009128699187 | D165: =四支股票!H167 -> -0.006441246103 | E165: =四支股票!L167 -> -0.01189480454 | F165: =四支股票!P167 -> 0.002824931277 | G165: =四支股票!T167 -> 0.06644515285
A166: 165 | B166: 2021-09-08 | C166: =四支股票!D168 -> 0.001957485505 | D166: =四支股票!H168 -> 0 | E166: =四支股票!L168 -> 0.003412989632 | F166: =四支股票!P168 -> -0.05359725886 | G166: =四支股票!T168 -> -0.02898761234
A167: 166 | B167: 2021-09-09 | C167: =四支股票!D169 -> 0.009789935436 | D167: =四支股票!H169 -> 0.004834820055 | E167: =四支股票!L169 -> 0.008481814912 | F167: =四支股票!P169 -> 0.01769965098 | G167: =四支股票!T169 -> 0.02181912725
A168: 167 | B168: 2021-09-10 | C168: =四支股票!D170 -> -0.001618502825 | D168: =四支股票!H170 -> -0.01131782493 | E168: =四支股票!L170 -> 0.01175497973 | F168: =四支股票!P170 -> 0.01018184796 | G168: =四支股票!T170 -> -0.02550232342
A169: 168 | B169: 2021-09-13 | C169: =四支股票!D171 -> -0.0006542293745 | D169: =四支股票!H171 -> -0.00325733187 | E169: =四支股票!L171 -> -0.001670894276 | F169: =四支股票!P171 -> 0.004332194501 | G169: =四支股票!T171 -> -0.06478456271
A170: 169 | B170: 2021-09-14 | C170: =四支股票!D172 -> -0.004650939577 | D170: =四支股票!H172 -> -0.009836144877 | E170: =四支股票!L172 -> -0.005029331683 | F170: =四支股票!P172 -> 0 | G170: =四支股票!T172 -> 0.01562530817
A171: 170 | B171: 2021-09-15 | C171: =四支股票!D173 -> -0.004348543507 | D171: =四支股票!H173 -> -0.01159913584 | E171: =四支股票!L173 -> 0.003355724597 | F171: =四支股票!P173 -> -0.004332194501 | G171: =四支股票!T173 -> 0
A172: 171 | B172: 2021-09-16 | C172: =四支股票!D174 -> -0.0001105558681 | D172: =四支股票!H174 -> 0 | E172: =四支股票!L174 -> -0.01349091254 | F172: =四支股票!P174 -> 0.007209836775 | G172: =四支股票!T174 -> 0.05284245071
A173: 172 | B173: 2021-09-17 | C173: =四支股票!D175 -> -0.02052364284 | D173: =四支股票!H175 -> -0.02360986564 | E173: =四支股票!L175 -> -0.03630481649 | F173: =四支股票!P175 -> -0.01593079334 | G173: =四支股票!T175 -> -0.003683196173
A174: 173 | B174: 2021-09-22 | C174: =四支股票!D176 -> 0.008963723479 | D174: =四支股票!H176 -> 0.003407158322 | E174: =四支股票!L176 -> 0.01224863968 | F174: =四支股票!P176 -> 0.004370043276 | G174: =四支股票!T176 -> 0.02189867189
A175: 174 | B175: 2021-09-23 | C175: =四支股票!D177 -> 0.01059865338 | D175: =四支股票!H177 -> 0.01686380605 | E175: =四支股票!L177 -> 0.005203810574 | F175: =四支股票!P177 -> 0.004350913286 | G175: =四支股票!T177 -> -0.02189867189
A176: 175 | B176: 2021-09-24 | C176: =四支股票!D178 -> 0.003099449555 | D176: =四支股票!H178 -> 0.006666691358 | E176: =四支股票!L178 -> 0.01545098549 | F176: =四支股票!P178 -> 0.005772050741 | G176: =四支股票!T178 -> -0.03759838956
A177: 176 | B177: 2021-09-27 | C177: =四支股票!D179 -> -0.007672411969 | D177: =四支股票!H179 -> -0.01337812595 | E177: =四支股票!L179 -> 0.005097700036 | F177: =四支股票!P179 -> -0.01157759701 | G177: =四支股票!T179 -> -0.03906754519
A178: 177 | B178: 2021-09-28 | C178: =四支股票!D180 -> -0.01915500403 | D178: =四支股票!H180 -> -0.02385121582 | E178: =四支股票!L180 -> -0.01709443336 | F178: =四支股票!P180 -> -0.001456649983 | G178: =四支股票!T180 -> -0.03651513942
A179: 178 | B179: 2021-09-29 | C179: =四支股票!D181 -> 0.004694181574 | D179: =四支股票!H181 -> 0 | E179: =四支股票!L181 -> -0.001725591425 | F179: =四支股票!P181 -> -0.004382695077 | G179: =四支股票!T181 -> 0.03252317151
A180: 179 | B180: 2021-09-30 | C180: =四支股票!D182 -> -0.0217212979 | D180: =四支股票!H182 -> -0.01039870722 | E180: =四支股票!L182 -> -0.01742204284 | F180: =四支股票!P182 -> -0.01772579633 | G180: =四支股票!T182 -> -0.04499739086
A181: 180 | B181: 2021-10-01 | C181: =四支股票!D183 -> -0.009857251468 | D181: =四支股票!H183 -> -0.00349040494 | E181: =四支股票!L183 -> -0.005286426408 | F181: =四支股票!P183 -> 0.005943583707 | G181: =四支股票!T183 -> -0.004192822085
A182: 181 | B182: 2021-10-04 | C182: =四支股票!D184 -> 0.003188431446 | D182: =四支股票!H184 -> 0 | E182: =四支股票!L184 -> -0.003539755908 | F182: =四支股票!P184 -> -0.01192268993 | G182: =四支股票!T184 -> -0.04732068093
A183: 182 | B183: 2021-10-05 | C183: =四支股票!D185 -> -0.004114575041 | D183: =四支股票!H185 -> -0.001749781724 | E183: =四支股票!L185 -> 0.01233488767 | F183: =四支股票!P185 -> 0.008955373283 | G183: =四支股票!T185 -> 0.0174676819
A184: 183 | B184: 2021-10-06 | C184: =四支股票!D186 -> 0.01937409376 | D184: =四支股票!H186 -> 0.01563889388 | E184: =四支股票!L186 -> 0 | F184: =四支股票!P186 -> 0.01034742395 | G184: =四支股票!T186 -> 0.008620738065
A185: 184 | B185: 2021-10-07 | C185: =四支股票!D187 -> -0.004403020283 | D185: =四支股票!H187 -> -0.008658062743 | E185: =四支股票!L187 -> 0 | F185: =四支股票!P187 -> 0 | G185: =四支股票!T187 -> 0.01702167698
A186: 185 | B186: 2021-10-08 | C186: =四支股票!D188 -> -0.01072954728 | D186: =四支股票!H188 -> 0 | E186: =四支股票!L188 -> -0.01233488767 | F186: =四支股票!P188 -> -0.01183450229 | G186: =四支股票!T188 -> -0.008474622187
A187: 186 | B187: 2021-10-12 | C187: =四支股票!D189 -> -0.00700074206 | D187: =四支股票!H189 -> -0.006980831141 | E187: =四支股票!L189 -> -0.003552419272 | F187: =四支股票!P189 -> 0 | G187: =四支股票!T189 -> 0.01687802826
A188: 187 | B188: 2021-10-13 | C188: =四支股票!D190 -> 0.002400412914 | D188: =四支股票!H190 -> 0.003496507059 | E188: =四支股票!L190 -> 0.00709217518 | F188: =四支股票!P190 -> 0.007412932719 | G188: =四支股票!T190 -> -0.004192822085
A189: 188 | B189: 2021-10-14 | C189: =四支股票!D191 -> 0.02375320245 | D189: =四支股票!H191 -> 0.0460439385 | E189: =四支股票!L191 -> 0.02959312633 | F189: =四支股票!P191 -> 0.005891048182 | G189: =四支股票!T191 -> 0.05715837796
A190: 189 | B190: 2021-10-15 | C190: =四支股票!D192 -> -0.004522915443 | D190: =四支股票!H192 -> -0.01680711832 | E190: =四支股票!L192 -> 0.006837667666 | F190: =四支股票!P192 -> 0 | G190: =四支股票!T192 -> 0.03125252485
A191: 190 | B191: 2021-10-18 | C191: =四支股票!D193 -> 0.01161759325 | D191: =四支股票!H193 -> 0.01680711832 | E191: =四支股票!L193 -> -0.005123819789 | F191: =四支股票!P193 -> -0.004414944593 | G191: =四支股票!T193 -> -0.007722041742
A192: 191 | B192: 2021-10-19 | C192: =四支股票!D194 -> -0.0007605909308 | D192: =四支股票!H194 -> -0.003338901266 | E192: =四支股票!L194 -> -0.001713847877 | F192: =四支股票!P194 -> -0.005917191602 | G192: =四支股票!T194 -> 0.01156086498
A193: 192 | B193: 2021-10-20 | C193: =四支股票!D195 -> 0.0001000347273 | D193: =四支股票!H195 -> -0.003350086885 | E193: =四支股票!L195 -> 0.006837667666 | F193: =四支股票!P195 -> -0.005952428201 | G193: =四支股票!T195 -> 0
A194: 193 | B194: 2021-10-21 | C194: =四支股票!D196 -> -4.556375775e-05 | D194: =四支股票!H196 -> 0.006688988151 | E194: =四支股票!L196 -> -0.006837667666 | F194: =四支股票!P196 -> 0.004467661836 | G194: =四支股票!T196 -> 0.0339014824
A195: 194 | B195: 2021-10-22 | C195: =四支股票!D197 -> 0.0003256077452 | D195: =四支股票!H197 -> -0.01173525622 | E195: =四支股票!L197 -> 0.001713847877 | F195: =四支股票!P197 -> -0.002976267056 | G195: =四支股票!T197 -> 0.01470623302
A196: 195 | B196: 2021-10-25 | C196: =四支股票!D198 -> 0.008258548159 | D196: =四支股票!H198 -> 0.01006719912 | E196: =四支股票!L198 -> 0.01191496649 | F196: =四支股票!P198 -> 0.002976267056 | G196: =四支股票!T198 -> -0.0258794788
A197: 196 | B197: 2021-10-26 | C197: =四支股票!D199 -> 0.002357799089 | D197: =四支股票!H199 -> 0 | E197: =四支股票!L199 -> -0.006791146701 | F197: =四支股票!P199 -> -0.001487078341 | G197: =四支股票!T199 -> -0.01129959703
A198: 197 | B198: 2021-10-27 | C198: =四支股票!D200 -> -0.001929872022 | D198: =四支股票!H200 -> -0.00670019257 | E198: =四支股票!L200 -> -0.01027411444 | F198: =四支股票!P200 -> 0 | G198: =四支股票!T200 -> 0.003780769096
A199: 198 | B199: 2021-10-28 | C199: =四支股票!D201 -> -0.003186733876 | D199: =四支股票!H201 -> -0.008438868646 | E199: =四支股票!L201 -> 0 | F199: =四支股票!P201 -> -0.00896865537 | G199: =四支股票!T201 -> -0.007575789259
A200: 199 | B200: 2021-10-29 | C200: =四支股票!D202 -> 0.004746949705 | D200: =四支股票!H202 -> 0 | E200: =四支股票!L202 -> -0.008643096455 | F200: =四支股票!P202 -> 0.004494449513 | G200: =四支股票!T202 -> 0.007575789259
... 321 more rows

Sheet 四支股票
A1: 大盤^TWII | E1: 2330台積電 | I1: 2882國泰金 | M1: 1216統一 | Q1: 6763綠界科技
A3: 日期 | B3: 未調整 收盤價（元） | C3: 大盤報酬率 | D3: 大盤報酬率-Ln | E3: 日期 | F3: 未調整 收盤價（元） | G3: 台積電報酬率 | H3: 台積電報酬率-Ln | I3: 日期 | J3: 未調整 收盤價（元） | K3: 國泰金報酬率 | L3: 國泰金報酬率-Ln | M3: 日期 | N3: 未調整 收盤價（元） | O3: 統一報酬率 | P3: 統一報酬率-Ln | Q3: 日期 | R3: 未調整 收盤價（元） | S3: 綠界科技報酬率 | T3: 綠界科技報酬率-Ln
A4: 2021-01-04 | B4: 14902.03027 | C4: =(B5-B4)/B4 -> 0.006576285124 | D4: =LN(B5/B4) -> 0.006554755698 | E4: 2021-01-04 | F4: 536 | G4: =(F5-F4)/F4 -> 0.01119402985 | H4: =LN(F5/F4) -> 0.01113184037 | I4: 2021-01-04 | J4: 42.049999 | K4: =(J5-J4)/J4 -> 0.001189036889 | L4: =LN(J5/J4) -> 0.001188330545 | M4: 2021-01-04 | N4: 67.599998 | O4: =(N5-N4)/N4 -> -0.008875710322 | P4: =LN(N5/N4) -> -0.008915334072 | Q4: 2021-01-04 | R4: 226.122971 | S4: =(R5-R4)/R4 -> -0.009554164225 | T4: =LN(R5/R4) -> -0.009600098059
A5: 2021-01-05 | B5: 15000.03027 | C5: =(B6-B5)/B5 -> -0.001126690393 | D5: =LN(B6/B5) -> -0.001127325586 | E5: 2021-01-05 | F5: 542 | G5: =(F6-F5)/F5 -> 0.01291512915 | H5: =LN(F6/F5) -> 0.01283244007 | I5: 2021-01-05 | J5: 42.099998 | K5: =(J6-J5)/J5 -> -0.01306410988 | L5: =LN(J6/J5) -> -0.01315019595 | M5: 2021-01-05 | N5: 67 | O5: =(N6-N5)/N5 -> -0.01343286567 | P5: =LN(N6/N5) -> -0.01352390279 | Q5: 2021-01-05 | R5: 223.962555 | S5: =(R6-R5)/R5 -> 0.03054659293 | T5: =LN(R6/R5) -> 0.03008933424
A6: 2021-01-06 | B6: 14983.12988 | C6: 0.01540867087 | D6: 0.01529116286 | E6: 2021-01-06 | F6: 549 | G6: 0.029143898 | H6: 0.02872728964 | I6: 2021-01-06 | J6: 41.549999 | K6: 0.008423658446 | L6: 0.008388377427 | M6: 2021-01-06 | N6: 66.099998 | O6: 0.007564296749 | P6: 0.007535830916 | Q6: 2021-01-06 | R6: 230.803848 | S6: -0.003120129956 | T6: -0.00312500771
A7: 2021-01-07 | B7: 15214 | C7: 0.01642895984 | D7: 0.01629546462 | E7: 2021-01-07 | F7: 565 | G7: 0.02654867257 | H7: 0.02620237239 | I7: 2021-01-07 | J7: 41.900002 | K7: 0.02267293448 | L7: 0.02241972371 | M7: 2021-01-07 | N7: 66.599998 | O7: 0.016516502 | P7: 0.01638158809 | Q7: 2021-01-07 | R7: 230.08371 | S7: -0.010954613 | T7: -0.0110150566
A8: 2021-01-08 | B8: 15463.95019 | C8: 0.00603659536 | D8: 0.006018448114 | E8: 2021-01-08 | F8: 580 | G8: 0.006896551724 | H8: 0.006872879288 | I8: 2021-01-08 | J8: 42.849998 | K8: -0.00583430599 | L8: -0.005851392042 | M8: 2021-01-08 | N8: 67.699997 | O8: -0.005908331133 | P8: -0.005925854378 | Q8: 2021-01-08 | R8: 227.563232 | S8: -0.003164562191 | T8: -0.003169580007
A9: 2021-01-11 | B9: 15557.29981 | C9: -0.003638138412 | D9: -0.003644772533 | E9: 2021-01-11 | F9: 584 | G9: 0.01198630137 | H9: 0.01191503458 | I9: 2021-01-11 | J9: 42.599998 | K9: -0.007042230378 | L9: -0.007067143915 | M9: 2021-01-11 | N9: 67.300003 | O9: -0.004457696681 | P9: -0.004467661836 | Q9: 2021-01-11 | R9: 226.843094 | S9: -0.00158727336 | T9: -0.001588534413
A10: 2021-01-12 | B10: 15500.70019 | C10: 0.01737213614 | D10: 0.01722296571 | E10: 2021-01-12 | F10: 591 | G10: 0.02368866328 | H10: 0.02341244062 | I10: 2021-01-12 | J10: 42.299999 | K10: 0.002364137172 | L10: 0.002361346996 | M10: 2021-01-12 | N10: 67 | O10: 0 | P10: 0 | Q10: 2021-01-12 | R10: 226.483032 | S10: -0.004769452221 | T10: -0.004780862353
A11: 2021-01-13 | B11: 15769.98047 | C11: -0.003981618057 | D11: -0.003989565802 | E11: 2021-01-13 | F11: 605 | G11: -0.02148760331 | H11: -0.02172182315 | I11: 2021-01-13 | J11: 42.400002 | K11: 0.002358443285 | L11: 0.002355666523 | M11: 2021-01-13 | N11: 67 | O11: -0.002985029851 | P11: -0.002989493938 | Q11: 2021-01-13 | R11: 225.402832 | S11: -0.006389791056 | T11: -0.006410293154
A12: 2021-01-14 | B12: 15707.19043 | C12: -0.005780841736 | D12: -0.005797615477 | E12: 2021-01-14 | F12: 592 | G12: 0.0152027027 | H12: 0.01508829965 | I12: 2021-01-14 | J12: 42.5 | K12: -0.01647061176 | L12: -0.01660776032 | M12: 2021-01-14 | N12: 66.800003 | O12: -0.01197609228 | P12: -0.01204838343 | Q12: 2021-01-14 | R12: 223.962555 | S12: -0.004823199128 | T12: -0.00483486829
A13: 2021-01-15 | B13: 15616.38965 | C13: -0.0002810923715 | D13: -0.0002811318853 | E13: 2021-01-15 | F13: 601 | G13: 0.009983361065 | H13: 0.009933856524 | I13: 2021-01-15 | J13: 41.799999 | K13: -0.01435401948 | L13: -0.01445803498 | M13: 2021-01-15 | N13: 66 | O13: 0.02121215152 | P13: 0.02099030557 | Q13: 2021-01-15 | R13: 222.882339 | S13: -0.008077526502 | T13: -0.008110326467
A14: 2021-01-18 | B14: 15612 | C14: 0.01699782968 | D14: 0.01685498303 | E14: 2021-01-18 | F14: 607 | G14: 0.03294892916 | H14: 0.03241774957 | I14: 2021-01-18 | J14: 41.200001 | K14: 0.003640703795 | L14: 0.003634092475 | M14: 2021-01-18 | N14: 67.400002 | O14: -0.004451097791 | P14: -0.00446103342 | Q14: 2021-01-18 | R14: 221.082001 | S14: -0.008143308781 | T14: -0.00817664663
A15: 2021-01-19 | B15: 15877.37012 | C15: -0.004483767052 | D15: -0.004493849284 | E15: 2021-01-19 | F15: 627 | G15: 0.03189792663 | H15: 0.03139975387 | I15: 2021-01-19 | J15: 41.349998 | K15: -0.01692856188 | L15: -0.01707348791 | M15: 2021-01-19 | N15: 67.099998 | O15: -0.04172868977 | P15: -0.04262433627 | Q15: 2021-01-19 | R15: 219.281662 | S15: 0.003284082186 | T15: 0.003278701366
A16: 2021-01-20 | B16: 15806.17969 | C16: 0.02199075614 | D16: 0.02175244687 | E16: 2021-01-20 | F16: 647 | G16: 0.04018547141 | H16: 0.03939903514 | I16: 2021-01-20 | J16: 40.650002 | K16: 0 | L16: 0 | M16: 2021-01-20 | N16: 64.300003 | O16: 0.02799370009 | P16: 0.0276090387 | Q16: 2021-01-20 | R16: 220.001801 | S16: 0.04091652413 | T16: 0.04010159827
A17: 2021-01-21 | B17: 16153.76953 | C17: -0.00834104125 | D17: -0.00837602239 | E17: 2021-01-21 | F17: 673 | G17: -0.03566121842 | H17: -0.03631261294 | I17: 2021-01-21 | J17: 40.650002 | K17: -0.00246009828 | L17: -0.002463129294 | M17: 2021-01-21 | N17: 66.099998 | O17: 0.009077140971 | P17: 0.009036191344 | Q17: 2021-01-21 | R17: 229.00351 | S17: 0.0267295903 | T17: 0.02637859569
A18: 2021-01-22 | B18: 16019.03027 | C18: -0.00452525732 | D18: -0.004535527291 | E18: 2021-01-22 | F18: 649 | G18: -0.02465331279 | H18: -0.02496229456 | I18: 2021-01-22 | J18: 40.549999 | K18: 0.01109743554 | L18: 0.0110363108 | M18: 2021-01-22 | N18: 66.699997 | O18: 0 | P18: 0 | Q18: 2021-01-22 | R18: 235.12468 | S18: -0.0030627963 | T18: -0.00306749626
A19: 2021-01-25 | B19: 15946.54004 | C19: -0.01804093109 | D19: -0.01820565285 | E19: 2021-01-25 | F19: 633 | G19: -0.0252764613 | H19: -0.02560139824 | I19: 2021-01-25 | J19: 41 | K19: -0.01219512195 | L19: -0.01227009259 | M19: 2021-01-25 | N19: 66.699997 | O19: 0.004497796304 | P19: 0.004487711447 | Q19: 2021-01-25 | R19: 234.404541 | S19: -0.01689708733 | T19: -0.01704147187
A20: 2021-01-26 | B20: 15658.84961 | C20: 0.002720543786 | D20: 0.002716849805 | E20: 2021-01-26 | F20: 617 | G20: -0.003241491086 | H20: -0.003246756099 | I20: 2021-01-26 | J20: 40.5 | K20: 0 | L20: 0 | M20: 2021-01-26 | N20: 67 | O20: 0.002985029851 | P20: 0.002980583495 | Q20: 2021-01-26 | R20: 230.443787 | S20: -0.009375023853 | T20: -0.009419245996
A21: 2021-01-27 | B21: 15701.45019 | C21: -0.01818751188 | D21: -0.01835493782 | E21: 2021-01-27 | F21: 615 | G21: -0.02276422764 | H21: -0.02302733327 | I21: 2021-01-27 | J21: 40.5 | K21: -0.009876592593 | L21: -0.009925689675 | M21: 2021-01-27 | N21: 67.199997 | O21: 0.01041674154 | P21: 0.01036286113 | Q21: 2021-01-27 | R21: 228.283371 | S21: -0.02208200702 | T21: -0.02232946422
A22: 2021-01-28 | B22: 15415.87988 | C22: -0.01800547975 | D22: -0.01816955083 | E22: 2021-01-28 | F22: 601 | G22: -0.01663893511 | H22: -0.01677891713 | I22: 2021-01-28 | J22: 40.099998 | K22: -0.00498743167 | L22: -0.004999910416 | M22: 2021-01-28 | N22: 67.900002 | O22: 0.001472724552 | P22: 0.001471641156 | Q22: 2021-01-28 | R22: 223.242416 | S22: -0.01451612582 | T22: -0.01462251561
A23: 2021-01-29 | B23: 15138.30957 | C23: 0.01795314548 | D23: 0.01779389102 | E23: 2021-01-29 | F23: 591 | G23: 0.03384094755 | H23: 0.03328094177 | I23: 2021-01-29 | J23: 39.900002 | K23: 0 | L23: 0 | M23: 2021-01-29 | N23: 68 | O23: 0 | P23: 0 | Q23: 2021-01-29 | R23: 220.001801 | S23: 0.0310965318 | T23: 0.03062282994
A24: 2021-02-01 | B24: 15410.08984 | C24: 0.02270979368 | D24: 0.02245576509 | E24: 2021-02-01 | F24: 611 | G24: 0.03436988543 | H24: 0.03379243498 | I24: 2021-02-01 | J24: 39.900002 | K24: 0.01002498697 | L24: 0.009975070118 | M24: 2021-02-01 | N24: 68 | O24: -0.005882382353 | P24: -0.005899751713 | Q24: 2021-02-01 | R24: 226.843094 | S24: 0.004761947922 | T24: 0.004750645714
A25: 2021-02-02 | B25: 15760.04981 | C25: 0.0007151314964 | D25: 0.0007148759117 | E25: 2021-02-02 | F25: 632 | G25: -0.003164556962 | H25: -0.003169574761 | I25: 2021-02-02 | J25: 40.299999 | K25: 0 | L25: 0 | M25: 2021-02-02 | N25: 67.599998 | O25: 0.007396449923 | P25: 0.007369230324 | Q25: 2021-02-02 | R25: 227.923309 | S25: 0.0205370746 | T25: 0.02032903245
A26: 2021-02-03 | B26: 15771.32031 | C26: -0.004127782881 | D26: -0.004136325694 | E26: 2021-02-03 | F26: 630 | G26: -0.004761904762 | H26: -0.004773278753 | I26: 2021-02-03 | J26: 40.299999 | K26: 0.009925608187 | L26: 0.00987667288 | M26: 2021-02-03 | N26: 68.099998 | O26: 0.005873744666 | P26: 0.005856561481 | Q26: 2021-02-03 | R26: 232.604187 | S26: -0.003095915896 | T26: -0.003100718158
A27: 2021-02-04 | B27: 15706.21973 | C27: 0.00612373096 | D27: 0.006105057116 | E27: 2021-02-04 | F27: 627 | G27: 0.007974481659 | H27: 0.007942853514 | I27: 2021-02-04 | J27: 40.700001 | K27: -0.002457076107 | L27: -0.002460099672 | M27: 2021-02-04 | N27: 68.5 | O27: 0.002919664234 | P27: 0.002915410292 | Q27: 2021-02-04 | R27: 231.884064 | S27: 0 | T27: 0
A28: 2021-02-05 | B28: 15802.40039 | C28: 0.03543067092 | D28: 0.03481744734 | E28: 2021-02-05 | F28: 632 | G28: 0.04905063291 | H28: 0.04788559604 | I28: 2021-02-05 | J28: 40.599998 | K28: 0.03325130706 | L28: 0.0327104394 | M28: 2021-02-05 | N28: 68.699997 | O28: 0.001455691476 | P28: 0.001454632984 | Q28: 2021-02-05 | R28: 231.884064 | S28: 0.003105530357 | T28: 0.003100718158
A29: 2021-02-17 | B29: 16362.29004 | C29: 0.003802629513 | D29: 0.003795417794 | E29: 2021-02-17 | F29: 663 | G29: -0.004524886878 | H29: -0.004535155165 | I29: 2021-02-17 | J29: 41.950001 | K29: 0.005959475424 | L29: 0.005941787988 | M29: 2021-02-17 | N29: 68.800003 | O29: -0.001453575518 | P29: -0.001454632984 | Q29: 2021-02-17 | R29: 232.604187 | S29: -0.001547960098 | T29: -0.001549159426
A30: 2021-02-18 | B30: 16424.50977 | C30: -0.005061331156 | D30: -0.005074183076 | E30: 2021-02-18 | F30: 660 | G30: -0.01212121212 | H30: -0.01219527309 | I30: 2021-02-18 | J30: 42.200001 | K30: -0.008293909756 | L30: -0.008328495593 | M30: 2021-02-18 | N30: 68.699997 | O30: -0.004366739638 | P30: -0.004376301692 | Q30: 2021-02-18 | R30: 232.244125 | S30: 0.0542635987 | T30: 0.0528425125
A31: 2021-02-19 | B31: 16341.37988 | C31: 0.004208963594 | D31: 0.004200130683 | E31: 2021-02-19 | F31: 652 | G31: -0.003067484663 | H31: -0.003072199037 | I31: 2021-02-19 | J31: 41.849998 | K31: 0.004778996644 | L31: 0.004767613492 | M31: 2021-02-19 | N31: 68.400002 | O31: 0.001461959022 | P31: 0.0014608914 | Q31: 2021-02-19 | R31: 244.846527 | S31: 0 | T31: 0
A32: 2021-02-22 | B32: 16410.16016 | C32: 0.002025588701 | D32: 0.002023539963 | E32: 2021-02-22 | F32: 650 | G32: -0.01384615385 | H32: -0.01394290597 | I32: 2021-02-22 | J32: 42.049999 | K32: 0.01545783628 | L32: 0.01533958102 | M32: 2021-02-22 | N32: 68.5 | O32: 0.007299270073 | P32: 0.007272759329 | Q32: 2021-02-22 | R32: 244.846527 | S32: 0.007352928473 | T32: 0.007326027482
A33: 2021-02-23 | B33: 16443.40039 | C33: -0.01404029048 | D33: -0.01413978777 | E33: 2021-02-23 | F33: 641 | G33: -0.02496099844 | H33: -0.02527780718 | I33: 2021-02-23 | J33: 42.700001 | K33: -0.001170936741 | L33: -0.001171622823 | M33: 2021-02-23 | N33: 69 | O33: 0.001449246377 | P33: 0.001448197233 | Q33: 2021-02-23 | R33: 246.646866 | S33: -0.01313868711 | T33: -0.01322576321
A34: 2021-02-24 | B34: 16212.53027 | C34: 0.01478174048 | D34: 0.01467355536 | E34: 2021-02-24 | F34: 625 | G34: 0.016 | H34: 0.01587334916 | I34: 2021-02-24 | J34: 42.650002 | K34: 0.02227423108 | L34: 0.02202978365 | M34: 2021-02-24 | N34: 69.099998 | O34: 0.01157748225 | P34: 0.01151097602 | Q34: 2021-02-24 | R34: 243.40625 | S34: 0 | T34: 0
A35: 2021-02-25 | B35: 16452.17969 | C35: -0.03029263553 | D35: -0.03076093912 | E35: 2021-02-25 | F35: 635 | G35: -0.04566929134 | H35: -0.04674501282 | I35: 2021-02-25 | J35: 43.599998 | K35: -0.03784396963 | L35: -0.03857864773 | M35: 2021-02-25 | N35: 69.900002 | O35: -0.03862667987 | P35: -0.03939247497 | Q35: 2021-02-25 | R35: 243.40625 | S35: -0.0118343469 | T35: -0.01190493021
A36: 2021-02-26 | B36: 15953.79981 | C36: -0.0004337475764 | D36: -0.0004338416721 | E36: 2021-02-26 | F36: 606 | G36: 0.00495049505 | H36: 0.004938281641 | I36: 2021-02-26 | J36: 41.950001 | K36: -0.001191871247 | L36: -0.00119258209 | M36: 2021-02-26 | N36: 67.199997 | O36: 0.01190480708 | P36: 0.01183450229 | Q36: 2021-02-26 | R36: 240.525696 | S36: 0.03592816545 | T36: 0.03529780306
A37: 2021-03-02 | B37: 15946.87988 | C37: 0.01660830131 | D37: 0.01647189175 | E37: 2021-03-02 | F37: 609 | G37: 0.02134646962 | H37: 0.02112182503 | I37: 2021-03-02 | J37: 41.900002 | K37: 0.01551305415 | L37: 0.01539395686 | M37: 2021-03-02 | N37: 68 | O37: 0.01617644118 | P37: 0.01604699665 | Q37: 2021-03-02 | R37: 249.167343 | S37: -0.01734102049 | T37: -0.01749313712
A38: 2021-03-03 | B38: 16211.73047 | C38: -0.01883329565 | D38: -0.01901290078 | E38: 2021-03-03 | F38: 622 | G38: -0.03376205788 | H38: -0.0343451582 | I38: 2021-03-03 | J38: 42.549999 | K38: -0.004700376139 | L38: -0.004711457645 | M38: 2021-03-03 | N38: 69.099998 | O38: -0.008683039325 | P38: -0.008720956562 | Q38: 2021-03-03 | R38: 244.846527 | S38: 0.02352940461 | T38: 0.02325685517
A39: 2021-03-04 | B39: 15906.41016 | C39: -0.003217551069 | D39: -0.003222738517 | E39: 2021-03-04 | F39: 601 | G39: 0 | H39: 0 | I39: 2021-03-04 | J39: 42.349998 | K39: 0.004722574013 | L39: 0.004711457645 | M39: 2021-03-04 | N39: 68.5 | O39: -0.001459824818 | P39: -0.0014608914 | Q39: 2021-03-04 | R39: 250.60762 | S39: -0.01724141908 | T39: -0.01739178317
A40: 2021-03-05 | B40: 15855.23047 | C40: -0.00221504929 | D40: -0.002217506141 | E40: 2021-03-05 | F40: 601 | G40: -0.004991680532 | H40: -0.005004180585 | I40: 2021-03-05 | J40: 42.549999 | K40: 0.00822568762 | L40: 0.008192041036 | M40: 2021-03-05 | N40: 68.400002 | O40: 0.005847967665 | P40: 0.005830934676 | Q40: 2021-03-05 | R40: 246.286789 | S40: 0.00292398144 | T40: 0.002919714921
A41: 2021-03-08 | B41: 15820.11035 | C41: 0.002084656255 | D41: 0.002082486374 | E41: 2021-03-08 | F41: 598 | G41: -0.005016722408 | H41: -0.005029348405 | I41: 2021-03-08 | J41: 42.900002 | K41: 0.03263396118 | L41: 0.03211278192 | M41: 2021-03-08 | N41: 68.800003 | O41: 0.01889527534 | P41: 0.01871897697 | Q41: 2021-03-08 | R41: 247.006927 | S41: 0.01895045235 | T41: 0.01877312926
A42: 2021-03-09 | B42: 15853.08984 | C42: 0.003695183625 | D42: 0.003688373206 | E42: 2021-03-09 | F42: 595 | G42: 0.003361344538 | H42: 0.003355707847 | I42: 2021-03-09 | J42: 44.299999 | K42: 0.005643340985 | L42: 0.005627476992 | M42: 2021-03-09 | N42: 70.099998 | O42: 0.001426519299 | P42: 0.001425502787 | Q42: 2021-03-09 | R42: 251.68782 | S42: -0.027181661 | T42: -0.02755791618
A43: 2021-03-10 | B43: 15911.66992 | C43: 0.01683604859 | D43: 0.01669589325 | E43: 2021-03-10 | F43: 597 | G43: 0.02010050251 | H43: 0.01990115432 | I43: 2021-03-10 | J43: 44.549999 | K43: 0.02693604999 | L43: 0.02657966025 | M43: 2021-03-10 | N43: 70.199997 | O43: -0.005697920471 | P43: -0.005714215548 | Q43: 2021-03-10 | R43: 244.846527 | S43: -0.002941181191 | T43: -0.002945514965
A44: 2021-03-11 | B44: 16179.55957 | C44: 0.004673805716 | D44: 0.004662917399 | E44: 2021-03-11 | F44: 609 | G44: 0.008210180624 | H44: 0.008176660437 | I44: 2021-03-11 | J44: 45.75 | K44: 0.00327873224 | L44: 0.003273368918 | M44: 2021-03-11 | N44: 69.800003 | O44: 0.00286528641 | P44: 0.002861189301 | Q44: 2021-03-11 | R44: 244.126389 | S44: -0.00442482275 | T44: -0.004434641253
A45: 2021-03-12 | B45: 16255.17969 | C45: -0.0003598612942 | D45: -0.0003599260598 | E45: 2021-03-12 | F45: 614 | G45: -0.004885993485 | H45: -0.004897968976 | I45: 2021-03-12 | J45: 45.900002 | K45: 0.01742917135 | L45: 0.01727902545 | M45: 2021-03-12 | N45: 70 | O45: -0.004285757143 | P45: -0.004294967324 | Q45: 2021-03-12 | R45: 243.046173 | S45: 0.001481516847 | T45: 0.001480420484
A46: 2021-03-15 | B46: 16249.33008 | C46: 0.003928166742 | D46: 0.003920471641 | E46: 2021-03-15 | F46: 611 | G46: 0.003273322422 | H46: 0.003267976765 | I46: 2021-03-15 | J46: 46.700001 | K46: -0.005353318943 | L46: -0.0053676993 | M46: 2021-03-15 | N46: 69.699997 | O46: -0.005738795082 | P46: -0.005755325239 | Q46: 2021-03-15 | R46: 243.40625 | S46: 0.00591717345 | T46: 0.005899735733
A47: 2021-03-16 | B47: 16313.16016 | C47: -0.005966951962 | D47: -0.005984825355 | E47: 2021-03-16 | F47: 613 | G47: -0.01468189233 | H47: -0.014790738 | I47: 2021-03-16 | J47: 46.450001 | K47: -0.0139935842 | L47: -0.0140924175 | M47: 2021-03-16 | N47: 69.300003 | O47: 0.001442986951 | P47: 0.001441946845 | Q47: 2021-03-16 | R47: 244.846527 | S47: -0.01470591821 | T47: -0.01481512218
A48: 2021-03-17 | B48: 16215.82031 | C48: 0.004441312842 | D48: 0.004431479317 | E48: 2021-03-17 | F48: 604 | G48: -0.003311258278 | H48: -0.003316752626 | I48: 2021-03-17 | J48: 45.799999 | K48: -0.007641877896 | L48: -0.00767122666 | M48: 2021-03-17 | N48: 69.400002 | O48: 0.0100863974 | P48: 0.01003586918 | Q48: 2021-03-17 | R48: 241.245834 | S48: 0.01492541007 | T48: 0.01481512218
A49: 2021-03-18 | B49: 16287.83984 | C49: -0.01335963591 | D49: -0.0134496787 | E49: 2021-03-18 | F49: 602 | G49: -0.01827242525 | H49: -0.0184414279 | I49: 2021-03-18 | J49: 45.450001 | K49: -0.01870193578 | L49: -0.01887902844 | M49: 2021-03-18 | N49: 70.099998 | O49: -0.0228245085 | P49: -0.02308902024 | Q49: 2021-03-18 | R49: 244.846527 | S49: 0 | T49: 0
A50: 2021-03-19 | B50: 16070.24023 | C50: 0.007403715891 | D50: 0.007376442918 | E50: 2021-03-19 | F50: 591 | G50: 0.003384094755 | H50: 0.003378381592 | I50: 2021-03-19 | J50: 44.599998 | K50: 0.02242152567 | L50: 0.02217385848 | M50: 2021-03-19 | N50: 68.5 | O50: 0.007299270073 | P50: 0.007272759329 | Q50: 2021-03-19 | R50: 244.846527 | S50: -0.008823551743 | T50: -0.008862709788
A51: 2021-03-22 | B51: 16189.21973 | C51: -0.0007183720523 | D51: -0.0007186302051 | E51: 2021-03-22 | F51: 593 | G51: 0.001686340641 | H51: 0.001684920365 | I51: 2021-03-22 | J51: 45.599998 | K51: 0.02631581256 | L51: 0.0259755089 | M51: 2021-03-22 | N51: 69 | O51: -0.001449246377 | P51: -0.00145029755 | Q51: 2021-03-22 | R51: 242.686111 | S51: 0.01632048486 | T51: 0.01618873727
A52: 2021-03-23 | B52: 16177.58984 | C52: -0.008992051869 | D52: -0.009032724371 | E52: 2021-03-23 | F52: 594 | G52: -0.0303030303 | H52: -0.03077165867 | I52: 2021-03-23 | J52: 46.799999 | K52: -0.00641023518 | L52: -0.006430868963 | M52: 2021-03-23 | N52: 68.900002 | O52: -0.005805544099 | P52: -0.005822461779 | Q52: 2021-03-23 | R52: 246.646866 | S52: -0.004379605618 | T52: -0.004389224185
A53: 2021-03-24 | B53: 16032.12012 | C53: 0.001747712143 | D53: 0.001746186671 | E53: 2021-03-24 | F53: 576 | G53: -0.001736111111 | H53: -0.001737619899 | I53: 2021-03-24 | J53: 46.5 | K53: 0.00752683871 | L53: 0.007498653402 | M53: 2021-03-24 | N53: 68.5 | O53: 0.01751820438 | P53: 0.01736652946 | Q53: 2021-03-24 | R53: 245.56665 | S53: 0.05865104647 | T53: 0.05699550001
A54: 2021-03-25 | B54: 16060.13965 | C54: 0.01530125145 | D54: 0.01518536791 | E54: 2021-03-25 | F54: 575 | G54: 0.02608695652 | H54: 0.0257524961 | I54: 2021-03-25 | J54: 46.849998 | K54: 0.01600853857 | L54: 0.01588175323 | M54: 2021-03-25 | N54: 69.699997 | O54: 0.02152080437 | P54: 0.02129250156 | Q54: 2021-03-25 | R54: 259.969391 | S54: 0.04709146701 | T54: 0.04601628911
A55: 2021-03-26 | B55: 16305.87988 | C55: 0.01043125677 | D55: 0.01037722663 | E55: 2021-03-26 | F55: 590 | G55: 0.01525423729 | H55: 0.01513906122 | I55: 2021-03-26 | J55: 47.599998 | K55: 0.008403403714 | L55: 0.008368291687 | M55: 2021-03-26 | N55: 71.199997 | O55: 0.007022472206 | P55: 0.006997929481 | Q55: 2021-03-26 | R55: 272.211731 | S55: 0.04100524602 | T55: 0.04018682903
A56: 2021-03-29 | B56: 16475.9707 | C56: 0.004790594097 | D56: 0.004779155718 | E56: 2021-03-29 | F56: 599 | G56: -0.003338898164 | H56: -0.003344484723 | I56: 2021-03-29 | J56: 48 | K56: 0 | L56: 0 | M56: 2021-03-29 | N56: 71.699997 | O56: 0.01813114441 | P56: 0.01796873538 | Q56: 2021-03-29 | R56: 283.37384 | S56: 0 | T56: 0
A57: 2021-03-30 | B57: 16554.90039 | C57: -0.007476307865 | D57: -0.007504395537 | E57: 2021-03-30 | F57: 597 | G57: -0.01675041876 | H57: -0.01689229356 | I57: 2021-03-30 | J57: 48 | K57: -0.001041645833 | L57: -0.001042188723 | M57: 2021-03-30 | N57: 73 | O57: 0 | P57: 0 | Q57: 2021-03-30 | R57: 283.37384 | S57: -0.005082603955 | T57: -0.00509556432
A58: 2021-03-31 | B58: 16431.13086 | C58: 0.008529445673 | D58: 0.00849327548 | E58: 2021-03-31 | F58: 587 | G58: 0.02555366269 | H58: 0.02523262548 | I58: 2021-03-31 | J58: 47.950001 | K58: 0 | L58: 0 | M58: 2021-03-31 | N58: 73 | O58: -0.006849315068 | P58: -0.006872879288 | Q58: 2021-03-31 | R58: 281.933563 | S58: 0.002554339371 | T58: 0.002551082591
A59: 2021-04-01 | B59: 16571.2793 | C59: 0.0147291029 | D59: 0.01462168318 | E59: 2021-04-01 | F59: 602 | G59: 0.01328903654 | H59: 0.01320151186 | I59: 2021-04-01 | J59: 47.950001 | K59: 0.001042731991 | L59: 0.001042188723 | M59: 2021-04-01 | N59: 72.5 | O59: 0.006896551724 | P59: 0.006872879288 | Q59: 2021-04-01 | R59: 282.653717 | S59: 0.06242033958 | T59: 0.0605496445
A60: 2021-04-07 | B60: 16815.35938 | C60: 0.006605869998 | D60: 0.006584146853 | E60: 2021-04-07 | F60: 610 | G60: 0.004918032787 | H60: 0.004905978769 | I60: 2021-04-07 | J60: 48 | K60: -0.007291625 | L60: -0.007318338835 | M60: 2021-04-07 | N60: 73 | O60: 0 | P60: 0 | Q60: 2021-04-07 | R60: 300.297058 | S60: 0.07553952127 | T60: 0.07282241593
A61: 2021-04-08 | B61: 16926.43945 | C61: -0.004273777967 | D61: -0.004282936661 | E61: 2021-04-08 | F61: 613 | G61: -0.004893964111 | H61: -0.004905978769 | I61: 2021-04-08 | J61: 47.650002 | K61: -0.008394585167 | L61: -0.008430018133 | M61: 2021-04-08 | N61: 73 | O61: -0.002739684932 | P61: -0.002743444737 | Q61: 2021-04-08 | R61: 322.981354 | S61: 0.1371237703 | T61: 0.1285020658
A62: 2021-04-09 | B62: 16854.09961 | C62: 0.0003322402341 | D62: 0.0003321850546 | E62: 2021-04-09 | F62: 610 | G62: -0.008196721311 | H62: -0.008230499137 | I62: 2021-04-09 | J62: 47.25 | K62: 0.03280421164 | L62: 0.03227763843 | M62: 2021-04-09 | N62: 72.800003 | O62: -0.00412092016 | P62: -0.004129434551 | Q62: 2021-04-09 | R62: 367.269775 | S62: 0.1627451184 | T62: 0.1507836908
A63: 2021-04-12 | B63: 16859.69922 | C63: -0.002063445056 | D63: -0.002065576892 | E63: 2021-04-12 | F63: 605 | G63: 0 | H63: 0 | I63: 2021-04-12 | J63: 48.799999 | K63: 0.004098381232 | L63: 0.004090005743 | M63: 2021-04-12 | N63: 72.5 | O63: 0.00275857931 | P63: 0.002754781413 | Q63: 2021-04-12 | R63: 427.041138 | S63: -0.08600340045 | T63: -0.08992842794
A64: 2021-04-13 | B64: 16824.91016 | C64: 0.002440461591 | D64: 0.0024374885 | E64: 2021-04-13 | F64: 605 | G64: 0.01157024793 | H64: 0.01150382448 | I64: 2021-04-13 | J64: 49 | K64: -0.009183693878 | L64: -0.009226123971 | M64: 2021-04-13 | N64: 72.699997 | O64: 0.004126588891 | P64: 0.004118097874 | Q64: 2021-04-13 | R64: 390.314148 | S64: 0.04059042718 | T64: 0.0397882705
A65: 2021-04-14 | B65: 16865.9707 | C65: 0.01249615393 | D65: 0.0124187214 | E65: 2021-04-14 | F65: 612 | G65: 0.0114379085 | H65: 0.01137299017 | I65: 2021-04-14 | J65: 48.549999 | K65: 0.02574665347 | L65: 0.02542078981 | M65: 2021-04-14 | N65: 73 | O65: 0.001369835616 | P65: 0.001368898248 | Q65: 2021-04-14 | R65: 406.157166 | S65: 0.02836878668 | T65: 0.02797384461
A66: 2021-04-15 | B66: 17076.73047 | C66: 0.004806545266 | D66: 0.00479503071 | E66: 2021-04-15 | F66: 619 | G66: -0.01453957997 | H66: -0.01464631552 | I66: 2021-04-15 | J66: 49.799999 | K66: 0.001003996004 | L66: 0.001003492337 | M66: 2021-04-15 | N66: 73.099998 | O66: 0.001367975414 | P66: 0.001367040588 | Q66: 2021-04-15 | R66: 417.679352 | S66: 0.08448277807 | T66: 0.0811031711
A67: 2021-04-16 | B67: 17158.81055 | C67: 0.00608834451 | D67: 0.006069885427 | E67: 2021-04-16 | F67: 610 | G67: -0.01147540984 | H67: -0.01154176044 | I67: 2021-04-16 | J67: 49.849998 | K67: 0.03510531736 | L67: 0.03450317744 | M67: 2021-04-16 | N67: 73.199997 | O67: 0.02049180412 | P67: 0.02028467199 | Q67: 2021-04-16 | R67: 452.966064 | S67: -0.00953897288 | T67: -0.009584760291
A68: 2021-04-19 | B68: 17263.2793 | C68: 0.003509752867 | D68: 0.003503608058 | E68: 2021-04-19 | F68: 603 | G68: -0.001658374793 | H68: -0.001659751418 | I68: 2021-04-19 | J68: 51.599998 | K68: -0.003875891623 | L68: -0.003883422356 | M68: 2021-04-19 | N68: 74.699997 | O68: 0.01472564986 | P68: 0.01461828025 | Q68: 2021-04-19 | R68: 448.645233 | S68: -0.001605105654 | T68: -0.001606395216
A69: 2021-04-20 | B69: 17323.86914 | C69: =(B70-B69)/B69 -> -0.007028439491 | D69: =LN(B70/B69) -> -0.007053255317 | E69: 2021-04-20 | F69: 602 | G69: =(F70-F69)/F69 -> -0.01661129568 | H69: =LN(F70/F69) -> -0.01675081042 | I69: 2021-04-20 | J69: 51.400002 | K69: =(J70-J69)/J69 -> -0.009727626081 | L69: =LN(J70/J69) -> -0.009775248522 | M69: 2021-04-20 | N69: 75.800003 | O69: =(N70-N69)/N69 -> -0.01451195193 | P69: =LN(N70/N69) -> -0.01461828025 | Q69: 2021-04-20 | R69: 447.92511 | S69: =(R70-R69)/R69 -> -0.03536979206 | T69: =LN(R70/R69) -> -0.03601045529
A70: 2021-04-21 | B70: 17202.10938 | C70: -0.006111963929 | D70: -0.006130718437 | E70: 2021-04-21 | F70: 592 | G70: -0.001689189189 | H70: -0.001690617478 | I70: 2021-04-21 | J70: 50.900002 | K70: -0.003929292576 | L70: -0.003937032528 | M70: 2021-04-21 | N70: 74.699997 | O70: 0.01740298597 | P70: 0.01725328831 | Q70: 2021-04-21 | R70: 432.082092 | S70: -0.04666663667 | T70: -0.04779063237
A71: 2021-04-22 | B71: 17096.9707 | C71: 0.01189092685 | D71: 0.01182078526 | E71: 2021-04-22 | F71: 591 | G71: 0.01861252115 | H71: 0.0184414279 | I71: 2021-04-22 | J71: 50.700001 | K71: 0.003944792822 | L71: 0.003937032528 | M71: 2021-04-22 | N71: 76 | O71: -0.005263184211 | P71: -0.005277083556 | Q71: 2021-04-22 | R71: 411.918274 | S71: 0.02447550797 | T71: 0.02418078209
A72: 2021-04-23 | B72: 17300.26953 | C72: 0.0157234274 | D72: 0.01560109497 | E72: 2021-04-23 | F72: 602 | G72: 0.01328903654 | H72: 0.01320151186 | I72: 2021-04-23 | J72: 50.900002 | K72: 0.023575559 | L72: 0.02330194752 | M72: 2021-04-23 | N72: 75.599998 | O72: -0.001322724903 | P72: -0.001323600475 | Q72: 2021-04-23 | R72: 422.000183 | S72: 0.003412977193 | T72: 0.003407166204
A73: 2021-04-26 | B73: 17572.28906 | C73: 0.001343668313 | D73: 0.001342766399 | E73: 2021-04-26 | F73: 610 | G73: 0 | H73: 0 | I73: 2021-04-26 | J73: 52.099998 | K73: 0.01535516374 | L73: 0.0152384663 | M73: 2021-04-26 | N73: 75.5 | O73: -0.003973549669 | P73: -0.003981465193 | Q73: 2021-04-26 | R73: 423.44046 | S73: -0.001700720805 | T73: -0.001702168672
A74: 2021-04-27 | B74: 17595.90039 | C74: -0.00161236955 | D74: -0.001613670817 | E74: 2021-04-27 | F74: 610 | G74: -0.0131147541 | H74: -0.01320151186 | I74: 2021-04-27 | J74: 52.900002 | K74: 0.00189032129 | L74: 0.001888536881 | M74: 2021-04-27 | N74: 75.199997 | O74: 0.00797880351 | P74: 0.007947141164 | Q74: 2021-04-27 | R74: 422.720306 | S74: -0.0136285788 | T74: -0.01372230038
A75: 2021-04-28 | B75: 17567.5293 | C75: -4.947428778e-05 | D75: -4.947551167e-05 | E75: 2021-04-28 | F75: 602 | G75: -0.003322259136 | H75: -0.003327790093 | I75: 2021-04-28 | J75: 53 | K75: -0.01320756604 | L75: -0.0132955616 | M75: 2021-04-28 | N75: 75.800003 | O75: -0.009234894094 | P75: -0.009277800087 | Q75: 2021-04-28 | R75: 416.959229 | S75: -0.05008636708 | T75: -0.05138421123
A76: 2021-04-29 | B76: 17566.66016 | C76: -0.01960022816 | D76: -0.01979486005 | E76: 2021-04-29 | F76: 600 | G76: -0.02 | H76: -0.02020270732 | I76: 2021-04-29 | J76: 52.299999 | K76: 0.005736118657 | L76: 0.00571972977 | M76: 2021-04-29 | N76: 75.099998 | O76: -0.007989321118 | P76: -0.008021406753 | Q76: 2021-04-29 | R76: 396.075256 | S76: 0.05636365731 | T76: 0.05483249846
A77: 2021-05-03 | B77: 17222.34961 | C77: -0.0167555716 | D77: -0.0168975342 | E77: 2021-05-03 | F77: 588 | G77: 0.005102040816 | H77: 0.005089069507 | I77: 2021-05-03 | J77: 52.599998 | K77: -0.01711020978 | L77: -0.01725828086 | M77: 2021-05-03 | N77: 74.5 | O77: -0.005369154362 | P77: -0.005383620074 | Q77: 2021-05-03 | R77: 418.399506 | S77: 0.01549053215 | T77: 0.01537177866
A78: 2021-05-04 | B78: 16933.7793 | C78: -0.005334889655 | D78: -0.005349170995 | E78: 2021-05-04 | F78: 591 | G78: -0.01015228426 | H78: -0.01020417017 | I78: 2021-05-04 | J78: 51.700001 | K78: 0.03675042482 | L78: 0.03609122991 | M78: 2021-05-04 | N78: 74.099998 | O78: -0.01484477773 | P78: -0.01495606416 | Q78: 2021-05-04 | R78: 424.880737 | S78: 0.03728808021 | T78: 0.03660969222
A79: 2021-05-05 | B79: 16843.43945 | C79: 0.008960160567 | D79: 0.008920256516 | E79: 2021-05-05 | F79: 585 | G79: 0.003418803419 | H79: 0.003412972596 | I79: 2021-05-05 | J79: 53.599998 | K79: 0.01492544832 | L79: 0.01481515986 | M79: 2021-05-05 | N79: 73 | O79: 0.02328763014 | P79: 0.02302061083 | Q79: 2021-05-05 | R79: 440.723724 | S79: 0.01960789159 | T79: 0.01941813338
A80: 2021-05-06 | B80: 16994.35938 | C80: 0.01710218188 | D80: 0.01695758585 | E80: 2021-05-06 | F80: 587 | G80: 0.02044293015 | H80: 0.02023677829 | I80: 2021-05-06 | J80: 54.400002 | K80: 0.01286757306 | L80: 0.01278548923 | M80: 2021-05-06 | N80: 74.699997 | O80: -0.001338674753 | P80: -0.001339571578 | Q80: 2021-05-06 | R80: 449.365387 | S80: 0.1714743931 | T80: 0.1582631205
A81: 2021-05-07 | B81: 17285 | C81: -0.00285742696 | D81: -0.002861517198 | E81: 2021-05-07 | F81: 599 | G81: -0.01669449082 | H81: -0.01683541446 | I81: 2021-05-07 | J81: 55.099998 | K81: 0.0562613995 | L81: 0.05473569206 | M81: 2021-05-07 | N81: 74.599998 | O81: 0.008042882253 | P81: 0.008010710662 | Q81: 2021-05-07 | R81: 526.420044 | S81: 0.03146367656 | T81: 0.03097883872
A82: 2021-05-10 | B82: 17235.60938 | C82: -0.03785642282 | D82: -0.03859159082 | E82: 2021-05-10 | F82: 589 | G82: -0.03056027165 | H82: -0.031036974 | I82: 2021-05-10 | J82: 58.200001 | K82: -0.02749146001 | L82: -0.02787642205 | M82: 2021-05-10 | N82: 75.199997 | O82: -0.006648936435 | P82: -0.006671139084 | Q82: 2021-05-10 | R82: 542.983154 | S82: -0.0716180414 | T82: -0.07431203755
A83: 2021-05-11 | B83: 16583.13086 | C83: -0.04105140023 | D83: -0.04191780327 | E83: 2021-05-11 | F83: 571 | G83: -0.01926444834 | H83: -0.01945242593 | I83: 2021-05-11 | J83: 56.599998 | K83: -0.07597171647 | L83: -0.07901259792 | M83: 2021-05-11 | N83: 74.699997 | O83: -0.02811243754 | P83: -0.0285151577 | Q83: 2021-05-11 | R83: 504.095764 | S83: 0.01000005428 | T83: 0.009950384591
A84: 2021-05-12 | B84: 15902.37012 | C84: -0.01460603082 | D84: -0.01471374906 | E84: 2021-05-12 | F84: 560 | G84: -0.02321428571 | H84: -0.02348798131 | I84: 2021-05-12 | J84: 52.299999 | K84: -0.02294457023 | L84: -0.02321189388 | M84: 2021-05-12 | N84: 72.599998 | O84: 0.001377396732 | P84: 0.001376448991 | Q84: 2021-05-12 | R84: 509.136749 | S84: 0.02263082958 | T84: 0.02237855144
A85: 2021-05-13 | B85: 15670.09961 | C85: 0.01001845801 | D85: 0.009968605947 | E85: 2021-05-13 | F85: 547 | G85: 0.01828153565 | H85: 0.01811643751 | I85: 2021-05-13 | J85: 51.099998 | K85: 0.007827828095 | L85: 0.007797349599 | M85: 2021-05-13 | N85: 72.699997 | O85: 0.02063273813 | P85: 0.02042276647 | Q85: 2021-05-13 | R85: 520.658936 | S85: -0.0345781408 | T85: -0.03519011338
A86: 2021-05-14 | B86: 15827.08984 | C86: -0.02989811776 | D86: -0.03035417977 | E86: 2021-05-14 | F86: 557 | G86: -0.01436265709 | H86: -0.01446679842 | I86: 2021-05-14 | J86: 51.5 | K86: -0.05533976699 | L86: -0.05692995793 | M86: 2021-05-14 | N86: 74.199997 | O86: -0.02156332971 | P86: -0.02179921546 | Q86: 2021-05-14 | R86: 502.655518 | S86: 0.1146132071 | T86: 0.1085074453
A87: 2021-05-17 | B87: 15353.88965 | C87: 0.05158893539 | D87: 0.05030229213 | E87: 2021-05-17 | F87: 549 | G87: 0.04189435337 | H87: 0.04104054987 | I87: 2021-05-17 | J87: 48.650002 | K87: 0.09969163002 | L87: 0.09502980416 | M87: 2021-05-17 | N87: 72.599998 | O87: 0.01928377464 | P87: 0.01910019892 | Q87: 2021-05-17 | R87: 560.266479 | S87: 0 | T87: 0
A88: 2021-05-18 | B88: 16145.98047 | C88: -0.0008249925129 | D88: -0.0008253330065 | E88: 2021-05-18 | F88: 572 | G88: -0.008741258741 | H88: -0.008779687652 | I88: 2021-05-18 | J88: 53.5 | K88: 0.01495325234 | L88: 0.01484255462 | M88: 2021-05-18 | N88: 74 | O88: -0.008108081081 | P88: -0.008141130336 | Q88: 2021-05-18 | R88: 560.266479 | S88: -0.012853555 | T88: -0.01293687669
A89: 2021-05-19 | B89: 16132.66016 | C89: -0.005597328843 | D89: -0.005613052589 | E89: 2021-05-19 | F89: 567 | G89: 0 | H89: 0 | I89: 2021-05-19 | J89: 54.299999 | K89: -0.0184162066 | L89: -0.01858789611 | M89: 2021-05-19 | N89: 73.400002 | O89: 0.01498634837 | P89: 0.01487516252 | Q89: 2021-05-19 | R89: 553.065063 | S89: 0.03255207968 | T89: 0.03203348495
A90: 2021-05-20 | B90: 16042.36035 | C90: 0.01618834213 | D90: 0.01605870809 | E90: 2021-05-20 | F90: 567 | G90: 0.01058201058 | H90: 0.01052641299 | I90: 2021-05-20 | J90: 53.299999 | K90: 0.01688559131 | L90: 0.01674461449 | M90: 2021-05-20 | N90: 74.5 | O90: 0.006711409396 | P90: 0.006688988151 | Q90: 2021-05-20 | R90: 571.068481 | S90: 0.007566276452 | T90: 0.007537795754
A91: 2021-05-21 | B91: 16302.05957 | C91: 0.002222447344 | D91: 0.002219981361 | E91: 2021-05-21 | F91: 573 | G91: -0.00872600349 | H91: -0.008764297994 | I91: 2021-05-21 | J91: 54.200001 | K91: -0.005535036798 | L91: -0.005550411875 | M91: 2021-05-21 | N91: 75 | O91: -0.01866669333 | P91: -0.01884311498 | Q91: 2021-05-21 | R91: 575.389343 | S91: 0 | T91: 0
A92: 2021-05-24 | B92: 16338.29004 | C92: 0.01575317138 | D92: 0.01563037808 | E92: 2021-05-24 | F92: 568 | G92: 0.0264084507 | H92: 0.02606576763 | I92: 2021-05-24 | J92: 53.900002 | K92: 0.007421094344 | L92: 0.007393693503 | M92: 2021-05-24 | N92: 73.599998 | O92: -0.005434796343 | P92: -0.005449618577 | Q92: 2021-05-24 | R92: 575.389343 | S92: 0 | T92: 0
A93: 2021-05-25 | B93: 16595.66992 | C93: 0.002893497595 | D93: 0.002889319488 | E93: 2021-05-25 | F93: 583 | G93: 0.003430531732 | H93: 0.003424660881 | I93: 2021-05-25 | J93: 54.299999 | K93: 0.001841675909 | L93: 0.001839982103 | M93: 2021-05-25 | N93: 73.199997 | O93: -0.005464399131 | P93: -0.005479383572 | Q93: 2021-05-25 | R93: 575.389343 | S93: 0 | T93: 0
A94: 2021-05-26 | B94: 16643.68945 | C94: -0.002528290264 | D94: -0.002531491787 | E94: 2021-05-26 | F94: 585 | G94: -0.005128205128 | H94: -0.0051413995 | I94: 2021-05-26 | J94: 54.400002 | K94: 0 | L94: 0 | M94: 2021-05-26 | N94: 72.800003 | O94: -0.01098905174 | P94: -0.0110498774 | Q94: 2021-05-26 | R94: 575.389343 | S94: 0 | T94: 0
A95: 2021-05-27 | B95: 16601.60938 | C95: 0.01621830715 | D95: 0.01608819532 | E95: 2021-05-27 | F95: 582 | G95: 0.01374570447 | H95: 0.01365208917 | I95: 2021-05-27 | J95: 54.400002 | K95: 0.02022055073 | L95: 0.02001883013 | M95: 2021-05-27 | N95: 72 | O95: 0.01111115278 | P95: 0.0110498774 | Q95: 2021-05-27 | R95: 575.389343 | S95: 0 | T95: 0
A96: 2021-05-28 | B96: 16870.85938 | C96: 0.01171074387 | D96: 0.01164270379 | E96: 2021-05-28 | F96: 590 | G96: 0.01186440678 | H96: 0.01179457649 | I96: 2021-05-28 | J96: 55.5 | K96: 0.007207243243 | L96: 0.007181395187 | M96: 2021-05-28 | N96: 72.800003 | O96: 0.01098894185 | P96: 0.01092900215 | Q96: 2021-05-28 | R96: 575.389343 | S96: 0 | T96: 0
A97: 2021-05-31 | B97: 17068.42969 | C97: 0.005504382812 | D97: 0.005489289059 | E97: 2021-05-31 | F97: 597 | G97: 0.001675041876 | H97: 0.001673640558 | I97: 2021-05-31 | J97: 55.900002 | K97: -0.001788962369 | L97: -0.001790564473 | M97: 2021-05-31 | N97: 73.599998 | O97: 0.006793478445 | P97: 0.006770506751 | Q97: 2021-05-31 | R97: 575.389343 | S97: 0 | T97: 0
A98: 2021-06-01 | B98: 17162.38086 | C98: 0.0001548855035 | D98: 0.0001548735099 | E98: 2021-06-01 | F98: 598 | G98: -0.005016722408 | H98: -0.005029348405 | I98: 2021-06-01 | J98: 55.799999 | K98: 0.008960573637 | L98: 0.008920665918 | M98: 2021-06-01 | N98: 74.099998 | O98: 0.005398137798 | P98: 0.005383620074 | Q98: 2021-06-01 | R98: 575.389343 | S98: 0 | T98: 0
A99: 2021-06-02 | B99: 17165.03906 | C99: 0.004725948639 | D99: 0.004714816404 | E99: 2021-06-02 | F99: 595 | G99: 0.001680672269 | H99: 0.00167926152 | I99: 2021-06-02 | J99: 56.299999 | K99: -0.008880994829 | L99: -0.008920665918 | M99: 2021-06-02 | N99: 74.5 | O99: -0.005369154362 | P99: -0.005383620074 | Q99: 2021-06-02 | R99: 575.389343 | S99: 0 | T99: 0
A100: 2021-06-03 | B100: 17246.16016 | C100: -0.005725912267 | D100: -0.00574236815 | E100: 2021-06-03 | F100: 596 | G100: -0.001677852349 | H100: -0.00167926152 | I100: 2021-06-03 | J100: 55.799999 | K100: -0.0143368999 | L100: -0.01444066623 | M100: 2021-06-03 | N100: 74.099998 | O100: -0.006747638509 | P100: -0.006770506751 | Q100: 2021-06-03 | R100: 575.389343 | S100: 0 | T100: 0
A101: 2021-06-04 | B101: 17147.41016 | C101: -0.003703183129 | D101: -0.003710056887 | E101: 2021-06-04 | F101: 595 | G101: -0.005042016807 | H101: -0.005054770662 | I101: 2021-06-04 | J101: 55 | K101: -0.005454527273 | L101: -0.005469457523 | M101: 2021-06-04 | N101: 73.599998 | O101: -0.008152146961 | P101: -0.008185557413 | Q101: 2021-06-04 | R101: 575.389343 | S101: 0 | T101: 0
A102: 2021-06-07 | B102: 17083.91016 | C102: -0.0004506707147 | D102: -0.0004507722973 | E102: 2021-06-07 | F102: 592 | G102: -0.005067567568 | H102: -0.005080451232 | I102: 2021-06-07 | J102: 54.700001 | K102: 0.001828116968 | L102: 0.001826447996 | M102: 2021-06-07 | N102: 73 | O102: 0.005479479452 | P102: 0.00546452172 | Q102: 2021-06-07 | R102: 575.389343 | S102: 0.06132661724 | T102: 0.05951965131
A103: 2021-06-08 | B103: 17076.21094 | C103: -0.006441138224 | D103: -0.006461971865 | E103: 2021-06-08 | F103: 589 | G103: -0.005093378608 | H103: -0.005106394075 | I103: 2021-06-08 | J103: 54.799999 | K103: -0.009124087758 | L103: -0.009165967182 | M103: 2021-06-08 | N103: 73.400002 | O103: -0.001362384159 | P103: -0.001363313048 | Q103: 2021-06-08 | R103: 610.676025 | S103: -0.009433984247 | T103: -0.009478766147
A104: 2021-06-09 | B104: 16966.2207 | C104: 0.01137554458 | D104: 0.0113113296 | E104: 2021-06-09 | F104: 586 | G104: 0.02218430034 | H104: 0.02194180854 | I104: 2021-06-09 | J104: 54.299999 | K104: 0.007366519473 | L104: 0.007339519186 | M104: 2021-06-09 | N104: 73.300003 | O104: -0.002728581062 | P104: -0.002732310424 | Q104: 2021-06-09 | R104: 604.914917 | S104: -0.01309524493 | T104: -0.01318174363
A105: 2021-06-10 | B105: 17159.2207 | C105: 0.003164411073 | D105: 0.003159414862 | E105: 2021-06-10 | F105: 599 | G105: 0.005008347245 | H105: 0.004995847193 | I105: 2021-06-10 | J105: 54.700001 | K105: -0.003656325344 | L105: -0.00366302604 | M105: 2021-06-10 | N105: 73.099998 | O105: 0.006839945468 | P105: 0.006816659165 | Q105: 2021-06-10 | R105: 596.993408 | S105: 0.007237704708 | T105: 0.007211638223
A106: 2021-06-11 | B106: 17213.51953 | C106: 0.009165442995 | D106: 0.009123695219 | E106: 2021-06-11 | F106: 602 | G106: 0.01162790698 | H106: 0.0115608224 | I106: 2021-06-11 | J106: 54.5 | K106: -0.003669743119 | L106: -0.003676493146 | M106: 2021-06-11 | N106: 73.599998 | O106: 0 | P106: 0 | Q106: 2021-06-11 | R106: 601.31427 | S106: 0.1425149764 | T106: 0.1332319521
A107: 2021-06-15 | B107: 17371.28906 | C107: -0.00365140939 | D107: -0.003658092058 | E107: 2021-06-15 | F107: 609 | G107: -0.006568144499 | H107: -0.006589809679 | I107: 2021-06-15 | J107: 54.299999 | K107: 0 | L107: 0 | M107: 2021-06-15 | N107: 73.599998 | O107: 0.006793478445 | P107: 0.006770506751 | Q107: 2021-06-15 | R107: 687.010559 | S107: 0.04088048813 | T107: 0.04006697817
A108: 2021-06-16 | B108: 17307.85938 | C108: 0.004781064961 | D108: 0.004769671969 | E108: 2021-06-16 | F108: 605 | G108: 0.001652892562 | H108: 0.001651528038 | I108: 2021-06-16 | J108: 54.299999 | K108: -0.005524843564 | L108: -0.005540161959 | M108: 2021-06-16 | N108: 74.099998 | O108: -0.01214576281 | P108: -0.01222012533 | Q108: 2021-06-16 | R108: 715.095886 | S108: 0.0473313253 | T108: 0.04624533388
A109: 2021-06-17 | B109: 17390.60938 | C109: -0.004144208546 | D109: -0.004152819578 | E109: 2021-06-17 | F109: 606 | G109: -0.00495049505 | H109: -0.004962789342 | I109: 2021-06-17 | J109: 54 | K109: -0.007407444444 | L109: -0.007435015801 | M109: 2021-06-17 | N109: 73.199997 | O109: 0.006830601373 | P109: 0.006807378506 | Q109: 2021-06-17 | R109: 748.942322 | S109: 0.1298076529 | T109: 0.1220473996
A110: 2021-06-18 | B110: 17318.53906 | C110: -0.01475635982 | D110: -0.01486631796 | E110: 2021-06-18 | F110: 603 | G110: -0.03316749585 | H110: -0.03373001038 | I110: 2021-06-18 | J110: 53.599998 | K110: -0.02985071007 | L110: -0.03030531218 | M110: 2021-06-18 | N110: 73.699997 | O110: -0.01492536017 | P110: -0.01503786421 | Q110: 2021-06-18 | R110: 846.160767 | S110: 0.07234039959 | T110: 0.06984354917
A111: 2021-06-21 | B111: 17062.98047 | C111: 0.0007367008374 | D111: 0.0007364296065 | E111: 2021-06-21 | F111: 583 | G111: -0.008576329331 | H111: -0.008613317678 | I111: 2021-06-21 | J111: 52 | K111: 0.01153842308 | L111: 0.01147236314 | M111: 2021-06-21 | N111: 72.599998 | O111: -0.001377382958 | P111: -0.001378332422 | Q111: 2021-06-21 | R111: 907.372375 | S111: -0.01587298599 | T111: -0.01600031099
A112: 2021-06-22 | B112: 17075.55078 | C112: 0.0152943914 | D112: 0.01517861123 | E112: 2021-06-22 | F112: 578 | G112: 0.02941176471 | H112: 0.02898753687 | I112: 2021-06-22 | J112: 52.599998 | K112: 0.02851711135 | L112: 0.02811806716 | M112: 2021-06-22 | N112: 72.5 | O112: 0.01103452414 | P112: 0.01097408796 | Q112: 2021-06-22 | R112: 892.969666 | S112: -0.03629035815 | T112: -0.03696523115
A113: 2021-06-23 | B113: 17336.71094 | C113: 0.004109776085 | D113: 0.004101354022 | E113: 2021-06-23 | F113: 595 | G113: -0.008403361345 | H113: -0.008438868646 | I113: 2021-06-23 | J113: 54.099998 | K113: -0.005545268227 | L113: -0.005560700303 | M113: 2021-06-23 | N113: 73.300003 | O113: 0.001364242782 | P113: 0.001363313048 | Q113: 2021-06-23 | R113: 860.563477 | S113: 0.08786612611 | T113: 0.08421809501
A114: 2021-06-24 | B114: 17407.96094 | C114: 0.005458956183 | D114: 0.005444110087 | E114: 2021-06-24 | F114: 590 | G114: 0.001694915254 | H114: 0.001693480506 | I114: 2021-06-24 | J114: 53.799999 | K114: 0.00929368047 | L114: 0.009250759943 | M114: 2021-06-24 | N114: 73.400002 | O114: 0.001362370535 | P114: 0.00136144335 | Q114: 2021-06-24 | R114: 936.177856 | S114: 0.06538465913 | T114: 0.06333591623
A115: 2021-06-25 | B115: 17502.99023 | C115: 0.005026596474 | D115: 0.005014005314 | E115: 2021-06-25 | F115: 591 | G115: -0.001692047377 | H115: -0.001693480506 | I115: 2021-06-25 | J115: 54.299999 | K115: 0 | L115: 0 | M115: 2021-06-25 | N115: 73.5 | O115: 0.004081673469 | P115: 0.004073366038 | Q115: 2021-06-25 | R115: 997.389526 | S115: -0.007220264312 | T115: -0.007246456573
A116: 2021-06-28 | B116: 17590.9707 | C116: 0.0004103667797 | D116: 0.0004102826023 | E116: 2021-06-28 | F116: 590 | G116: 0.008474576271 | H116: 0.008438868646 | I116: 2021-06-28 | J116: 54.299999 | K116: -0.01104968713 | L116: -0.01111118839 | M116: 2021-06-28 | N116: 73.800003 | O116: -0.004065081136 | P116: -0.004073366038 | Q116: 2021-06-28 | R116: 990.18811 | S116: 0.007272775675 | T116: 0.007246456573
A117: 2021-06-29 | B117: 17598.18945 | C117: 0.008936799176 | D117: 0.008897102319 | E117: 2021-06-29 | F117: 595 | G117: 0 | H117: 0 | I117: 2021-06-29 | J117: 53.700001 | K117: 0.003724413338 | L117: 0.003717494884 | M117: 2021-06-29 | N117: 73.5 | O117: -0.004081673469 | P117: -0.004090026235 | Q117: 2021-06-29 | R117: 997.389526 | S117: 0.1155234951 | T117: 0.109323797
A118: 2021-06-30 | B118: 17755.46094 | C118: -0.002338519126 | D118: -0.002341257733 | E118: 2021-06-30 | F118: 595 | G118: -0.003361344538 | H118: -0.003367006548 | I118: 2021-06-30 | J118: 53.900002 | K118: 0 | L118: 0 | M118: 2021-06-30 | N118: 73.199997 | O118: -0.006830601373 | P118: -0.00685403671 | Q118: 2021-06-30 | R118: 1112.61145 | S118: -0.05501621433 | T118: -0.05658750966
A119: 2021-07-01 | B119: 17713.93945 | C119: -0.0002139028425 | D119: -0.0002139257229 | E119: 2021-07-01 | F119: 593 | G119: -0.008431703204 | H119: -0.008467451099 | I119: 2021-07-01 | J119: 53.900002 | K119: 0 | L119: 0 | M119: 2021-07-01 | N119: 72.699997 | O119: 0.009628679902 | P119: 0.009582619594 | Q119: 2021-07-01 | R119: 1051.39978 | S119: -0.04109593023 | T119: -0.04196424062
A120: 2021-07-02 | B120: 17710.15039 | C120: 0.01181128801 | D120: 0.01174207918 | E120: 2021-07-02 | F120: 588 | G120: 0.005102040816 | H120: 0.005089069507 | I120: 2021-07-02 | J120: 53.900002 | K120: 0.005565843949 | L120: 0.005550411875 | M120: 2021-07-02 | N120: 73.400002 | O120: 0.006811988915 | P120: 0.006788892149 | Q120: 2021-07-02 | R120: 1008.191528 | S120: -0.06071426639 | T120: -0.06263555041
A121: 2021-07-05 | B121: 17919.33008 | C121: -0.0003493303027 | D121: -0.0003493913327 | E121: 2021-07-05 | F121: 591 | G121: 0.001692047377 | H121: 0.001690617478 | I121: 2021-07-05 | J121: 54.200001 | K121: -0.001845073767 | L121: -0.001846778012 | M121: 2021-07-05 | N121: 73.900002 | O121: -0.001353166405 | P121: -0.001354082761 | Q121: 2021-07-05 | R121: 946.979919 | S121: 0.02281371079 | T121: 0.0225573695
A122: 2021-07-06 | B122: 17913.07031 | C122: -0.003482421434 | D122: -0.003488499177 | E122: 2021-07-06 | F122: 592 | G122: 0.003378378378 | H122: 0.003372684479 | I122: 2021-07-06 | J122: 54.099998 | K122: -0.001848391935 | L122: -0.00185010232 | M122: 2021-07-06 | N122: 73.800003 | O122: 0.001354999945 | P122: 0.001354082761 | Q122: 2021-07-06 | R122: 968.584045 | S122: 0.02230479132 | T122: 0.02205967757
A123: 2021-07-07 | B123: 17850.68945 | C123: 0.0008627336799 | D123: 0.0008623617391 | E123: 2021-07-07 | F123: 594 | G123: -0.0101010101 | H123: -0.01015237146 | I123: 2021-07-07 | J123: 54 | K123: 0.007407444444 | L123: 0.007380144062 | M123: 2021-07-07 | N123: 73.900002 | O123: 0.002706305745 | P123: 0.002702650294 | Q123: 2021-07-07 | R123: 990.18811 | S123: 0.1290909674 | T123: 0.1214128553
A124: 2021-07-08 | B124: 17866.08984 | C124: -0.011452387 | D124: -0.01151847061 | E124: 2021-07-08 | F124: 588 | G124: -0.006802721088 | H124: -0.00682596507 | I124: 2021-07-08 | J124: 54.400002 | K124: -0.01102946651 | L124: -0.01109074205 | M124: 2021-07-08 | N124: 74.099998 | O124: -0.004048515629 | P124: -0.004056733055 | Q124: 2021-07-08 | R124: 1118.012451 | S124: -0.03333334076 | T124: -0.03390155936
A125: 2021-07-09 | B125: 17661.48047 | C125: 0.008654405233 | D125: 0.008617170544 | E125: 2021-07-09 | F125: 584 | G125: 0.0154109589 | H125: 0.01529341617 | I125: 2021-07-09 | J125: 53.799999 | K125: 0.03531602296 | L125: 0.03470671631 | M125: 2021-07-09 | N125: 73.800003 | O125: -0.01219513501 | P125: -0.01227010581 | Q125: 2021-07-09 | R125: 1080.745361 | S125: -0.04597702178 | T125: -0.04706752164
A126: 2021-07-12 | B126: 17814.33008 | C126: 0.001863076122 | D126: 0.001861342748 | E126: 2021-07-12 | F126: 593 | G126: 0.02360876897 | H126: 0.02333439206 | I126: 2021-07-12 | J126: 55.700001 | K126: 0.007181274557 | L126: 0.007155611991 | M126: 2021-07-12 | N126: 72.900002 | O126: 0.01371742075 | P126: 0.01362418857 | Q126: 2021-07-12 | R126: 1031.055908 | S126: -0.01204819535 | T126: -0.01212136315
A127: 2021-07-13 | B127: 17847.51953 | C127: -9.914716703e-05 | D127: -9.915208243e-05 | E127: 2021-07-13 | F127: 607 | G127: 0.009884678748 | H127: 0.009836144877 | I127: 2021-07-13 | J127: 56.099998 | K127: 0.01604281697 | L127: 0.01591549096 | M127: 2021-07-13 | N127: 73.900002 | O127: -0.009472327213 | P127: -0.009517475034 | Q127: 2021-07-13 | R127: 1018.633545 | S127: -0.04471543788 | T127: -0.04574601208
A128: 2021-07-14 | B128: 17845.75 | C128: 0.01055934623 | D128: 0.01050398571 | E128: 2021-07-14 | F128: 613 | G128: 0.00163132137 | H128: 0.001629992211 | I128: 2021-07-14 | J128: 57 | K128: 0.01929821053 | L128: 0.0191143616 | M128: 2021-07-14 | N128: 73.199997 | O128: 0.002732308855 | P128: 0.002728582885 | Q128: 2021-07-14 | R128: 973.0849 | S128: 0.08085110354 | T128: 0.07774878961
A129: 2021-07-15 | B129: 18034.18945 | C129: -0.007704224987 | D129: -0.007734055843 | E129: 2021-07-15 | F129: 614 | G129: -0.04071661238 | H129: -0.0415687445 | I129: 2021-07-15 | J129: 58.099998 | K129: 0.02925991495 | L129: 0.0288400148 | M129: 2021-07-15 | N129: 73.400002 | O129: -0.004087247845 | P129: -0.004095623472 | Q129: 2021-07-15 | R129: 1051.759888 | S129: 0.02755902115 | T129: 0.02718610725
A130: 2021-07-16 | B130: 17895.25 | C130: -0.005923359551 | D130: -0.00594097223 | E130: 2021-07-16 | F130: 589 | G130: -0.01188455008 | H130: -0.01195573592 | I130: 2021-07-16 | J130: 59.799999 | K130: -0.001672207386 | L130: -0.001673607085 | M130: 2021-07-16 | N130: 73.099998 | O130: 0.001367975414 | P130: 0.001367040588 | Q130: 2021-07-16 | R130: 1080.745361 | S130: -0.02298851043 | T130: -0.02325686695
A131: 2021-07-19 | B131: 17789.25 | C131: -0.01464422424 | D131: -0.01475250936 | E131: 2021-07-19 | F131: 582 | G131: -0.001718213058 | H131: -0.00171969088 | I131: 2021-07-19 | J131: 59.700001 | K131: -0.03015073651 | L131: -0.03061461803 | M131: 2021-07-19 | N131: 73.199997 | O131: -0.009562800938 | P131: -0.009608818123 | Q131: 2021-07-19 | R131: 1055.900635 | S131: 0.003921530931 | T131: 0.003913861772
A132: 2021-07-20 | B132: 17528.74023 | C132: -0.003990655921 | D132: -0.003998639836 | E132: 2021-07-20 | F132: 581 | G132: 0.006884681583 | H132: 0.00686109038 | I132: 2021-07-20 | J132: 57.900002 | K132: 0.006908410815 | L132: 0.006884657083 | M132: 2021-07-20 | N132: 72.5 | O132: 0.00275857931 | P132: 0.002754781413 | Q132: 2021-07-20 | R132: 1060.041382 | S132: -0.06249997889 | T132: -0.06453849862
A133: 2021-07-21 | B133: 17458.78906 | C133: =(B134-B133)/B133 -> 0.006503372862 | D133: =LN(B134/B133) -> 0.006482317172 | E133: 2021-07-21 | F133: 585 | G133: =(F134-F133)/F133 -> 0.01025641026 | H133: =LN(F134/F133) -> 0.01020417017 | I133: 2021-07-21 | J133: 58.299999 | K133: =(J134-J133)/J133 -> 0.03087476897 | L133: =LN(J134/J133) -> 0.03040773206 | M133: 2021-07-21 | N133: 72.699997 | O133: =(N134-N133)/N133 -> 0.01100416827 | P133: =LN(N134/N133) -> 0.01094406294 | Q133: 2021-07-21 | R133: 993.788818 | S133: =(R134-R133)/R133 -> 0.07083339209 | T133: =LN(R134/R133) -> 0.06843721642
A134: 2021-07-22 | B134: 17572.33008 | C134: 3.356663558e-05 | D134: 3.356607223e-05 | E134: 2021-07-22 | F134: 591 | G134: -0.01015228426 | H134: -0.01020417017 | I134: 2021-07-22 | J134: 60.099998 | K134: 0.003327803771 | L134: 0.003322278886 | M134: 2021-07-22 | N134: 73.5 | O134: -0.004081673469 | P134: -0.004090026235 | Q134: 2021-07-22 | R134: 1064.182251 | S134: 0.01556416674 | T134: 0.01544428738
A135: 2021-07-23 | B135: 17572.91992 | C135: -0.009637520443 | D135: -0.009684261901 | E135: 2021-07-23 | F135: 585 | G135: -0.008547008547 | H135: -0.008583743691 | I135: 2021-07-23 | J135: 60.299999 | K135: -0.06799333446 | L135: -0.07041531246 | M135: 2021-07-23 | N135: 73.199997 | O135: -0.009562800938 | P135: -0.009608818123 | Q135: 2021-07-23 | R135: 1080.745361 | S135: -0.003831380776 | T135: -0.003838739317
A136: 2021-07-26 | B136: 17403.56055 | C136: -0.007681842209 | D136: -0.007711499539 | E136: 2021-07-26 | F136: 580 | G136: 0 | H136: 0 | I136: 2021-07-26 | J136: 56.200001 | K136: -0.02135233058 | L136: -0.02158358946 | M136: 2021-07-26 | N136: 72.5 | O136: 0.01103452414 | P136: 0.01097408796 | Q136: 2021-07-26 | R136: 1076.604614 | S136: -0.02307692692 | T136: -0.02334736793
A137: 2021-07-27 | B137: 17269.86914 | C137: -0.007796726015 | D137: -0.007827279397 | E137: 2021-07-27 | F137: 580 | G137: -0.001724137931 | H137: -0.001725625967 | I137: 2021-07-27 | J137: 55 | K137: -0.0218182 | L137: -0.02205973665 | M137: 2021-07-27 | N137: 73.300003 | O137: -0.009549863183 | P137: -0.009595755538 | Q137: 2021-07-27 | R137: 1051.759888 | S137: 0.01574799552 | T137: 0.01562528248
A138: 2021-07-28 | B138: 17135.2207 | C138: 0.01561636402 | D138: 0.01549568338 | E138: 2021-07-28 | F138: 579 | G138: 0.006908462867 | H138: 0.006884708777 | I138: 2021-07-28 | J138: 53.799999 | K138: 0.01858736094 | L138: 0.01841672713 | M138: 2021-07-28 | N138: 72.599998 | O138: 0.0123967221 | P138: 0.01232051194 | Q138: 2021-07-28 | R138: 1068.322998 | S138: -0.003875931725 | T138: -0.003883462614
A139: 2021-07-29 | B139: 17402.81055 | C139: -0.008929614592 | D139: -0.008969722544 | E139: 2021-07-29 | F139: 583 | G139: -0.005145797599 | H139: -0.00515908281 | I139: 2021-07-29 | J139: 54.799999 | K139: -0.009124087758 | L139: -0.009165967182 | M139: 2021-07-29 | N139: 73.5 | O139: -0.004081673469 | P139: -0.004090026235 | Q139: 2021-07-29 | R139: 1064.182251 | S139: -0.01167315372 | T139: -0.01174181987
A140: 2021-07-30 | B140: 17247.41016 | C140: 0.01483522098 | D140: 0.01472625545 | E140: 2021-07-30 | F140: 580 | G140: 0.01724137931 | H140: 0.01709443336 | I140: 2021-07-30 | J140: 54.299999 | K140: 0.0276243099 | L140: 0.02724964294 | M140: 2021-07-30 | N140: 73.199997 | O140: 0.02049180412 | P140: 0.02028467199 | Q140: 2021-07-30 | R140: 1051.759888 | S140: 0.00787393976 | T140: 0.007843102067
A141: 2021-08-02 | B141: 17503.2793 | C141: 0.00288405779 | D141: 0.002879906874 | E141: 2021-08-02 | F141: 590 | G141: 0.006779661017 | H141: 0.006756782463 | I141: 2021-08-02 | J141: 55.799999 | K141: -0.007168405146 | L141: -0.007194221612 | M141: 2021-08-02 | N141: 74.699997 | O141: 0.004016104579 | P141: 0.004008061558 | Q141: 2021-08-02 | R141: 1060.041382 | S141: -0.01562496642 | T141: -0.01574832286
A142: 2021-08-03 | B142: 17553.75977 | C142: 0.003995204443 | D142: 0.003987244806 | E142: 2021-08-03 | F142: 594 | G142: 0.003367003367 | H142: 0.003361347703 | I142: 2021-08-03 | J142: 55.400002 | K142: -0.003610126223 | L142: -0.003616658455 | M142: 2021-08-03 | N142: 75 | O142: 0.006666666667 | P142: 0.006644542719 | Q142: 2021-08-03 | R142: 1043.478271 | S142: 0.01587298122 | T142: 0.01574832286
A143: 2021-08-04 | B143: 17623.89062 | C143: -0.0011785981 | D143: -0.001179293193 | E143: 2021-08-04 | F143: 596 | G143: 0 | H143: 0 | I143: 2021-08-04 | J143: 55.200001 | K143: 0 | L143: 0 | M143: 2021-08-04 | N143: 75.5 | O143: -0.002648966887 | P143: -0.002652481608 | Q143: 2021-08-04 | R143: 1060.041382 | S143: 0.007812540284 | T143: 0.007782180414
A144: 2021-08-05 | B144: 17603.11914 | C144: -0.004365126622 | D144: -0.004374681604 | E144: 2021-08-05 | F144: 596 | G144: -0.008389261745 | H144: -0.008424649659 | I144: 2021-08-05 | J144: 55.200001 | K144: -0.001811648518 | L144: -0.001813291538 | M144: 2021-08-05 | N144: 75.300003 | O144: -0.001328100877 | P144: -0.001328983584 | Q144: 2021-08-05 | R144: 1068.322998 | S144: 0.003875931725 | T144: 0.003868439654
A145: 2021-08-06 | B145: 17526.2793 | C145: -0.002346699223 | D145: -0.002349457036 | E145: 2021-08-06 | F145: 591 | G145: 0.006768189509 | H145: 0.00674538814 | I145: 2021-08-06 | J145: 55.099998 | K145: 0.001814936545 | L145: 0.001813291538 | M145: 2021-08-06 | N145: 75.199997 | O145: -0.007978710425 | P145: -0.008010710662 | Q145: 2021-08-06 | R145: 1072.463745 | S145: -0.02702699661 | T145: -0.02739894293
A146: 2021-08-09 | B146: 17485.15039 | C146: -0.009236967506 | D146: -0.009279892828 | E146: 2021-08-09 | F146: 595 | G146: -0.006722689076 | H146: -0.00674538814 | I146: 2021-08-09 | J146: 55.200001 | K146: -0.005434764394 | L146: -0.005449586454 | M146: 2021-08-09 | N146: 74.599998 | O146: 0.005361957248 | P146: 0.005347633136 | Q146: 2021-08-09 | R146: 1043.478271 | S146: -0.07936507765 | T146: -0.08269171398
A147: 2021-08-10 | B147: 17323.64062 | C147: -0.005568167748 | D147: -0.005583727781 | E147: 2021-08-10 | F147: 591 | G147: -0.001692047377 | H147: -0.001693480506 | I147: 2021-08-10 | J147: 54.900002 | K147: 0.02003639271 | L147: 0.01983830579 | M147: 2021-08-10 | N147: 75 | O147: -0.007999973333 | P147: -0.008032144816 | Q147: 2021-08-10 | R147: 960.662537 | S147: 0.0301723778 | T147: 0.02972614532
A148: 2021-08-11 | B148: 17227.17969 | C148: -0.0004202797632 | D148: -0.0004203681055 | E148: 2021-08-11 | F148: 590 | G148: -0.006779661017 | H148: -0.006802747323 | I148: 2021-08-11 | J148: 56 | K148: 0 | L148: 0 | M148: 2021-08-11 | N148: 74.400002 | O148: -0.01881723068 | P148: -0.01899652757 | Q148: 2021-08-11 | R148: 989.64801 | S148: 0.05439334032 | T148: 0.05296556866
A149: 2021-08-12 | B149: 17219.93945 | C149: -0.01381131906 | D149: -0.01390758271 | E149: 2021-08-12 | F149: 586 | G149: -0.008532423208 | H149: -0.008569032725 | I149: 2021-08-12 | J149: 56 | K149: -0.01785714286 | L149: -0.0180185055 | M149: 2021-08-12 | N149: 73 | O149: -0.04383557534 | P149: -0.0448253884 | Q149: 2021-08-12 | R149: 1043.478271 | S149: 0.003968216795 | T149: 0.00396036419
A150: 2021-08-13 | B150: 16982.10938 | C150: -0.007262928372 | D150: -0.007289431843 | E150: 2021-08-13 | F150: 581 | G150: 0.005163511188 | H150: 0.005150225976 | I150: 2021-08-13 | J150: 55 | K150: -0.01272729091 | L150: -0.01280897671 | M150: 2021-08-13 | N150: 69.800003 | O150: 0.004297922451 | P150: 0.004288712762 | Q150: 2021-08-13 | R150: 1047.619019 | S150: -0.05138337509 | T150: -0.05275053995
A151: 2021-08-16 | B151: 16858.76953 | C151: -0.01170964201 | D151: -0.01177873981 | E151: 2021-08-16 | F151: 584 | G151: 0 | H151: 0 | I151: 2021-08-16 | J151: 54.299999 | K151: 0 | L151: 0 | M151: 2021-08-16 | N151: 70.099998 | O151: 0 | P151: 0 | Q151: 2021-08-16 | R151: 993.788818 | S151: -0.06666664164 | T151: -0.06899284468
A152: 2021-08-17 | B152: 16661.35938 | C152: 0.009897761178 | D152: 0.009849099173 | E152: 2021-08-17 | F152: 584 | G152: -0.01712328767 | H152: -0.01727158651 | I152: 2021-08-17 | J152: 54.299999 | K152: 0.001841675909 | L152: 0.001839982103 | M152: 2021-08-17 | N152: 70.099998 | O152: 0 | P152: 0 | Q152: 2021-08-17 | R152: 927.536255 | S152: -0.004464308514 | T152: -0.004474303297
A153: 2021-08-18 | B153: 16826.26953 | C153: -0.02679554961 | D153: -0.02716109514 | E153: 2021-08-18 | F153: 574 | G153: -0.02613240418 | H153: -0.02647992316 | I153: 2021-08-18 | J153: 54.400002 | K153: -0.01102946651 | L153: -0.01109074205 | M153: 2021-08-18 | N153: 70.099998 | O153: -0.01426533564 | P153: -0.01436806368 | Q153: 2021-08-18 | R153: 923.395447 | S153: -0.1103138892 | T153: -0.1168865629
A154: 2021-08-19 | B154: 16375.40039 | C154: -0.002043306435 | D154: -0.002045396834 | E154: 2021-08-19 | F154: 559 | G154: -0.01252236136 | H154: -0.01260142688 | I154: 2021-08-19 | J154: 53.799999 | K154: -0.001858698919 | L154: -0.001860428444 | M154: 2021-08-19 | N154: 69.099998 | O154: -0.002894298202 | P154: -0.002898494783 | Q154: 2021-08-19 | R154: 821.532104 | S154: 0.008064499205 | T154: 0.008032154909
A155: 2021-08-20 | B155: 16341.94043 | C155: 0.02447074236 | D155: 0.02417613032 | E155: 2021-08-20 | F155: 552 | G155: 0.02536231884 | H155: 0.02504603193 | I155: 2021-08-20 | J155: 53.700001 | K155: 0.02607070715 | L155: 0.02573665972 | M155: 2021-08-20 | N155: 68.900002 | O155: 0.008708243579 | P155: 0.008670545524 | Q155: 2021-08-20 | R155: 828.157349 | S155: 0.06999999224 | T155: 0.06765864122
A156: 2021-08-23 | B156: 16741.83984 | C156: 0.004592722527 | D156: 0.004582208158 | E156: 2021-08-23 | F156: 566 | G156: 0.01060070671 | H156: 0.01054491318 | I156: 2021-08-23 | J156: 55.099998 | K156: 0.01270419284 | L156: 0.0126241716 | M156: 2021-08-23 | N156: 69.5 | O156: 0.01438848921 | P156: 0.01428595725 | Q156: 2021-08-23 | R156: 886.128357 | S156: 0.1261682556 | T156: 0.1188209462
A157: 2021-08-24 | B157: 16818.73047 | C157: 0.01350452143 | D157: 0.0134141481 | E157: 2021-08-24 | F157: 572 | G157: 0.02272727273 | H157: 0.02247285585 | I157: 2021-08-24 | J157: 55.799999 | K157: 0.003584247376 | L157: 0.003577839269 | M157: 2021-08-24 | N157: 70.5 | O157: 0.001418411348 | P157: 0.001417406352 | Q157: 2021-08-24 | R157: 997.929626 | S157: 0.03319500808 | T157: 0.03265595072
A158: 2021-08-25 | B158: 17045.85938 | C158: 0.001237928962 | D158: 0.00123716336 | E158: 2021-08-25 | F158: 585 | G158: 0.01538461538 | H158: 0.01526747213 | I158: 2021-08-25 | J158: 56 | K158: 0 | L158: 0 | M158: 2021-08-25 | N158: 70.599998 | O158: -0.01133137426 | P158: -0.01139606342 | Q158: 2021-08-25 | R158: 1031.055908 | S158: -0.0116466051 | T158: -0.01171495805
A159: 2021-08-26 | B159: 17066.96094 | C159: 0.008376930756 | D159: 0.008342038994 | E159: 2021-08-26 | F159: 594 | G159: 0.008417508418 | H159: 0.008382278753 | I159: 2021-08-26 | J159: 56 | K159: 0.03035716071 | L159: 0.02990550011 | M159: 2021-08-26 | N159: 69.800003 | O159: 0.01002860988 | P159: 0.00997865707 | Q159: 2021-08-26 | R159: 1019.047607 | S159: 0.06074768791 | T159: 0.05897402543
A160: 2021-08-27 | B160: 17209.92969 | C160: 0.01084198753 | D160: 0.01078363457 | E160: 2021-08-27 | F160: 599 | G160: 0.01001669449 | H160: 0.009966859915 | I160: 2021-08-27 | J160: 57.700001 | K160: 0.03119582268 | L160: 0.03071912171 | M160: 2021-08-27 | N160: 70.5 | O160: 0.01560280851 | P160: 0.01548233622 | Q160: 2021-08-27 | R160: 1080.952393 | S160: 0.05286340302 | T160: 0.05151350301
A161: 2021-08-30 | B161: 17396.51953 | C161: 0.005390131735 | D161: 0.005375656965 | E161: 2021-08-30 | F161: 605 | G161: 0.01487603306 | H161: 0.01476647012 | I161: 2021-08-30 | J161: 59.5 | K161: 0.001680638655 | L161: 0.001679227963 | M161: 2021-08-30 | N161: 71.599998 | O161: 0.009776606418 | P161: 0.009729124625 | Q161: 2021-08-30 | R161: 1138.095215 | S161: -0.008368196153 | T161: -0.008403406073
A162: 2021-08-31 | B162: 17490.28906 | C162: -0.0009318787666 | D162: -0.0009323132356 | E162: 2021-08-31 | F162: 614 | G162: -0.001628664495 | H162: -0.001629992211 | I162: 2021-08-31 | J162: 59.599998 | K162: -0.006711359286 | L162: -0.006733981732 | M162: 2021-08-31 | N162: 72.300003 | O162: -0.01244814609 | P162: -0.0125262733 | Q162: 2021-08-31 | R162: 1128.571411 | S162: -0.01265816577 | T162: -0.0127389629
A163: 2021-09-01 | B163: 17473.99023 | C163: -0.008826287868 | D163: -0.008865470273 | E163: 2021-09-01 | F163: 613 | G163: -0.009787928222 | H163: -0.009836144877 | I163: 2021-09-01 | J163: 59.200001 | K163: -0.008445945803 | L163: -0.008481814912 | M163: 2021-09-01 | N163: 71.400002 | O163: 0.002801064347 | P163: 0.002797148677 | Q163: 2021-09-01 | R163: 1114.285767 | S163: 0.004273445952 | T163: 0.004264340713
A164: 2021-09-02 | B164: 17319.75977 | C164: 0.01138353872 | D164: 0.0113192338 | E164: 2021-09-02 | F164: 607 | G164: 0.02141680395 | H164: 0.02119068698 | I164: 2021-09-02 | J164: 58.700001 | K164: 0.01533214625 | L164: 0.01521579664 | M164: 2021-09-02 | N164: 71.599998 | O164: 0.005586620268 | P164: 0.005571072982 | Q164: 2021-09-02 | R164: 1119.047607 | S164: 0.01276600469 | T164: 0.01268520618
A165: 2021-09-03 | B165: 17516.91992 | C165: -0.001234186209 | D165: -0.001234948444 | E165: 2021-09-03 | F165: 620 | G165: 0.01774193548 | H165: 0.0175863845 | I165: 2021-09-03 | J165: 59.599998 | K165: -0.006711359286 | L165: -0.006733981732 | M165: 2021-09-03 | N165: 72 | O165: -0.006944444444 | P165: -0.006968669316 | Q165: 2021-09-03 | R165: 1133.333374 | S165: 0.1008402714 | T165: 0.09607377127
A166: 2021-09-06 | B166: 17495.30078 | C166: -0.003797113341 | D166: -0.003804340677 | E166: 2021-09-06 | F166: 631 | G166: -0.01267828843 | H166: -0.01275934375 | I166: 2021-09-06 | J166: 59.200001 | K166: 0 | L166: 0 | M166: 2021-09-06 | N166: 71.5 | O166: -0.01118885315 | P166: -0.01125191923 | Q166: 2021-09-06 | R166: 1247.619019 | S166: 0 | T166: 0
A167: 2021-09-07 | B167: 17428.86914 | C167: -0.00908715911 | D167: -0.009128699187 | E167: 2021-09-07 | F167: 623 | G167: -0.006420545746 | H167: -0.006441246103 | I167: 2021-09-07 | J167: 59.200001 | K167: -0.01182434102 | L167: -0.01189480454 | M167: 2021-09-07 | N167: 70.699997 | O167: 0.002828925155 | P167: 0.002824931277 | Q167: 2021-09-07 | R167: 1247.619019 | S167: 0.06870234719 | T167: 0.06644515285
A168: 2021-09-08 | B168: 17270.49023 | C168: 0.001959402631 | D168: 0.001957485505 | E168: 2021-09-08 | F168: 619 | G168: 0 | H168: 0 | I168: 2021-09-08 | J168: 58.5 | K168: 0.003418820513 | L168: 0.003412989632 | M168: 2021-09-08 | N168: 70.900002 | O168: -0.05218624676 | P168: -0.05359725886 | Q168: 2021-09-08 | R168: 1333.333374 | S168: -0.02857150188 | T168: -0.02898761234
A169: 2021-09-09 | B169: 17304.33008 | C169: 0.00983801362 | D169: 0.009789935436 | E169: 2021-09-09 | F169: 619 | G169: 0.004846526656 | H169: 0.004834820055 | I169: 2021-09-09 | J169: 58.700001 | K169: 0.008517887419 | L169: 0.008481814912 | M169: 2021-09-09 | N169: 67.199997 | O169: 0.01785721806 | P169: 0.01769965098 | Q169: 2021-09-09 | R169: 1295.238037 | S169: 0.02205890515 | T169: 0.02181912725
A170: 2021-09-10 | B170: 17474.57031 | C170: -0.001617193756 | D170: -0.001618502825 | E170: 2021-09-10 | F170: 622 | G170: -0.01125401929 | H170: -0.01131782493 | I170: 2021-09-10 | J170: 59.200001 | K170: 0.01182434102 | L170: 0.01175497973 | M170: 2021-09-10 | N170: 68.400002 | O170: 0.01023385935 | P170: 0.01018184796 | Q170: 2021-09-10 | R170: 1323.80957 | S170: -0.02517988596 | T170: -0.02550232342
A171: 2021-09-13 | B171: 17446.31055 | C171: -0.0006540154131 | D171: -0.0006542293745 | E171: 2021-09-13 | F171: 615 | G171: -0.00325203252 | H171: -0.00325733187 | I171: 2021-09-13 | J171: 59.900002 | K171: -0.00166949911 | L171: -0.001670894276 | M171: 2021-09-13 | N171: 69.099998 | O171: 0.004341592021 | P171: 0.004332194501 | Q171: 2021-09-13 | R171: 1290.476196 | S171: -0.0627306356 | T171: -0.06478456271
A172: 2021-09-14 | B172: 17434.90039 | C172: -0.004640140705 | D172: -0.004650939577 | E172: 2021-09-14 | F172: 613 | G172: -0.009787928222 | H172: -0.009836144877 | I172: 2021-09-14 | J172: 59.799999 | K172: -0.00501670577 | L172: -0.005029331683 | M172: 2021-09-14 | N172: 69.400002 | O172: 0 | P172: 0 | Q172: 2021-09-14 | R172: 1209.523804 | S172: 0.01574802161 | T172: 0.01562530817
A173: 2021-09-15 | B173: 17354 | C173: -0.004339102282 | D173: -0.004348543507 | E173: 2021-09-15 | F173: 607 | G173: -0.01153212521 | H173: -0.01159913584 | I173: 2021-09-15 | J173: 59.5 | K173: 0.003361361345 | L173: 0.003355724597 | M173: 2021-09-15 | N173: 69.400002 | O173: -0.004322824083 | P173: -0.004332194501 | Q173: 2021-09-15 | R173: 1228.571411 | S173: 0 | T173: 0
A174: 2021-09-16 | B174: 17278.69922 | C174: -0.000110549757 | D174: -0.0001105558681 | E174: 2021-09-16 | F174: 600 | G174: 0 | H174: 0 | I174: 2021-09-16 | J174: 59.700001 | K174: -0.01340031803 | L174: -0.01349091254 | M174: 2021-09-16 | N174: 69.099998 | O174: 0.007235890224 | P174: 0.007209836775 | Q174: 2021-09-16 | R174: 1228.571411 | S174: 0.05426353357 | T174: 0.05284245071
A175: 2021-09-17 | B175: 17276.78906 | C175: -0.02031446635 | D175: -0.02052364284 | E175: 2021-09-17 | F175: 600 | G175: -0.02333333333 | H175: -0.02360986564 | I175: 2021-09-17 | J175: 58.900002 | K175: -0.03565369998 | L175: -0.03630481649 | M175: 2021-09-17 | N175: 69.599998 | O175: -0.01580456942 | P175: -0.01593079334 | Q175: 2021-09-17 | R175: 1295.238037 | S175: -0.003676421526 | T175: -0.003683196173
A176: 2021-09-22 | B176: 16925.82031 | C176: 0.009004017955 | D176: 0.008963723479 | E176: 2021-09-22 | F176: 586 | G176: 0.003412969283 | H176: 0.003407158322 | I176: 2021-09-22 | J176: 56.799999 | K176: 0.01232396148 | L176: 0.01224863968 | M176: 2021-09-22 | N176: 68.5 | O176: 0.004379605839 | P176: 0.004370043276 | Q176: 2021-09-22 | R176: 1290.476196 | S176: 0.02214020769 | T176: 0.02189867189
A177: 2021-09-23 | B177: 17078.2207 | C177: 0.01065501806 | D177: 0.01059865338 | E177: 2021-09-23 | F177: 588 | G177: 0.01700680272 | H177: 0.01686380605 | I177: 2021-09-23 | J177: 57.5 | K177: 0.005217373913 | L177: 0.005203810574 | M177: 2021-09-23 | N177: 68.800003 | O177: 0.004360392252 | P177: 0.004350913286 | Q177: 2021-09-23 | R177: 1319.047607 | S177: -0.0216606367 | T177: -0.02189867189
A178: 2021-09-24 | B178: 17260.18945 | C178: 0.003104257815 | D178: 0.003099449555 | E178: 2021-09-24 | F178: 598 | G178: 0.006688963211 | H178: 0.006666691358 | I178: 2021-09-24 | J178: 57.799999 | K178: 0.01557096913 | L178: 0.01545098549 | M178: 2021-09-24 | N178: 69.099998 | O178: 0.005788741123 | P178: 0.005772050741 | Q178: 2021-09-24 | R178: 1290.476196 | S178: -0.03690034589 | T178: -0.03759838956
A179: 2021-09-27 | B179: 17313.76953 | C179: -0.007643054146 | D179: -0.007672411969 | E179: 2021-09-27 | F179: 602 | G179: -0.01328903654 | H179: -0.01337812595 | I179: 2021-09-27 | J179: 58.700001 | K179: 0.005110715415 | L179: 0.005097700036 | M179: 2021-09-27 | N179: 69.5 | O179: -0.01151083453 | P179: -0.01157759701 | Q179: 2021-09-27 | R179: 1242.857178 | S179: -0.0383142503 | T179: -0.03906754519
A180: 2021-09-28 | B180: 17181.43945 | C180: -0.01897271273 | D180: -0.01915500403 | E180: 2021-09-28 | F180: 594 | G180: -0.02356902357 | H180: -0.02385121582 | I180: 2021-09-28 | J180: 59 | K180: -0.01694915254 | L180: -0.01709443336 | M180: 2021-09-28 | N180: 68.699997 | O180: -0.001455589583 | P180: -0.001456649983 | Q180: 2021-09-28 | R180: 1195.238037 | S180: -0.03585650278 | T180: -0.03651513942
A181: 2021-09-29 | B181: 16855.46094 | C181: 0.004705216505 | D181: 0.004694181574 | E181: 2021-09-29 | F181: 580 | G181: 0 | H181: 0 | I181: 2021-09-29 | J181: 58 | K181: -0.001724103448 | L181: -0.001725591425 | M181: 2021-09-29 | N181: 68.599998 | O181: -0.004373105084 | P181: -0.004382695077 | Q181: 2021-09-29 | R181: 1152.380981 | S181: 0.03305783038 | T181: 0.03252317151
A182: 2021-09-30 | B182: 16934.76953 | C182: -0.02148708935 | D182: -0.0217212979 | E182: 2021-09-30 | F182: 580 | G182: -0.01034482759 | H182: -0.01039870722 | I182: 2021-09-30 | J182: 57.900002 | K182: -0.01727115657 | L182: -0.01742204284 | M182: 2021-09-30 | N182: 68.300003 | O182: -0.01756961855 | P182: -0.01772579633 | Q182: 2021-09-30 | R182: 1190.476196 | S182: -0.04400002384 | T182: -0.04499739086
A183: 2021-10-01 | B183: 16570.89062 | C183: -0.009808828003 | D183: -0.009857251468 | E183: 2021-10-01 | F183: 574 | G183: -0.003484320557 | H183: -0.00349040494 | I183: 2021-10-01 | J183: 56.900002 | K183: -0.005272477846 | L183: -0.005286426408 | M183: 2021-10-01 | N183: 67.099998 | O183: 0.005961281847 | P183: 0.005943583707 | Q183: 2021-10-01 | R183: 1138.095215 | S183: -0.004184044478 | T183: -0.004192822085
A184: 2021-10-04 | B184: 16408.34961 | C184: 0.0031935199 | D184: 0.003188431446 | E184: 2021-10-04 | F184: 572 | G184: 0 | H184: 0 | I184: 2021-10-04 | J184: 56.599998 | K184: -0.003533498358 | L184: -0.003539755908 | M184: 2021-10-04 | N184: 67.5 | O184: -0.0118518963 | P184: -0.01192268993 | Q184: 2021-10-04 | R184: 1133.333374 | S184: -0.04621851099 | T184: -0.04732068093
A185: 2021-10-05 | B185: 16460.75 | C185: -0.004106121775 | D185: -0.004114575041 | E185: 2021-10-05 | F185: 572 | G185: -0.001748251748 | H185: -0.001749781724 | I185: 2021-10-05 | J185: 56.400002 | K185: 0.01241127616 | L185: 0.01233488767 | M185: 2021-10-05 | N185: 66.699997 | O185: 0.008995592608 | P185: 0.008955373283 | Q185: 2021-10-05 | R185: 1080.952393 | S185: 0.01762113403 | T185: 0.0174676819
A186: 2021-10-06 | B186: 16393.16016 | C186: 0.01956298944 | D186: 0.01937409376 | E186: 2021-10-06 | F186: 571 | G186: 0.01576182137 | H186: 0.01563889388 | I186: 2021-10-06 | J186: 57.099998 | K186: 0 | L186: 0 | M186: 2021-10-06 | N186: 67.300003 | O186: 0.01040114367 | P186: 0.01034742395 | Q186: 2021-10-06 | R186: 1100 | S186: 0.008658003636 | T186: 0.008620738065
A187: 2021-10-07 | B187: 16713.85938 | C187: -0.0043933412 | D187: -0.004403020283 | E187: 2021-10-07 | F187: 580 | G187: -0.008620689655 | H187: -0.008658062743 | I187: 2021-10-07 | J187: 57.099998 | K187: 0 | L187: 0 | M187: 2021-10-07 | N187: 68 | O187: 0 | P187: 0 | Q187: 2021-10-07 | R187: 1109.523804 | S187: 0.0171673712 | T187: 0.01702167698
A188: 2021-10-08 | B188: 16640.42969 | C188: -0.010672191 | D188: -0.01072954728 | E188: 2021-10-08 | F188: 575 | G188: 0 | H188: 0 | I188: 2021-10-08 | J188: 57.099998 | K188: -0.01225912477 | L188: -0.01233488767 | M188: 2021-10-08 | N188: 68 | O188: -0.01176475 | P188: -0.01183450229 | Q188: 2021-10-08 | R188: 1128.571411 | S188: -0.008438813802 | T188: -0.008474622187
A189: 2021-10-12 | B189: 16462.83984 | C189: -0.00697629395 | D189: -0.00700074206 | E189: 2021-10-12 | F189: 575 | G189: -0.006956521739 | H189: -0.006980831141 | I189: 2021-10-12 | J189: 56.400002 | K189: -0.003546116896 | L189: -0.003552419272 | M189: 2021-10-12 | N189: 67.199997 | O189: 0 | P189: 0 | Q189: 2021-10-12 | R189: 1119.047607 | S189: 0.01702126691 | T189: 0.01687802826
A190: 2021-10-13 | B190: 16347.99023 | C190: 0.002403296212 | D190: 0.002400412914 | E190: 2021-10-13 | F190: 571 | G190: 0.00350262697 | H190: 0.003496507059 | I190: 2021-10-13 | J190: 56.200001 | K190: 0.007117384215 | L190: 0.00709217518 | M190: 2021-10-13 | N190: 67.199997 | O190: 0.007440476523 | P190: 0.007412932719 | Q190: 2021-10-13 | R190: 1138.095215 | S190: -0.004184044478 | T190: -0.004192822085
A191: 2021-10-14 | B191: 16387.2793 | C191: 0.02403755675 | D191: 0.02375320245 | E191: 2021-10-14 | F191: 573 | G191: 0.04712041885 | H191: 0.0460439385 | I191: 2021-10-14 | J191: 56.599998 | K191: 0.03003535442 | L191: 0.02959312633 | M191: 2021-10-14 | N191: 67.699997 | O191: 0.005908434531 | P191: 0.005891048182 | Q191: 2021-10-14 | R191: 1133.333374 | S191: 0.05882349142 | T191: 0.05715837796
A192: 2021-10-15 | B192: 16781.18945 | C192: -0.004512702464 | D192: -0.004522915443 | E192: 2021-10-15 | F192: 600 | G192: -0.01666666667 | H192: -0.01680711832 | I192: 2021-10-15 | J192: 58.299999 | K192: 0.006861097888 | L192: 0.006837667666 | M192: 2021-10-15 | N192: 68.099998 | O192: 0 | P192: 0 | Q192: 2021-10-15 | R192: 1200 | S192: 0.0317460125 | T192: 0.03125252485
A193: 2021-10-18 | B193: 16705.46094 | C193: 0.01168533959 | D193: 0.01161759325 | E193: 2021-10-18 | F193: 590 | G193: 0.01694915254 | H193: 0.01680711832 | I193: 2021-10-18 | J193: 58.700001 | K193: -0.005110715415 | L193: -0.005123819789 | M193: 2021-10-18 | N193: 68.099998 | O193: -0.004405213052 | P193: -0.004414944593 | Q193: 2021-10-18 | R193: 1238.095215 | S193: -0.007692303374 | T193: -0.007722041742
A194: 2021-10-19 | B194: 16900.66992 | C194: -0.0007603017549 | D194: -0.0007605909308 | E194: 2021-10-19 | F194: 600 | G194: -0.003333333333 | H194: -0.003338901266 | I194: 2021-10-19 | J194: 58.400002 | K194: -0.001712380078 | L194: -0.001713847877 | M194: 2021-10-19 | N194: 67.800003 | O194: -0.005899719503 | P194: -0.005917191602 | Q194: 2021-10-19 | R194: 1228.571411 | S194: 0.01162795005 | T194: 0.01156086498
A195: 2021-10-20 | B195: 16887.82031 | C195: 0.0001000397309 | D195: 0.0001000347273 | E195: 2021-10-20 | F195: 598 | G195: -0.003344481605 | H195: -0.003350086885 | I195: 2021-10-20 | J195: 58.299999 | K195: 0.006861097888 | L195: 0.006837667666 | M195: 2021-10-20 | N195: 67.400002 | O195: -0.005934747598 | P195: -0.005952428201 | Q195: 2021-10-20 | R195: 1242.857178 | S195: 0 | T195: 0
A196: 2021-10-21 | B196: 16889.50977 | C196: -4.556271974e-05 | D196: -4.556375775e-05 | E196: 2021-10-21 | F196: 596 | G196: 0.006711409396 | H196: 0.006688988151 | I196: 2021-10-21 | J196: 58.700001 | K196: -0.006814344007 | L196: -0.006837667666 | M196: 2021-10-21 | N196: 67 | O196: 0.004477656716 | P196: 0.004467661836 | Q196: 2021-10-21 | R196: 1242.857178 | S196: 0.03448268696 | T196: 0.0339014824
A197: 2021-10-22 | B197: 16888.74023 | C197: =(B198-B197)/B197 -> 0.0003256607612 | D197: =LN(B198/B197) -> 0.0003256077452 | E197: 2021-10-22 | F197: 600 | G197: =(F198-F197)/F197 -> -0.01166666667 | H197: =LN(F198/F197) -> -0.01173525622 | I197: 2021-10-22 | J197: 58.299999 | K197: =(J198-J197)/J197 -> 0.001715317354 | L197: =LN(J198/J197) -> 0.001713847877 | M197: 2021-10-22 | N197: 67.300003 | O197: =(N198-N197)/N197 -> -0.002971842364 | P197: =LN(N198/N197) -> -0.002976267056 | Q197: 2021-10-22 | R197: 1285.714233 | S197: =(R198-R197)/R197 -> 0.01481490172 | T197: =LN(R198/R197) -> 0.01470623302
A198: 2021-10-25 | B198: 16894.24023 | C198: 0.008292744039 | D198: 0.008258548159 | E198: 2021-10-25 | F198: 593 | G198: 0.01011804384 | H198: 0.01006719912 | I198: 2021-10-25 | J198: 58.400002 | K198: 0.01198623247 | L198: 0.01191496649 | M198: 2021-10-25 | N198: 67.099998 | O198: 0.002980700536 | P198: 0.002976267056 | Q198: 2021-10-25 | R198: 1304.761963 | S198: -0.02554747528 | T198: -0.0258794788
A199: 2021-10-26 | B199: 17034.33984 | C199: 0.002360580884 | D199: 0.002357799089 | E199: 2021-10-26 | F199: 599 | G199: 0 | H199: 0 | I199: 2021-10-26 | J199: 59.099998 | K199: -0.006768138977 | L199: -0.006791146701 | M199: 2021-10-26 | N199: 67.300003 | O199: -0.001485973188 | P199: -0.001487078341 | Q199: 2021-10-26 | R199: 1271.428589 | S199: -0.01123599636 | T199: -0.01129959703
A200: 2021-10-27 | B200: 17074.55078 | C200: -0.001928011016 | D200: -0.001929872022 | E200: 2021-10-27 | F200: 599 | G200: -0.006677796327 | H200: -0.00670019257 | I200: 2021-10-27 | J200: 58.700001 | K200: -0.01022151601 | L200: -0.01027411444 | M200: 2021-10-27 | N200: 67.199997 | O200: 0 | P200: 0 | Q200: 2021-10-27 | R200: 1257.142822 | S200: 0.00378792522 | T200: 0.003780769096
A201: 2021-10-28 | B201: 17041.63086 | C201: -0.003181661629 | D201: -0.003186733876 | E201: 2021-10-28 | F201: 595 | G201: -0.008403361345 | H201: -0.008438868646 | I201: 2021-10-28 | J201: 58.099998 | K201: 0 | L201: 0 | M201: 2021-10-28 | N201: 67.199997 | O201: -0.008928556946 | P201: -0.00896865537 | Q201: 2021-10-28 | R201: 1261.904785 | S201: -0.007547165296 | T201: -0.007575789259
... 322 more rows

Sheet 台灣美元兌新台幣匯率(元)(USD)
A1: 台灣美元兌新台幣匯率(元)(USD)
A2: 年月 | B2: 數值 | C2: 變動匯率
A3: 2020/01 | B3: 30.25 | C3: =(B3-B4)/B3 -> -0.002644628099
A4: 2020/02 | B4: 30.33 | C4: 0.002505769865
A5: 2020/03 | B5: 30.254 | C5: 0.0149401732
A6: 2020/04 | B6: 29.802 | C6: -0.007717602845
A7: 2020/05 | B7: 30.032 | C7: 0.01238678743
A8: 2020/06 | B8: 29.66 | C8: 0.005327039784
A9: 2020/07 | B9: 29.502 | C9: -0.0008135041692
A10: 2020/08 | B10: 29.526 | C10: 0.01354738197
A11: 2020/09 | B11: 29.126 | C11: 0.006901050608
A12: 2020/10 | B12: 28.925 | C12: 0.00349178911
A13: 2020/11 | B13: 28.824 | C13: 0.01096308632
A14: 2020/12 | B14: 28.508 | C14: 0.003367475796
A15: 2021/01 | B15: 28.412 | C15: 0.003730817964
A16: 2021/02 | B16: 28.306 | C16: -0.007948844768
A17: 2021/03 | B17: 28.531 | C17: 0.0203638148
A18: 2021/04 | B18: 27.95 | C18: 0.01048300537
A19: 2021/05 | B19: 27.657 | C19: -0.007701486061
A20: 2021/06 | B20: 27.87 | C20: -0.003444564047
A21: 2021/07 | B21: 27.966 | C21: 0.006936994922
A22: 2021/08 | B22: 27.772 | C22: -0.003384704018
A23: 2021/09 | B23: 27.866 | C23: 0.001650757195
A24: 2021/10 | B24: 27.82 | C24: 0.0003594536305
A25: 2021/11 | B25: 27.81 | C25: 0.004314994606
A26: 2021/12 | B26: 27.69 | C26: -0.004983748646
A27: 2022/01 | B27: 27.828 | C27: -0.006935460687
A28: 2022/02 | B28: 28.021 | C28: -0.02144819956
A29: 2022/03 | B29: 28.622 | C29: -0.02997694081
A30: 2022/04 | B30: 29.48 | C30: 0.01407734057
A31: 2022/05 | B31: 29.065 | C31: -0.02274212971
A32: 2022/06 | B32: 29.726 | C32: -0.007131803808
A33: 2022/07 | B33: 29.938 | C33: -0.01660097535
A34: 2022/08 | B34: 30.435 | C34: -0.04297683588
A35: 2022/09 | B35: 31.743 | C35: -0.01471190499
A36: 2022/10 | B36: 32.21 | C36: 0.04060850667
A37: 2022/11 | B37: 30.902 | C37: 0.006277910815
A38: 2022/12 | B38: 30.708 | C38: 0.0213625114
A39: 2023/01 | B39: 30.052 | C39: -0.01424198057
A40: 2023/02 | B40: 30.48 | C40: 0.0008530183727
A41: 2023/03 | B41: 30.454 | C41: -0.003795888882
A42: 2023/04 | B42: 30.5696 | C42: 1

Sheet 台灣重貼現率-月（百分比）
A1: 證券代碼 | B1: 年月 | C1: 數值
A2: MB0101 台灣-中央銀行-重貼現率-月(百分比) | B2: 202005 | C2: 1.125
A3: MB0101 台灣-中央銀行-重貼現率-月(百分比) | B3: 202006 | C3: 1.125
A4: MB0101 台灣-中央銀行-重貼現率-月(百分比) | B4: 202007 | C4: 1.125
A5: MB0101 台灣-中央銀行-重貼現率-月(百分比) | B5: 202008 | C5: 1.125
A6: MB0101 台灣-中央銀行-重貼現率-月(百分比) | B6: 202009 | C6: 1.125
A7: MB0101 台灣-中央銀行-重貼現率-月(百分比) | B7: 202010 | C7: 1.125
A8: MB0101 台灣-中央銀行-重貼現率-月(百分比) | B8: 202011 | C8: 1.125
A9: MB0101 台灣-中央銀行-重貼現率-月(百分比) | B9: 202012 | C9: 1.125
A10: MB0101 台灣-中央銀行-重貼現率-月(百分比) | B10: 202101 | C10: 1.125
A11: MB0101 台灣-中央銀行-重貼現率-月(百分比) | B11: 202102 | C11: 1.125
A12: MB0101 台灣-中央銀行-重貼現率-月(百分比) | B12: 202103 | C12: 1.125
A13: MB0101 台灣-中央銀行-重貼現率-月(百分比) | B13: 202104 | C13: 1.125
A14: MB0101 台灣-中央銀行-重貼現率-月(百分比) | B14: 202105 | C14: 1.125
A15: MB0101 台灣-中央銀行-重貼現率-月(百分比) | B15: 202106 | C15: 1.125
A16: MB0101 台灣-中央銀行-重貼現率-月(百分比) | B16: 202107 | C16: 1.125
A17: MB0101 台灣-中央銀行-重貼現率-月(百分比) | B17: 202108 | C17: 1.125
A18: MB0101 台灣-中央銀行-重貼現率-月(百分比) | B18: 202109 | C18: 1.125
A19: MB0101 台灣-中央銀行-重貼現率-月(百分比) | B19: 202110 | C19: 1.125
A20: MB0101 台灣-中央銀行-重貼現率-月(百分比) | B20: 202111 | C20: 1.125
A21: MB0101 台灣-中央銀行-重貼現率-月(百分比) | B21: 202112 | C21: 1.125
A22: MB0101 台灣-中央銀行-重貼現率-月(百分比) | B22: 202201 | C22: 1.125
A23: MB0101 台灣-中央銀行-重貼現率-月(百分比) | B23: 202202 | C23: 1.125
A24: MB0101 台灣-中央銀行-重貼現率-月(百分比) | B24: 202203 | C24: 1.375
A25: MB0101 台灣-中央銀行-重貼現率-月(百分比) | B25: 202204 | C25: 1.375
A26: MB0101 台灣-中央銀行-重貼現率-月(百分比) | B26: 202205 | C26: 1.375
A27: MB0101 台灣-中央銀行-重貼現率-月(百分比) | B27: 202206 | C27: 1.5
A28: MB0101 台灣-中央銀行-重貼現率-月(百分比) | B28: 202207 | C28: 1.5
A29: MB0101 台灣-中央銀行-重貼現率-月(百分比) | B29: 202208 | C29: 1.5
A30: MB0101 台灣-中央銀行-重貼現率-月(百分比) | B30: 202209 | C30: 1.625
A31: MB0101 台灣-中央銀行-重貼現率-月(百分比) | B31: 202210 | C31: 1.625
A32: MB0101 台灣-中央銀行-重貼現率-月(百分比) | B32: 202211 | C32: 1.625
A33: MB0101 台灣-中央銀行-重貼現率-月(百分比) | B33: 202212 | C33: 1.75
A34: MB0101 台灣-中央銀行-重貼現率-月(百分比) | B34: 202301 | C34: 1.75
A35: MB0101 台灣-中央銀行-重貼現率-月(百分比) | B35: 202302 | C35: 1.75
A36: MB0101 台灣-中央銀行-重貼現率-月(百分比) | B36: 202303 | C36: 1.875
A37: MB0101 台灣-中央銀行-重貼現率-月(百分比) | B37: 202304 | C37: 1.875

Sheet 美國十年期公債殖利率（百分比）
A1: 證券代碼 | B1: 年月 | C1: 數值
A2: CA15 美國十年期公債殖利率(百分比) | B2: 202005 | C2: 0.67
A3: CA15 美國十年期公債殖利率(百分比) | B3: 202006 | C3: 0.73
A4: CA15 美國十年期公債殖利率(百分比) | B4: 202007 | C4: 0.62
A5: CA15 美國十年期公債殖利率(百分比) | B5: 202008 | C5: 0.65
A6: CA15 美國十年期公債殖利率(百分比) | B6: 202009 | C6: 0.68
A7: CA15 美國十年期公債殖利率(百分比) | B7: 202010 | C7: 0.79
A8: CA15 美國十年期公債殖利率(百分比) | B8: 202011 | C8: 0.87
A9: CA15 美國十年期公債殖利率(百分比) | B9: 202012 | C9: 0.93
A10: CA15 美國十年期公債殖利率(百分比) | B10: 202101 | C10: 1.08
A11: CA15 美國十年期公債殖利率(百分比) | B11: 202102 | C11: 1.26
A12: CA15 美國十年期公債殖利率(百分比) | B12: 202103 | C12: 1.61
A13: CA15 美國十年期公債殖利率(百分比) | B13: 202104 | C13: 1.64
A14: CA15 美國十年期公債殖利率(百分比) | B14: 202105 | C14: 1.62
A15: CA15 美國十年期公債殖利率(百分比) | B15: 202106 | C15: 1.52
A16: CA15 美國十年期公債殖利率(百分比) | B16: 202107 | C16: 1.32
A17: CA15 美國十年期公債殖利率(百分比) | B17: 202108 | C17: 1.28
A18: CA15 美國十年期公債殖利率(百分比) | B18: 202109 | C18: 1.37
A19: CA15 美國十年期公債殖利率(百分比) | B19: 202110 | C19: 1.58
A20: CA15 美國十年期公債殖利率(百分比) | B20: 202111 | C20: 1.56
A21: CA15 美國十年期公債殖利率(百分比) | B21: 202112 | C21: 1.47
A22: CA15 美國十年期公債殖利率(百分比) | B22: 202201 | C22: 1.76
A23: CA15 美國十年期公債殖利率(百分比) | B23: 202202 | C23: 1.93
A24: CA15 美國十年期公債殖利率(百分比) | B24: 202203 | C24: 2.13
A25: CA15 美國十年期公債殖利率(百分比) | B25: 202204 | C25: 2.75
A26: CA15 美國十年期公債殖利率(百分比) | B26: 202205 | C26: 2.9
A27: CA15 美國十年期公債殖利率(百分比) | B27: 202206 | C27: 3.14
A28: CA15 美國十年期公債殖利率(百分比) | B28: 202207 | C28: 2.9
A29: CA15 美國十年期公債殖利率(百分比) | B29: 202208 | C29: 2.9
A30: CA15 美國十年期公債殖利率(百分比) | B30: 202209 | C30: 3.52
A31: CA15 美國十年期公債殖利率(百分比) | B31: 202210 | C31: 3.98
A32: CA15 美國十年期公債殖利率(百分比) | B32: 202211 | C32: 3.89
A33: CA15 美國十年期公債殖利率(百分比) | B33: 202212 | C33: 3.62
A34: CA15 美國十年期公債殖利率(百分比) | B34: 202301 | C34: 3.53
A35: CA15 美國十年期公債殖利率(百分比) | B35: 202302 | C35: 3.75
A36: CA15 美國十年期公債殖利率(百分比) | B36: 202303 | C36: 3.66
A37: CA15 美國十年期公債殖利率(百分比) | B37: 202304 | C37: 3.46

Sheet 消費者物價指數ＣＰＩ
A1: 台灣CPI | D1: 美國CPI
A2: 2021/01-2023/03
A3: 統計期 | B3: 總指數 | D3: 統計期 | E3: 總指數
A4: 2021-01-01 | B4: -0.19 | C4: =B4/100 -> -0.0019 | D4: 2021-01-01 | E4: 0.003
A5: 2021-02-01 | B5: 1.38 | C5: =B5/100 -> 0.0138 | D5: 2021-02-01 | E5: 0.004
A6: 2021-03-01 | B6: 1.22 | C6: 0.0122 | D6: 2021-03-01 | E6: 0.026
A7: 2021-04-01 | B7: 2.11 | C7: 0.0211 | D7: 2021-04-01 | E7: 0.042
A8: 2021-05-01 | B8: 2.45 | C8: 0.0245 | D8: 2021-05-01 | E8: 0.05
A9: 2021-06-01 | B9: 1.83 | C9: 0.0183 | D9: 2021-06-01 | E9: 0.054
A10: 2021-07-01 | B10: 1.91 | C10: 0.0191 | D10: 2021-07-01 | E10: 0.054
A11: 2021-08-01 | B11: 2.34 | C11: 0.0234 | D11: 2021-08-01 | E11: 0.053
A12: 2021-09-01 | B12: 2.6 | C12: 0.026 | D12: 2021-09-01 | E12: 0.054
A13: 2021-10-01 | B13: 2.55 | C13: 0.0255 | D13: 2021-10-01 | E13: 0.062
A14: 2021-11-01 | B14: 2.84 | C14: 0.0284 | D14: 2021-11-01 | E14: 0.068
A15: 2021-12-01 | B15: 2.63 | C15: 0.0263 | D15: 2021-12-01 | E15: 0.07
A16: 2022-01-01 | B16: 2.83 | C16: 0.0283 | D16: 2022-01-01 | E16: 0.075
A17: 2022-02-01 | B17: 2.33 | C17: 0.0233 | D17: 2022-02-01 | E17: 0.079
A18: 2022-03-01 | B18: 3.27 | C18: 0.0327 | D18: 2022-03-01 | E18: 0.085
A19: 2022-04-01 | B19: 3.37 | C19: 0.0337 | D19: 2022-04-01 | E19: 0.083
A20: 2022-05-01 | B20: 3.39 | C20: 0.0339 | D20: 2022-05-01 | E20: 0.086
A21: 2022-06-01 | B21: 3.59 | C21: 0.0359 | D21: 2022-06-01 | E21: 0.091
A22: 2022-07-01 | B22: 3.35 | C22: 0.0335 | D22: 2022-07-01 | E22: 0.085
A23: 2022-08-01 | B23: 2.68 | C23: 0.0268 | D23: 2022-08-01 | E23: 0.083
A24: 2022-09-01 | B24: 2.76 | C24: 0.0276 | D24: 2022-09-01 | E24: 0.082
A25: 2022-10-01 | B25: 2.74 | C25: 0.0274 | D25: 2022-10-01 | E25: 0.077
A26: 2022-11-01 | B26: 2.35 | C26: 0.0235 | D26: 2022-11-01 | E26: 0.071
A27: 2022-12-01 | B27: 2.71 | C27: 0.0271 | D27: 2022-12-01 | E27: 0.065
A28: 2023-01-01 | B28: 3.05 | C28: 0.0305 | D28: 2023-01-01 | E28: 0.064
A29: 2023-02-01 | B29: 2.42 | C29: 0.0242 | D29: 2023-02-01 | E29: 0.06
A30: 2023-03-01 | B30: 2.35 | C30: 0.0235 | D30: 2023-03-01 | E30: 0.05

Sheet PPP
A1: 變動匯率 | B1: 台灣CPI | C1: 美國CPI | D1: (Id-If)/(1+If) | E1: 變動匯率 | V1: 摘要輸出
A2: 0.003730817964 | B2: -0.0019 | C2: 0.003 | D2: =(B2-C2)/(1+C2) -> -0.004885343968 | E2: 0.003730817964
A3: -0.007948844768 | B3: 0.0138 | C3: 0.004 | D3: =(B3-C3)/(1+C3) -> 0.009760956175 | E3: -0.007948844768 | V3: 迴歸統計
A4: 0.0203638148 | B4: 0.0122 | C4: 0.026 | D4: -0.0134502924 | E4: 0.0203638148 | V4: R 的倍數 | W4: 0.2901582864
A5: 0.01048300537 | B5: 0.0211 | C5: 0.042 | D5: -0.02005758157 | E5: 0.01048300537 | V5: R 平方 | W5: 0.08419183119
A6: -0.007701486061 | B6: 0.0245 | C6: 0.05 | D6: -0.02428571429 | E6: -0.007701486061 | V6: 調整的 R 平方 | W6: 0.04755950444
A7: -0.003444564047 | B7: 0.0183 | C7: 0.054 | D7: -0.03387096774 | E7: -0.003444564047 | V7: 標準誤 | W7: 0.0165021892
A8: 0.006936994922 | B8: 0.0191 | C8: 0.054 | D8: -0.03311195446 | E8: 0.006936994922 | V8: 觀察值個數 | W8: 27
A9: -0.003384704018 | B9: 0.0234 | C9: 0.053 | D9: -0.02811016144 | E9: -0.003384704018
A10: 0.001650757195 | B10: 0.026 | C10: 0.054 | D10: -0.0265654649 | E10: 0.001650757195 | V10: ANOVA
A11: 0.0003594536305 | B11: 0.0255 | C11: 0.062 | D11: -0.03436911488 | E11: 0.0003594536305 | W11: 自由度 | X11: SS | Y11: MS | Z11: F | AA11: 顯著值
A12: 0.004314994606 | B12: 0.0284 | C12: 0.068 | D12: -0.03707865169 | E12: 0.004314994606 | V12: 迴歸 | W12: 1 | X12: 0.000625876399 | Y12: 0.000625876399 | Z12: 2.298293301 | AA12: 0.1420597243
A13: -0.004983748646 | B13: 0.0263 | C13: 0.07 | D13: -0.0408411215 | E13: -0.004983748646 | V13: 殘差 | W13: 25 | X13: 0.006808056207 | Y13: 0.0002723222483
A14: -0.006935460687 | B14: 0.0283 | C14: 0.075 | D14: -0.04344186047 | E14: -0.006935460687 | V14: 總和 | W14: 26 | X14: 0.007433932606
A15: -0.02144819956 | B15: 0.0233 | C15: 0.079 | D15: -0.0516218721 | E15: -0.02144819956
A16: -0.02997694081 | B16: 0.0327 | C16: 0.085 | D16: -0.04820276498 | E16: -0.02997694081 | W16: 係數 | X16: 標準誤 | Y16: t 統計 | Z16: P-值 | AA16: 下限 95% | AB16: 上限 95% | AC16: 下限 95.0% | AD16: 上限 95.0%
A17: 0.01407734057 | B17: 0.0337 | C17: 0.083 | D17: -0.04552169898 | E17: 0.01407734057 | V17: 截距 | W17: 0.008481643499 | X17: 0.008122610701 | Y17: 1.04420165 | Z17: 0.3063844614 | AA17: -0.008247186389 | AB17: 0.02521047339 | AC17: -0.008247186389 | AD17: 0.02521047339
A18: -0.02274212971 | B18: 0.0339 | C18: 0.086 | D18: -0.04797421731 | E18: -0.02274212971 | V18: (Id-If)/(1+IF) | W18: 0.3254546916 | X18: 0.2146781336 | Y18: 1.516012303 | Z18: 0.1420597243 | AA18: -0.116683201 | AB18: 0.7675925842 | AC18: -0.116683201 | AD18: 0.7675925842
A19: -0.007131803808 | B19: 0.0359 | C19: 0.091 | D19: -0.05050412466 | E19: -0.007131803808
A20: -0.01660097535 | B20: 0.0335 | C20: 0.085 | D20: -0.04746543779 | E20: -0.01660097535
A21: -0.04297683588 | B21: 0.0268 | C21: 0.083 | D21: -0.05189289012 | E21: -0.04297683588
A22: -0.01471190499 | B22: 0.0276 | C22: 0.082 | D22: -0.05027726433 | E22: -0.01471190499
A23: 0.04060850667 | B23: 0.0274 | C23: 0.077 | D23: -0.0460538533 | E23: 0.04060850667
A24: 0.006277910815 | B24: 0.0235 | C24: 0.071 | D24: -0.04435107376 | E24: 0.006277910815
A25: 0.0213625114 | B25: 0.0271 | C25: 0.065 | D25: -0.03558685446 | E25: 0.0213625114
A26: -0.01424198057 | B26: 0.0305 | C26: 0.064 | D26: -0.03148496241 | E26: -0.01424198057
A27: 0.0008530183727 | B27: 0.0242 | C27: 0.06 | D27: -0.03377358491 | E27: 0.0008530183727
A28: -0.003795888882 | B28: 0.0235 | C28: 0.05 | D28: -0.02523809524 | E28: -0.003795888882

Sheet UIRP
A1: 變動匯率 | B1: 台灣重貼現率 | C1: 美國十年期公債殖利率 | D1: (rd-rf)/(1+rf) | E1: 變動匯率 | N1: 摘要輸出
A2: 0.003730817964 | B2: 1.125 | C2: 1.08 | D2: =(B2-C2)/(1+C2) -> 0.02163461538 | E2: 0.003730817964
A3: -0.007948844768 | B3: 1.125 | C3: 1.26 | D3: =(B3-C3)/(1+C3) -> -0.05973451327 | E3: -0.007948844768 | N3: 迴歸統計
A4: 0.0203638148 | B4: 1.125 | C4: 1.61 | D4: -0.1858237548 | E4: 0.0203638148 | N4: R 的倍數 | O4: 0.01063198955
A5: 0.01048300537 | B5: 1.125 | C5: 1.64 | D5: -0.1950757576 | E5: 0.01048300537 | N5: R 平方 | O5: 0.0001130392018
A6: -0.007701486061 | B6: 1.125 | C6: 1.62 | D6: -0.1889312977 | E6: -0.007701486061 | N6: 調整的 R 平方 | O6: -0.03988243923
A7: -0.003444564047 | B7: 1.125 | C7: 1.52 | D7: -0.1567460317 | E7: -0.003444564047 | N7: 標準誤 | O7: 0.01724307662
A8: 0.006936994922 | B8: 1.125 | C8: 1.32 | D8: -0.08405172414 | E8: 0.006936994922 | N8: 觀察值個數 | O8: 27
A9: -0.003384704018 | B9: 1.125 | C9: 1.28 | D9: -0.06798245614 | E9: -0.003384704018
A10: 0.001650757195 | B10: 1.125 | C10: 1.37 | D10: -0.1033755274 | E10: 0.001650757195 | N10: ANOVA
A11: 0.0003594536305 | B11: 1.125 | C11: 1.58 | D11: -0.1763565891 | E11: 0.0003594536305 | O11: 自由度 | P11: SS | Q11: MS | R11: F | S11: 顯著值
A12: 0.004314994606 | B12: 1.125 | C12: 1.56 | D12: -0.169921875 | E12: 0.004314994606 | N12: 迴歸 | O12: 1 | P12: 8.403258079e-07 | Q12: 8.403258079e-07 | R12: 0.002826299527 | S12: 0.958024618
A13: -0.004983748646 | B13: 1.125 | C13: 1.47 | D13: -0.1396761134 | E13: -0.004983748646 | N13: 殘差 | O13: 25 | P13: 0.00743309228 | Q13: 0.0002973236912
A14: -0.006935460687 | B14: 1.125 | C14: 1.76 | D14: -0.2300724638 | E14: -0.006935460687 | N14: 總和 | O14: 26 | P14: 0.007433932606
A15: -0.02144819956 | B15: 1.125 | C15: 1.93 | D15: -0.2747440273 | E15: -0.02144819956
A16: -0.02997694081 | B16: 1.375 | C16: 2.13 | D16: -0.2412140575 | E16: -0.02997694081 | O16: 係數 | P16: 標準誤 | Q16: t 統計 | R16: P-值 | S16: 下限 95% | T16: 上限 95% | U16: 下限 95.0% | V16: 上限 95.0%
A17: 0.01407734057 | B17: 1.375 | C17: 2.75 | D17: -0.3666666667 | E17: 0.01407734057 | N17: 截距 | O17: -0.002520754196 | P17: 0.007060788708 | Q17: -0.3570074535 | R17: 0.7240821578 | S17: -0.01706272075 | T17: 0.01202121236 | U17: -0.01706272075 | V17: 0.01202121236
A18: -0.02274212971 | B18: 1.375 | C18: 2.9 | D18: -0.391025641 | E18: -0.02274212971 | N18: (rd-rf)/(1+rf) | O18: 0.001263382233 | P18: 0.02376433534 | Q18: 0.05316295258 | R18: 0.958024618 | S18: -0.04768018258 | T18: 0.05020694704 | U18: -0.04768018258 | V18: 0.05020694704
A19: -0.007131803808 | B19: 1.5 | C19: 3.14 | D19: -0.3961352657 | E19: -0.007131803808
A20: -0.01660097535 | B20: 1.5 | C20: 2.9 | D20: -0.358974359 | E20: -0.01660097535
A21: -0.04297683588 | B21: 1.5 | C21: 2.9 | D21: -0.358974359 | E21: -0.04297683588
A22: -0.01471190499 | B22: 1.625 | C22: 3.52 | D22: -0.4192477876 | E22: -0.01471190499
A23: 0.04060850667 | B23: 1.625 | C23: 3.98 | D23: -0.4728915663 | E23: 0.04060850667
A24: 0.006277910815 | B24: 1.625 | C24: 3.89 | D24: -0.463190184 | E24: 0.006277910815
A25: 0.0213625114 | B25: 1.75 | C25: 3.62 | D25: -0.4047619048 | E25: 0.0213625114
A26: -0.01424198057 | B26: 1.75 | C26: 3.53 | D26: -0.3929359823 | E26: -0.01424198057
A27: 0.0008530183727 | B27: 1.75 | C27: 3.75 | D27: -0.4210526316 | E27: 0.0008530183727
A28: -0.003795888882 | B28: 1.875 | C28: 3.66 | D28: -0.3830472103 | E28: -0.003795888882
C29: \
